Workbook

Sheet الرئيسية (hidden)
O4: اكتوبر
F20: أ. مساعد مصروفات وايرادات

Sheet مــصــــروفــــــات اليومـيـــة
I1: مــصــــروفــــــات يومـيـــة شــهــــــر | M1: ='كشف المرتبات'!A1 -> 3 | N1: ='كشف المرتبات'!B1 -> 2025
F2: رصيــد الــعــهـــــــدة / محـمــود حــــمــــــدى | K2: =SUBTOTAL(9,J4:J254) -> 34507 | M2: مصروفــات الـمـوظـفــين | O2: =SUM(x_7[الإجمالى]) -> 69014 | P2: مــصــــروفــــــات الأكــــل الشــهــريــة
F3: م | G3: كـود | H3: الـصــنــــــــف | I3: الـتـــــاريخ | J3: الـمـبـلـغ | K3: العـهــدة | L3: الـتـــــاريخ | M3: كــود | N3: إدراج أسامى الموظفين | O3: الإجمالى | P3: م | Q3: الـصــنــــــف | R3: الـمـبــلـغ
B4: مرتب مصطفى القاضى | F4: 1 | G4: 33 | H4: =IFERROR(VLOOKUP(G4,$M$4:$O$69,2,0),"0") -> وائل الخراط | I4: =IF(G4<>"",IF(I4="",NOW(),I4),"") -> 2025-03-02T14:06:44.550 | J4: 500 | K4: =IF(G4<>"",IF(K4="",NOW(),K4),"") -> 45718.58802 | L4: ='رصيــد الخــزنــة'!I2 ->  | M4: 1 | N4: اكــــــــــل | O4: =SUMIF($H$3:$H$254,N4:N68,$J$3:$J$254) -> 0 | P4: 1 | Q4: اكــــــــــل | R4: =SUMIFS($J$4:$J$173,$H$4:$H$173,"اكــــــــــل") -> 0
B5: مرتب بكر كشك | F5: 2 | G5: 6 | H5: بكر كشك | I5: 2025-03-02T14:06:45.280 | J5: 500 | K5: 45718.58802 | L5: ='رصيــد الخــزنــة'!I3 ->  | M5: 2 | N5: شاى | O5: 0 | P5: 2 | Q5: شاى | R5: =SUMIFS($J$4:$J$173,$H$4:$H$173,"شاى") -> 0
B6: مرتب أبو خالد | F6: 3 | G6: 6 | H6: بكر كشك | I6: 2025-03-03 | J6: 720 | K6: 45720.48875 | L6: ='رصيــد الخــزنــة'!I4 ->  | M6: 3 | N6: سكر | O6: 0 | P6: 3 | Q6: سكر | R6: =SUMIFS($J$4:$J$173,$H$4:$H$173,"سكر") -> 0
B7: مرتب محمود شكرى | F7: 4 | G7: 32 | H7: محمد حشاد | I7: 2025-03-03 | J7: 200 | K7: 45720.48878 | L7: ='رصيــد الخــزنــة'!I5 ->  | M7: 4 | N7: غاز | O7: 0 | P7: 3 | Q7: غاز | R7: =SUMIFS($J$4:$J$173,$H$4:$H$173,"غاز") -> 0
B8: مرتب عبـد الله عبد ربه | F8: 5 | G8: 15 | H8: أحمد سليم | I8: 2025-03-04 | J8: 100 | K8: 45724.51174 | L8: ='رصيــد الخــزنــة'!I6 ->  | M8: 5 | N8: مصطفى القاضى | O8: 0 | P8: الإجــمـــــــالـــى | R8: =SUM(R4:R4) -> 0
B9: مرتب مصطفى النجار | F9: 6 | G9: 33 | H9: وائل الخراط | I9: 2025-03-04 | J9: 200 | K9: 45724.5118 | L9: ='رصيــد الخــزنــة'!I7 ->  | M9: 6 | N9: بكر كشك | O9: 2120
B10: مرتب محمود حمدى | F10: 7 | G10: 32 | H10: محمد حشاد | I10: 2025-03-04 | J10: 100 | K10: 45724.51182 | L10: ='رصيــد الخــزنــة'!I8 ->  | M10: 7 | N10: أبو خالد | O10: 0 | Q10: قــائـمــة منـسـدلــة | R10: =SUM(xx_212[المبلغ]) -> 1000
B11: مرتب على السواق | F11: 8 | G11: 10 | H11: مصطفى النجار | I11: 2025-03-05 | J11: 150 | K11: 45724.51244 | L11: ='رصيــد الخــزنــة'!I9 ->  | M11: 8 | N11: محمود شكرى | O11: 1700 | Q11: اختر إسـم الموظـف | R11: عبـد الله عبد ربه
B12: مرتب حسن على | F12: 9 | G12: 22 | H12: أيمن القاضى | I12: 2025-03-05 | J12: 400 | K12: 45724.51248 | L12: ='رصيــد الخــزنــة'!I10 ->  | M12: 9 | N12: عبـد الله عبد ربه | O12: 1000 | Q12: التاريخ | R12: المبلغ
B13: مرتب محمد خليل | F13: 10 | G13: 32 | H13: محمد حشاد | I13: 2025-03-05 | J13: 60 | K13: 45724.51252 | L13: ='رصيــد الخــزنــة'!I11 ->  | M13: 10 | N13: مصطفى النجار | O13: 4650 | Q13: =IFERROR(INDEX($H$3:$L$254,SMALL(IF(($H$3:$H$254=$R$11),ROW($H$3:$H$254)-ROW($J$2)),ROW(A1)),2),"") -> 2025-03-10T11:50:37.950 | R13: =IFERROR(INDEX($H$3:$L$254,SMALL(IF(($H$3:$H$254=$R$11),ROW($H$3:$H$254)-ROW($J$2)),ROW(A1)),3),"") -> 200
B14: مرتب أحمد سليم | F14: 11 | G14: 17 | H14: حازم | I14: 2025-03-05 | J14: 500 | K14: 45724.51257 | L14: ='رصيــد الخــزنــة'!I12 ->  | M14: 11 | N14: محمود حمدى | O14: 0 | Q14: =IFERROR(INDEX($H$3:$L$254,SMALL(IF(($H$3:$H$254=$R$11),ROW($H$3:$H$254)-ROW($J$2)),ROW(A2)),2),"") -> 2025-03-15T12:51:28.800 | R14: =IFERROR(INDEX($H$3:$L$254,SMALL(IF(($H$3:$H$254=$R$11),ROW($H$3:$H$254)-ROW($J$2)),ROW(A2)),3),"") -> 800
B15: مرتب أحمد مصلح | F15: 12 | G15: 15 | H15: أحمد سليم | I15: 2025-03-05 | J15: 300 | K15: 45724.51258 | L15: ='رصيــد الخــزنــة'!I13 ->  | M15: 12 | N15: على السواق | O15: 0 | Q15: =IFERROR(INDEX($H$3:$L$254,SMALL(IF(($H$3:$H$254=$R$11),ROW($H$3:$H$254)-ROW($J$2)),ROW(A3)),2),"") ->  | R15: =IFERROR(INDEX($H$3:$L$254,SMALL(IF(($H$3:$H$254=$R$11),ROW($H$3:$H$254)-ROW($J$2)),ROW(A3)),3),"") -> 
B16: مرتب حازم | F16: 13 | G16: 33 | H16: وائل الخراط | I16: 2025-03-06 | J16: 500 | K16: 45724.51278 | L16: ='رصيــد الخــزنــة'!I14 ->  | M16: 13 | N16: حسن على | O16: 0 | Q16: =IFERROR(INDEX($H$3:$L$254,SMALL(IF(($H$3:$H$254=$R$11),ROW($H$3:$H$254)-ROW($J$2)),ROW(A4)),2),"") ->  | R16: =IFERROR(INDEX($H$3:$L$254,SMALL(IF(($H$3:$H$254=$R$11),ROW($H$3:$H$254)-ROW($J$2)),ROW(A4)),3),"") -> 
B17: مرتب عبد الله أشرف | F17: 14 | G17: 10 | H17: مصطفى النجار | I17: 2025-03-06 | J17: 2500 | K17: 45724.51334 | L17: ='رصيــد الخــزنــة'!I15 ->  | M17: 14 | N17: محمد خليل | O17: 500 | Q17: =IFERROR(INDEX($H$3:$L$254,SMALL(IF(($H$3:$H$254=$R$11),ROW($H$3:$H$254)-ROW($J$2)),ROW(A5)),2),"") ->  | R17: =IFERROR(INDEX($H$3:$L$254,SMALL(IF(($H$3:$H$254=$R$11),ROW($H$3:$H$254)-ROW($J$2)),ROW(A5)),3),"") -> 
B18: مرتب أيمن القاضى | F18: 15 | G18: 22 | H18: أيمن القاضى | I18: 2025-03-06 | J18: 3000 | K18: 45724.51338 | L18: ='رصيــد الخــزنــة'!I16 ->  | M18: 15 | N18: أحمد سليم | O18: 2586 | Q18: =IFERROR(INDEX($H$3:$L$254,SMALL(IF(($H$3:$H$254=$R$11),ROW($H$3:$H$254)-ROW($J$2)),ROW(A6)),2),"") ->  | R18: =IFERROR(INDEX($H$3:$L$254,SMALL(IF(($H$3:$H$254=$R$11),ROW($H$3:$H$254)-ROW($J$2)),ROW(A6)),3),"") -> 
B19: مرتب حسن أبو ندا | F19: 16 | G19: 19 | H19: حسن أحمد | I19: 2025-03-08T12:20:06.860 | J19: 250 | K19: 45724.51397 | L19: ='رصيــد الخــزنــة'!I17 ->  | M19: 16 | N19: أحمد مصلح | O19: 0 | Q19: =IFERROR(INDEX($H$3:$L$254,SMALL(IF(($H$3:$H$254=$R$11),ROW($H$3:$H$254)-ROW($J$2)),ROW(A7)),2),"") ->  | R19: =IFERROR(INDEX($H$3:$L$254,SMALL(IF(($H$3:$H$254=$R$11),ROW($H$3:$H$254)-ROW($J$2)),ROW(A7)),3),"") -> 
B20: مرتب أشرف | F20: 17 | G20: 15 | H20: أحمد سليم | I20: 2025-03-08T13:05:41.020 | J20: 1000 | K20: 45724.54561 | L20: ='رصيــد الخــزنــة'!I18 ->  | M20: 17 | N20: حازم | O20: 700 | Q20: =IFERROR(INDEX($H$3:$L$254,SMALL(IF(($H$3:$H$254=$R$11),ROW($H$3:$H$254)-ROW($J$2)),ROW(A8)),2),"") ->  | R20: =IFERROR(INDEX($H$3:$L$254,SMALL(IF(($H$3:$H$254=$R$11),ROW($H$3:$H$254)-ROW($J$2)),ROW(A8)),3),"") -> 
B21: مرتب هانى صالح | F21: 18 | G21: 29 | H21: إسلام عــوض | I21: 2025-03-08T13:05:41.020 | J21: 100 | K21: 45725.43312 | L21: ='رصيــد الخــزنــة'!I19 ->  | M21: 18 | N21: عبـد الله أشرف | O21: 0 | Q21: =IFERROR(INDEX($H$3:$L$254,SMALL(IF(($H$3:$H$254=$R$11),ROW($H$3:$H$254)-ROW($J$2)),ROW(A9)),2),"") ->  | R21: =IFERROR(INDEX($H$3:$L$254,SMALL(IF(($H$3:$H$254=$R$11),ROW($H$3:$H$254)-ROW($J$2)),ROW(A9)),3),"") -> 
B22: مرتب محمد فضل | F22: 19 | G22: 8 | H22: محمود شكرى | I22: 2025-03-09T10:51:24.720 | J22: 1500 | K22: 45725.45237 | L22: ='رصيــد الخــزنــة'!I20 ->  | M22: 19 | N22: حسن أحمد | O22: 500 | Q22: =IFERROR(INDEX($H$3:$L$254,SMALL(IF(($H$3:$H$254=$R$11),ROW($H$3:$H$254)-ROW($J$2)),ROW(A10)),2),"") ->  | R22: =IFERROR(INDEX($H$3:$L$254,SMALL(IF(($H$3:$H$254=$R$11),ROW($H$3:$H$254)-ROW($J$2)),ROW(A10)),3),"") -> 
B23: مرتب ندى القاضى | F23: 20 | G23: 33 | H23: وائل الخراط | I23: 2025-03-09T10:51:24.720 | J23: 200 | K23: 45726.4259 | L23: ='رصيــد الخــزنــة'!I21 ->  | M23: 20 | Q23: =IFERROR(INDEX($H$3:$L$254,SMALL(IF(($H$3:$H$254=$R$11),ROW($H$3:$H$254)-ROW($J$2)),ROW(A11)),2),"") ->  | R23: =IFERROR(INDEX($H$3:$L$254,SMALL(IF(($H$3:$H$254=$R$11),ROW($H$3:$H$254)-ROW($J$2)),ROW(A11)),3),"") -> 
B24: مرتب إسلام عــوض | F24: 21 | G24: 32 | H24: محمد حشاد | I24: 2025-03-09T10:51:24.720 | J24: 26 | K24: 45726.42591 | L24: ='رصيــد الخــزنــة'!I22 ->  | M24: 21 | Q24: =IFERROR(INDEX($H$3:$L$254,SMALL(IF(($H$3:$H$254=$R$11),ROW($H$3:$H$254)-ROW($J$2)),ROW(A12)),2),"") ->  | R24: =IFERROR(INDEX($H$3:$L$254,SMALL(IF(($H$3:$H$254=$R$11),ROW($H$3:$H$254)-ROW($J$2)),ROW(A12)),3),"") -> 
B25: مرتب نادر عوض | F25: 22 | G25: 10 | H25: مصطفى النجار | I25: 2025-03-09T10:51:24.720 | J25: 300 | K25: 45726.42593 | L25: ='رصيــد الخــزنــة'!I23 ->  | M25: 22 | N25: أيمن القاضى | O25: 5000 | Q25: =IFERROR(INDEX($H$3:$L$254,SMALL(IF(($H$3:$H$254=$R$11),ROW($H$3:$H$254)-ROW($J$2)),ROW(A13)),2),"") ->  | R25: =IFERROR(INDEX($H$3:$L$254,SMALL(IF(($H$3:$H$254=$R$11),ROW($H$3:$H$254)-ROW($J$2)),ROW(A13)),3),"") -> 
B26: مرتب محمد حشاد | F26: 23 | G26: 33 | H26: وائل الخراط | I26: 2025-03-10T11:50:37.950 | J26: 300 | K26: 45726.49349 | L26: ='رصيــد الخــزنــة'!I24 ->  | M26: 23 | N26: حسن أبو ندا | O26: 2100 | Q26: =IFERROR(INDEX($H$3:$L$254,SMALL(IF(($H$3:$H$254=$R$11),ROW($H$3:$H$254)-ROW($J$2)),ROW(A14)),2),"") ->  | R26: =IFERROR(INDEX($H$3:$L$254,SMALL(IF(($H$3:$H$254=$R$11),ROW($H$3:$H$254)-ROW($J$2)),ROW(A14)),3),"") -> 
B27: مرتب وائل الخراط | F27: 24 | G27: 9 | H27: عبـد الله عبد ربه | I27: 2025-03-10T11:50:37.950 | J27: 200 | K27: 45727.54733 | L27: ='رصيــد الخــزنــة'!I25 ->  | M27: 24 | O27: 0 | Q27: =IFERROR(INDEX($H$3:$L$254,SMALL(IF(($H$3:$H$254=$R$11),ROW($H$3:$H$254)-ROW($J$2)),ROW(A15)),2),"") ->  | R27: =IFERROR(INDEX($H$3:$L$254,SMALL(IF(($H$3:$H$254=$R$11),ROW($H$3:$H$254)-ROW($J$2)),ROW(A15)),3),"") -> 
B28: مرتب خميس | F28: 25 | G28: 19 | H28: حسن أحمد | I28: 2025-03-10T11:50:37.950 | J28: 100 | K28: 45727.54737 | L28: ='رصيــد الخــزنــة'!I26 ->  | M28: 25 | N28: أشرف | O28: 0 | Q28: =IFERROR(INDEX($H$3:$L$254,SMALL(IF(($H$3:$H$254=$R$11),ROW($H$3:$H$254)-ROW($J$2)),ROW(A16)),2),"") ->  | R28: =IFERROR(INDEX($H$3:$L$254,SMALL(IF(($H$3:$H$254=$R$11),ROW($H$3:$H$254)-ROW($J$2)),ROW(A16)),3),"") -> 
B29: مرتب حسن أحمد | F29: 26 | G29: 29 | H29: إسلام عــوض | I29: 2025-03-10T11:50:37.950 | J29: 120 | K29: 45727.54742 | L29: ='رصيــد الخــزنــة'!I27 ->  | M29: 26 | N29: هانى صالح | O29: 100 | Q29: =IFERROR(INDEX($H$3:$L$254,SMALL(IF(($H$3:$H$254=$R$11),ROW($H$3:$H$254)-ROW($J$2)),ROW(A17)),2),"") ->  | R29: =IFERROR(INDEX($H$3:$L$254,SMALL(IF(($H$3:$H$254=$R$11),ROW($H$3:$H$254)-ROW($J$2)),ROW(A17)),3),"") -> 
B30: مرتب إبراهيم الغفير | F30: 27 | G30: 34 | H30: خميس | I30: 2025-03-10T11:50:37.950 | J30: 500 | K30: 45727.54745 | L30: ='رصيــد الخــزنــة'!I28 ->  | M30: 27 | N30: محمد فضل | O30: 2000 | Q30: =IFERROR(INDEX($H$3:$L$254,SMALL(IF(($H$3:$H$254=$R$11),ROW($H$3:$H$254)-ROW($J$2)),ROW(A18)),2),"") ->  | R30: =IFERROR(INDEX($H$3:$L$254,SMALL(IF(($H$3:$H$254=$R$11),ROW($H$3:$H$254)-ROW($J$2)),ROW(A18)),3),"") -> 
F31: 28 | G31: 32 | H31: محمد حشاد | I31: 2025-03-10T11:50:37.950 | J31: 420 | K31: 45727.5475 | L31: ='رصيــد الخــزنــة'!I29 ->  | M31: 28 | N31: ندى القاضى | O31: 0 | Q31: =IFERROR(INDEX($H$3:$L$254,SMALL(IF(($H$3:$H$254=$R$11),ROW($H$3:$H$254)-ROW($J$2)),ROW(A19)),2),"") ->  | R31: =IFERROR(INDEX($H$3:$L$254,SMALL(IF(($H$3:$H$254=$R$11),ROW($H$3:$H$254)-ROW($J$2)),ROW(A19)),3),"") -> 
F32: 29 | G32: 6 | H32: بكر كشك | I32: 2025-03-10T11:50:37.950 | J32: 900 | K32: 45727.54751 | L32: ='رصيــد الخــزنــة'!I30 ->  | M32: 29 | N32: إسلام عــوض | O32: 1620 | Q32: =IFERROR(INDEX($H$3:$L$254,SMALL(IF(($H$3:$H$254=$R$11),ROW($H$3:$H$254)-ROW($J$2)),ROW(A20)),2),"") ->  | R32: =IFERROR(INDEX($H$3:$L$254,SMALL(IF(($H$3:$H$254=$R$11),ROW($H$3:$H$254)-ROW($J$2)),ROW(A20)),3),"") -> 
F33: 30 | G33: 23 | H33: حسن أبو ندا | I33: 2025-03-10T11:50:37.950 | J33: 50 | K33: 45727.54754 | L33: ='رصيــد الخــزنــة'!I31 ->  | M33: 30 | N33: نادر عوض | O33: 2200 | Q33: =IFERROR(INDEX($H$3:$L$254,SMALL(IF(($H$3:$H$254=$R$11),ROW($H$3:$H$254)-ROW($J$2)),ROW(A21)),2),"") ->  | R33: =IFERROR(INDEX($H$3:$L$254,SMALL(IF(($H$3:$H$254=$R$11),ROW($H$3:$H$254)-ROW($J$2)),ROW(A21)),3),"") -> 
F34: 31 | G34: 32 | H34: محمد حشاد | I34: 2025-03-11T13:08:44.970 | J34: 445 | K34: 45727.54774 | L34: ='رصيــد الخــزنــة'!I32 ->  | M34: 31 | O34: 0 | Q34: =IFERROR(INDEX($H$3:$L$254,SMALL(IF(($H$3:$H$254=$R$11),ROW($H$3:$H$254)-ROW($J$2)),ROW(A22)),2),"") ->  | R34: =IFERROR(INDEX($H$3:$L$254,SMALL(IF(($H$3:$H$254=$R$11),ROW($H$3:$H$254)-ROW($J$2)),ROW(A22)),3),"") -> 
F35: 32 | G35: 33 | H35: وائل الخراط | I35: 2025-03-11 | J35: 100 | K35: 13:23:00 | L35: ='رصيــد الخــزنــة'!I33 ->  | M35: 32 | N35: محمد حشاد | O35: 3461 | Q35: =IFERROR(INDEX($H$3:$L$254,SMALL(IF(($H$3:$H$254=$R$11),ROW($H$3:$H$254)-ROW($J$2)),ROW(A23)),2),"") ->  | R35: =IFERROR(INDEX($H$3:$L$254,SMALL(IF(($H$3:$H$254=$R$11),ROW($H$3:$H$254)-ROW($J$2)),ROW(A23)),3),"") -> 
F36: 33 | G36: 10 | H36: مصطفى النجار | I36: 2025-03-11 | J36: 200 | K36: 13:57:00 | L36: ='رصيــد الخــزنــة'!I34 ->  | M36: 33 | N36: وائل الخراط | O36: =SUMIF($H$3:$H$254,N36:N100,$J$3:$J$254) -> 2770 | Q36: =IFERROR(INDEX($H$3:$L$254,SMALL(IF(($H$3:$H$254=$R$11),ROW($H$3:$H$254)-ROW($J$2)),ROW(A24)),2),"") ->  | R36: =IFERROR(INDEX($H$3:$L$254,SMALL(IF(($H$3:$H$254=$R$11),ROW($H$3:$H$254)-ROW($J$2)),ROW(A24)),3),"") -> 
F37: 34 | G37: 32 | H37: محمد حشاد | I37: 2025-03-12 | J37: 130 | K37: 11:13:00 | L37: ='رصيــد الخــزنــة'!I35 ->  | M37: 34 | N37: خميس | O37: 1500 | Q37: =IFERROR(INDEX($H$3:$L$254,SMALL(IF(($H$3:$H$254=$R$11),ROW($H$3:$H$254)-ROW($J$2)),ROW(A25)),2),"") ->  | R37: =IFERROR(INDEX($H$3:$L$254,SMALL(IF(($H$3:$H$254=$R$11),ROW($H$3:$H$254)-ROW($J$2)),ROW(A25)),3),"") -> 
F38: 35 | G38: 22 | H38: أيمن القاضى | I38: 2025-03-12 | J38: 300 | K38: 11:13:00 | L38: ='رصيــد الخــزنــة'!I36 ->  | M38: 35 | O38: 0 | Q38: =IFERROR(INDEX($H$3:$L$254,SMALL(IF(($H$3:$H$254=$R$11),ROW($H$3:$H$254)-ROW($J$2)),ROW(A26)),2),"") ->  | R38: =IFERROR(INDEX($H$3:$L$254,SMALL(IF(($H$3:$H$254=$R$11),ROW($H$3:$H$254)-ROW($J$2)),ROW(A26)),3),"") -> 
F39: 36 | G39: 15 | H39: أحمد سليم | I39: 2025-03-12 | J39: 36 | K39: 11:21:00 | L39: ='رصيــد الخــزنــة'!I37 ->  | M39: 36 | O39: 0 | Q39: =IFERROR(INDEX($H$3:$L$254,SMALL(IF(($H$3:$H$254=$R$11),ROW($H$3:$H$254)-ROW($J$2)),ROW(A27)),2),"") ->  | R39: =IFERROR(INDEX($H$3:$L$254,SMALL(IF(($H$3:$H$254=$R$11),ROW($H$3:$H$254)-ROW($J$2)),ROW(A27)),3),"") -> 
F40: 37 | G40: 33 | H40: وائل الخراط | I40: 2025-03-12 | J40: 20 | K40: 11:21:00 | L40: ='رصيــد الخــزنــة'!I38 ->  | M40: 37 | O40: 0 | Q40: =IFERROR(INDEX($H$3:$L$254,SMALL(IF(($H$3:$H$254=$R$11),ROW($H$3:$H$254)-ROW($J$2)),ROW(A28)),2),"") ->  | R40: =IFERROR(INDEX($H$3:$L$254,SMALL(IF(($H$3:$H$254=$R$11),ROW($H$3:$H$254)-ROW($J$2)),ROW(A28)),3),"") -> 
F41: 38 | G41: 14 | H41: محمد خليل | I41: 2025-03-12 | J41: 500 | K41: 11:21:00 | L41: ='رصيــد الخــزنــة'!I39 ->  | M41: 38 | O41: 0 | Q41: =IFERROR(INDEX($H$3:$L$254,SMALL(IF(($H$3:$H$254=$R$11),ROW($H$3:$H$254)-ROW($J$2)),ROW(A29)),2),"") ->  | R41: =IFERROR(INDEX($H$3:$L$254,SMALL(IF(($H$3:$H$254=$R$11),ROW($H$3:$H$254)-ROW($J$2)),ROW(A29)),3),"") -> 
F42: 39 | G42: 27 | H42: محمد فضل | I42: 2025-03-12 | J42: 2000 | K42: 13:02:00 | L42: ='رصيــد الخــزنــة'!I40 ->  | M42: 39 | O42: 0 | Q42: =IFERROR(INDEX($H$3:$L$254,SMALL(IF(($H$3:$H$254=$R$11),ROW($H$3:$H$254)-ROW($J$2)),ROW(A30)),2),"") ->  | R42: =IFERROR(INDEX($H$3:$L$254,SMALL(IF(($H$3:$H$254=$R$11),ROW($H$3:$H$254)-ROW($J$2)),ROW(A30)),3),"") -> 
F43: 40 | G43: 33 | H43: وائل الخراط | I43: 2025-03-12 | J43: 100 | K43: 13:02:00 | L43: ='رصيــد الخــزنــة'!I41 ->  | M43: 40 | N43: إبراهيم الغفير | O43: 0 | Q43: =IFERROR(INDEX($H$3:$L$254,SMALL(IF(($H$3:$H$254=$R$11),ROW($H$3:$H$254)-ROW($J$2)),ROW(A31)),2),"") ->  | R43: =IFERROR(INDEX($H$3:$L$254,SMALL(IF(($H$3:$H$254=$R$11),ROW($H$3:$H$254)-ROW($J$2)),ROW(A31)),3),"") -> 
F44: 41 | G44: 15 | H44: أحمد سليم | I44: 2025-03-12 | J44: 1000 | K44: 11:57:00 | L44: ='رصيــد الخــزنــة'!I42 ->  | M44: 41 | O44: 0
F45: 42 | G45: 32 | H45: محمد حشاد | I45: 2025-03-12 | J45: 100 | K45: 11:57:00 | L45: ='رصيــد الخــزنــة'!I43 ->  | M45: 42 | O45: 0
F46: 43 | G46: 23 | H46: حسن أبو ندا | I46: 2025-03-13 | J46: 2000 | K46: 11:57:00 | L46: ='رصيــد الخــزنــة'!I44 ->  | M46: 43 | O46: =SUMIF($H$3:$H$254,N46:N110,$J$3:$J$254) -> 0
F47: 44 | G47: 22 | H47: أيمن القاضى | I47: =IF(G47<>"",IF(I47="",NOW(),I47),"") -> 2025-03-13T13:14:53.890 | J47: 1300 | K47: =IF(G47<>"",IF(K47="",NOW(),K47),"") -> 45729.55201 | L47: ='رصيــد الخــزنــة'!I45 ->  | M47: 44 | O47: 0
F48: 45 | G48: 33 | H48: =IFERROR(VLOOKUP(G48,$M$4:$O$69,2,0),"0") -> وائل الخراط | I48: 2025-03-13T13:14:53.890 | J48: 500 | K48: =IF(G48<>"",IF(K48="",NOW(),K48),"") -> 45731.50721 | L48: ='رصيــد الخــزنــة'!I46 ->  | M48: 45 | O48: 0
F49: 46 | G49: 32 | H49: محمد حشاد | I49: 2025-03-13T13:14:53.890 | J49: 1000 | K49: 45731.53569 | L49: ='رصيــد الخــزنــة'!I47 ->  | M49: 46 | O49: 0
F50: 47 | G50: 29 | H50: =IFERROR(VLOOKUP(G50,$M$4:$O$69,2,0),"0") -> إسلام عــوض | I50: =IF(G50<>"",IF(I50="",NOW(),I50),"") -> 2025-03-15T12:51:23.930 | J50: 100 | K50: 45731.53575 | L50: ='رصيــد الخــزنــة'!I48 ->  | M50: 47 | O50: 0
F51: 48 | G51: 9 | H51: عبـد الله عبد ربه | I51: 2025-03-15T12:51:28.800 | J51: 800 | K51: 45731.53577 | L51: ='رصيــد الخــزنــة'!I49 ->  | M51: 48 | O51: 0 | Q51: يوسف مصطفى
F52: 49 | G52: 26 | H52: =IFERROR(VLOOKUP(G52,$M$4:$O$69,2,0),"0") -> هانى صالح | I52: =IF(G52<>"",IF(I52="",NOW(),I52),"") -> 2025-03-15T12:51:28.800 | J52: 100 | K52: 45731.53587 | L52: ='رصيــد الخــزنــة'!I50 ->  | M52: 49 | O52: 0 | Q52: محمد أيمن
F53: 50 | G53: 15 | H53: أحمد سليم | I53: 2025-03-15T12:51:30.280 | J53: 100 | K53: 45731.53591 | L53: ='رصيــد الخــزنــة'!I51 ->  | M53: 50 | O53: 0 | Q53: مروان
F54: 51 | G54: 8 | H54: محمود شكرى | I54: 2025-03-15T12:51:38.950 | J54: 200 | K54: 45731.536 | L54: ='رصيــد الخــزنــة'!I52 ->  | M54: 51 | O54: 0 | Q54: يوسف السباعى
F55: 52 | G55: 19 | H55: حسن أحمد | I55: 2025-03-15T12:51:42.830 | J55: 150 | K55: 45731.56732 | L55: ='رصيــد الخــزنــة'!I53 ->  | M55: 52 | O55: 0 | Q55: عز أشــرف
F56: 53 | G56: 10 | H56: مصطفى النجار | I56: 2025-03-15T12:51:50.050 | J56: 1500 | K56: 45731.57988 | L56: ='رصيــد الخــزنــة'!I54 ->  | M56: 53 | O56: 0 | Q56: إيهاب شعبان
F57: 54 | G57: 32 | H57: محمد حشاد | I57: 2025-03-15T13:55:01.920 | J57: 250 | K57: 45731.58339 | L57: ='رصيــد الخــزنــة'!I55 ->  | M57: 54 | O57: 0 | Q57: عمر أحمد
F58: 55 | G58: 23 | H58: حسن أبو ندا | I58: =IF(G58<>"",IF(I58="",NOW(),I58),"") -> 2025-03-15T14:14:35.510 | J58: 50 | K58: 45731.59347 | L58: ='رصيــد الخــزنــة'!I56 ->  | M58: 55 | O58: 0 | Q58: أحمد الصعيدى
F59: 56 | G59: 15 | H59: أحمد سليم | I59: 2025-03-16T12:19:18.020 | J59: 50 | K59: 45732.5134 | L59: ='رصيــد الخــزنــة'!I57 ->  | M59: 56 | O59: 0
F60: 57 | G60: 32 | H60: محمد حشاد | I60: 2025-03-16T12:19:19.270 | J60: 160 | K60: 45732.51342 | L60: ='رصيــد الخــزنــة'!I58 ->  | M60: 57 | O60: 0
F61: 58 | G61: 29 | H61: إسلام عــوض | I61: 2025-03-16T12:19:21.120 | J61: 1300 | K61: 45732.51344 | L61: ='رصيــد الخــزنــة'!I59 ->  | M61: 58 | O61: 0
F62: 59 | G62: 30 | H62: نادر عوض | I62: 2025-03-16T12:19:27.110 | J62: 2200 | K62: 45732.51351 | L62: ='رصيــد الخــزنــة'!I60 ->  | M62: 59 | O62: 0
F63: 60 | G63: 17 | H63: حازم | I63: 2025-03-16T12:19:33 | J63: 200 | K63: 45732.51358 | L63: ='رصيــد الخــزنــة'!I61 ->  | M63: 60 | O63: 0
F64: 61 | G64: 34 | H64: خميس | I64: 2025-03-16T13:17:50.160 | J64: 1000 | K64: 45732.55405 | L64: ='رصيــد الخــزنــة'!I62 ->  | M64: 61 | O64: 0
F65: 62 | G65: 33 | H65: وائل الخراط | I65: 2025-03-16T13:18:24.490 | J65: 100 | K65: 45732.55445 | L65: ='رصيــد الخــزنــة'!I63 ->  | M65: 62 | O65: 0
F66: 63 | G66: 32 | H66: =IFERROR(VLOOKUP(G66,$M$4:$O$69,2,0),"0") -> محمد حشاد | I66: 2025-03-16T13:18:24.490 | J66: 570 | K66: 45733.46238 | L66: ='رصيــد الخــزنــة'!I64 ->  | M66: 63 | N66: عمرو حسنى المحاسب | O66: =SUMIF($H$3:$H$254,N66:N110,$J$3:$J$254) -> 0
F67: 64 | G67: 33 | H67: وائل الخراط | I67: =IF(G67<>"",IF(I67="",NOW(),I67),"") -> 2025-03-17T11:05:49.650 | J67: 250 | K67: 45733.46239 | L67: ='رصيــد الخــزنــة'!I65 ->  | M67: 64 | N67: علاء المحامى | O67: 0
F68: 65 | H68: =IFERROR(VLOOKUP(G68,$M$4:$O$69,2,0),"0") -> 0 | I68: =IF(G68<>"",IF(I68="",NOW(),I68),"") ->  | K68: =IF(G68<>"",IF(K68="",NOW(),K68),"") ->  | L68: ='رصيــد الخــزنــة'!I66 ->  | M68: 65 | N68: عمرو | O68: =SUMIF($H$3:$H$254,N68:N105,$J$3:$J$254) -> 0
F69: 66 | H69: =IFERROR(VLOOKUP(G69,$M$4:$O$69,2,0),"0") -> 0 | I69: =IF(G69<>"",IF(I69="",NOW(),I69),"") ->  | L69: ='رصيــد الخــزنــة'!I67 ->  | M69: 19 | N69: إجمالي المرتبات | O69: =SUM(O8:O39) -> 34507
F70: 67 | H70: 0 | L70: ='رصيــد الخــزنــة'!I68 ->  | M70: 20
F71: 68 | H71: 0 | L71: ='رصيــد الخــزنــة'!I69 ->  | M71: 5 | N71: مصطفى القاضى | O71: 0
F72: 69 | H72: 0 | L72: ='رصيــد الخــزنــة'!I70 ->  | M72: 6 | N72: بكر كشك | O72: 0
F73: 70 | H73: 0 | L73: ='رصيــد الخــزنــة'!I71 ->  | M73: 7 | N73: أبو خالد | O73: 0
F74: 71 | H74: 0 | L74: ='رصيــد الخــزنــة'!I72 ->  | M74: 8 | N74: محمود شكرى | O74: 0
F75: 72 | H75: 0 | L75: ='رصيــد الخــزنــة'!I73 ->  | M75: 9 | N75: عبـد الله عبد ربه | O75: 0
F76: 73 | H76: 0 | L76: ='رصيــد الخــزنــة'!I74 ->  | M76: 10 | N76: مصطفى النجار | O76: 0
F77: 74 | H77: 0 | L77: ='رصيــد الخــزنــة'!I75 ->  | M77: 11 | N77: محمود حمدى | O77: 0
F78: 75 | H78: 0 | L78: ='رصيــد الخــزنــة'!I76 ->  | M78: 12 | N78: على السواق | O78: 0
F79: 76 | H79: 0 | L79: ='رصيــد الخــزنــة'!I77 ->  | M79: 13 | N79: حسن على | O79: 0
F80: 77 | H80: 0 | L80: ='رصيــد الخــزنــة'!I78 ->  | M80: 14 | N80: محمد خليل | O80: 0
F81: 78 | H81: 0 | L81: ='رصيــد الخــزنــة'!I79 ->  | M81: 15 | N81: أحمد سليم | O81: 0
F82: 79 | H82: 0 | L82: ='رصيــد الخــزنــة'!I80 ->  | M82: 16 | N82: أحمد مصلح | O82: 0
F83: 80 | H83: 0 | L83: ='رصيــد الخــزنــة'!I81 ->  | M83: 17 | N83: حازم | O83: 0
F84: 81 | H84: 0 | L84: ='رصيــد الخــزنــة'!I82 ->  | M84: 18 | N84: عبـد الله أشرف | O84: 0
F85: 82 | H85: 0 | L85: ='رصيــد الخــزنــة'!I83 ->  | M85: 19 | N85: حسن أحمد | O85: 0
F86: 83 | H86: 0 | L86: ='رصيــد الخــزنــة'!I84 ->  | M86: 22 | N86: أيمن القاضى | O86: 0
F87: 84 | H87: 0 | L87: ='رصيــد الخــزنــة'!I85 ->  | M87: 23 | N87: حسن أبو ندا | O87: 0
F88: 85 | H88: 0 | L88: ='رصيــد الخــزنــة'!I86 ->  | M88: 25 | N88: أشرف | O88: 0
F89: 86 | H89: 0 | L89: ='رصيــد الخــزنــة'!I87 ->  | M89: 26 | N89: هانى صالح | O89: 0
F90: 87 | H90: 0 | L90: ='رصيــد الخــزنــة'!I88 ->  | M90: 27 | N90: محمد فضل | O90: 0
F91: 88 | H91: 0 | L91: ='رصيــد الخــزنــة'!I89 ->  | M91: 28 | N91: ندى القاضى | O91: 0
F92: 89 | H92: 0 | L92: ='رصيــد الخــزنــة'!I90 ->  | M92: 29 | N92: إسلام عــوض | O92: 0
F93: 90 | H93: 0 | L93: ='رصيــد الخــزنــة'!I91 ->  | M93: 30 | N93: نادر عوض | O93: 0
F94: 91 | H94: 0 | L94: ='رصيــد الخــزنــة'!I92 ->  | M94: 32 | N94: محمد حشاد | O94: 0
F95: 92 | H95: 0 | L95: ='رصيــد الخــزنــة'!I93 ->  | M95: 33 | N95: وائل الخراط | O95: 0
F96: 93 | H96: 0 | L96: ='رصيــد الخــزنــة'!I94 ->  | M96: 34 | N96: خميس | O96: 0
F97: 94 | H97: 0 | L97: ='رصيــد الخــزنــة'!I95 ->  | M97: 40 | N97: إبراهيم الغفير | O97: 0
F98: 95 | H98: 0 | L98: ='رصيــد الخــزنــة'!I96 ->  | M98: 5 | N98: مصطفى القاضى | O98: 0
F99: 96 | H99: 0 | L99: ='رصيــد الخــزنــة'!I97 ->  | M99: 6 | N99: بكر كشك | O99: 0
F100: 97 | H100: 0 | L100: ='رصيــد الخــزنــة'!I98 ->  | M100: 7 | N100: أبو خالد | O100: 0
F101: 98 | H101: 0 | L101: ='رصيــد الخــزنــة'!I99 ->  | M101: 8 | N101: محمود شكرى | O101: 0
F102: 99 | H102: 0 | L102: ='رصيــد الخــزنــة'!I100 ->  | M102: 9 | N102: عبـد الله عبد ربه | O102: 0
F103: 100 | H103: 0 | L103: ='رصيــد الخــزنــة'!I101 ->  | M103: 10 | N103: مصطفى النجار | O103: 0
F104: 101 | H104: 0 | L104: ='رصيــد الخــزنــة'!I102 ->  | M104: 11 | N104: محمود حمدى | O104: 0
F105: 102 | H105: 0 | L105: ='رصيــد الخــزنــة'!I103 ->  | M105: 12 | N105: على السواق | O105: 0
F106: 103 | H106: 0 | L106: ='رصيــد الخــزنــة'!I104 ->  | M106: 13 | N106: حسن على | O106: 0
F107: 104 | H107: 0 | L107: ='رصيــد الخــزنــة'!I105 ->  | M107: 14 | N107: محمد خليل | O107: 0
F108: 105 | H108: 0 | L108: ='رصيــد الخــزنــة'!I106 ->  | M108: 15 | N108: أحمد سليم | O108: 0
F109: 106 | H109: 0 | L109: ='رصيــد الخــزنــة'!I107 ->  | M109: 16 | N109: أحمد مصلح | O109: 0
F110: 107 | H110: 0 | L110: ='رصيــد الخــزنــة'!I108 ->  | M110: 17 | N110: حازم | O110: 0
F111: 108 | H111: 0 | L111: ='رصيــد الخــزنــة'!I109 ->  | M111: 18 | N111: عبـد الله أشرف | O111: 0
F112: 109 | H112: 0 | L112: ='رصيــد الخــزنــة'!I110 ->  | M112: 19 | N112: حسن أحمد | O112: 0
F113: 110 | H113: 0 | L113: ='رصيــد الخــزنــة'!I111 ->  | M113: 22 | N113: أيمن القاضى | O113: 0
F114: 111 | H114: 0 | L114: ='رصيــد الخــزنــة'!I112 ->  | M114: 23 | N114: حسن أبو ندا | O114: 0
F115: 112 | H115: =IFERROR(VLOOKUP(G115,$M$4:$O$69,2,0),"0") -> 0 | I115: =IF(G115<>"",IF(I115="",NOW(),I115),"") ->  | K115: =IF(G115<>"",IF(K115="",NOW(),K115),"") ->  | L115: ='رصيــد الخــزنــة'!I113 ->  | M115: 25 | N115: أشرف | O115: 0
F116: 113 | H116: 0 | L116: ='رصيــد الخــزنــة'!I114 ->  | M116: 26 | N116: هانى صالح | O116: 0
F117: 114 | H117: 0 | L117: ='رصيــد الخــزنــة'!I115 ->  | M117: 27 | N117: محمد فضل | O117: 0
F118: 115 | H118: 0 | L118: ='رصيــد الخــزنــة'!I116 ->  | M118: 28 | N118: ندى القاضى | O118: 0
F119: 116 | H119: 0 | L119: ='رصيــد الخــزنــة'!I117 ->  | M119: 29 | N119: إسلام عــوض | O119: 0
F120: 117 | H120: =IFERROR(VLOOKUP(G120,$M$4:$O$69,2,0),"0") -> 0 | I120: =IF(G120<>"",IF(I120="",NOW(),I120),"") ->  | K120: =IF(G120<>"",IF(K120="",NOW(),K120),"") ->  | L120: ='رصيــد الخــزنــة'!I118 ->  | M120: 30 | N120: نادر عوض | O120: 0
F121: 118 | H121: 0 | L121: ='رصيــد الخــزنــة'!I119 ->  | M121: 32 | N121: محمد حشاد | O121: 0
F122: 119 | H122: 0 | L122: ='رصيــد الخــزنــة'!I120 ->  | M122: 33 | N122: وائل الخراط | O122: 0
F123: 120 | H123: 0 | L123: ='رصيــد الخــزنــة'!I121 ->  | M123: 34 | N123: خميس | O123: 0
F124: 121 | H124: 0 | M124: 40 | N124: إبراهيم الغفير | O124: 0
F125: 122 | H125: 0 | M125: 5 | N125: مصطفى القاضى | O125: 0
F126: 123 | H126: 0 | M126: 6 | N126: بكر كشك | O126: 0
F127: 124 | H127: 0 | M127: 7 | N127: أبو خالد | O127: 0
F128: 125 | H128: 0 | M128: 8 | N128: محمود شكرى | O128: 0
F129: 126 | H129: 0 | M129: 9 | N129: عبـد الله عبد ربه | O129: 0
F130: 127 | H130: 0 | M130: 10 | N130: مصطفى النجار | O130: 0
F131: 128 | H131: 0 | M131: 11 | N131: محمود حمدى | O131: 0
F132: 129 | H132: =IFERROR(VLOOKUP(G132,$M$4:$O$69,2,0),"0") -> 0 | I132: =IF(G132<>"",IF(I132="",NOW(),I132),"") ->  | M132: 12 | N132: على السواق | O132: 0
F133: 130 | H133: 0 | K133: =IF(G133<>"",IF(K133="",NOW(),K133),"") ->  | M133: 13 | N133: حسن على | O133: 0
F134: 131 | H134: 0 | M134: 14 | N134: محمد خليل | O134: 0
F135: 132 | H135: 0 | M135: 15 | N135: أحمد سليم | O135: 0
F136: 133 | H136: 0 | M136: 16 | N136: أحمد مصلح | O136: 0
F137: 134 | H137: 0 | M137: 17 | N137: حازم | O137: 0
F138: 135 | H138: 0 | M138: 18 | N138: عبـد الله أشرف | O138: 0
F139: 136 | H139: 0 | M139: 19 | N139: حسن أحمد | O139: 0
F140: 137 | H140: 0 | M140: 22 | N140: أيمن القاضى | O140: 0
F141: 138 | H141: 0 | M141: 23 | N141: حسن أبو ندا | O141: 0
F142: 139 | H142: 0 | M142: 25 | N142: أشرف | O142: 0
F143: 140 | H143: 0 | M143: 26 | N143: هانى صالح | O143: 0
F144: 141 | H144: 0 | M144: 27 | N144: محمد فضل | O144: 0
F145: 142 | H145: 0 | M145: 28 | N145: ندى القاضى | O145: 0
F146: 143 | H146: 0 | M146: 29 | N146: إسلام عــوض | O146: 0
F147: 144 | H147: 0 | M147: 30 | N147: نادر عوض | O147: 0
F148: 145 | H148: 0 | M148: 32 | N148: محمد حشاد | O148: 0
F149: 146 | H149: 0 | M149: 33 | N149: وائل الخراط | O149: 0
F150: 147 | H150: 0 | M150: 34 | N150: خميس | O150: 0
F151: 148 | H151: 0 | M151: 40 | N151: إبراهيم الغفير | O151: 0
F152: 149 | H152: 0 | M152: 5 | N152: مصطفى القاضى | O152: 0
F153: 150 | H153: 0 | M153: 6 | N153: بكر كشك | O153: 0
F154: 151 | H154: 0 | M154: 7 | N154: أبو خالد | O154: 0
F155: 152 | H155: 0 | M155: 8 | N155: محمود شكرى | O155: 0
F156: 153 | H156: 0 | M156: 9 | N156: عبـد الله عبد ربه | O156: 0
F157: 154 | H157: 0 | M157: 10 | N157: مصطفى النجار | O157: 0
F158: 155 | H158: 0 | M158: 11 | N158: محمود حمدى | O158: 0
F159: 156 | H159: 0 | M159: 12 | N159: على السواق | O159: 0
F160: 157 | H160: 0 | M160: 13 | N160: حسن على | O160: 0
F161: 158 | H161: 0 | M161: 14 | N161: محمد خليل | O161: 0
F162: 159 | H162: 0 | M162: 15 | N162: أحمد سليم | O162: 0
F163: 160 | H163: 0 | M163: 16 | N163: أحمد مصلح | O163: 0
F164: 161 | H164: 0 | M164: 17 | N164: حازم | O164: 0
F165: 162 | H165: 0 | M165: 18 | N165: عبـد الله أشرف | O165: 0
F166: 163 | H166: 0 | M166: 19 | N166: حسن أحمد | O166: 0
F167: 164 | H167: 0 | M167: 22 | N167: أيمن القاضى | O167: 0
F168: 165 | H168: 0 | M168: 23 | N168: حسن أبو ندا | O168: 0
F169: 166 | H169: 0 | M169: 25 | N169: أشرف | O169: 0
F170: 167 | H170: 0 | M170: 26 | N170: هانى صالح | O170: 0
F171: 168 | H171: 0 | M171: 27 | N171: محمد فضل | O171: 0
F172: 169 | H172: 0 | M172: 28 | N172: ندى القاضى | O172: 0
F173: 170 | H173: 0 | M173: 29 | N173: إسلام عــوض | O173: 0
F174: 171 | H174: 0 | M174: 30 | N174: نادر عوض | O174: 0
F175: 172 | H175: 0 | M175: 32 | N175: محمد حشاد | O175: 0
F176: 173 | H176: 0 | M176: 33 | N176: وائل الخراط | O176: 0
F177: 174 | H177: 0 | M177: 34 | N177: خميس | O177: 0
F178: 175 | H178: 0 | M178: 40 | N178: إبراهيم الغفير | O178: 0
F179: 176 | H179: 0 | M179: 5 | N179: مصطفى القاضى | O179: 0
F180: 177 | H180: 0 | M180: 6 | N180: بكر كشك | O180: 0
F181: 178 | H181: 0 | M181: 7 | N181: أبو خالد | O181: 0
F182: 179 | H182: 0 | M182: 8 | N182: محمود شكرى | O182: 0
F183: 180 | H183: 0 | M183: 9 | N183: عبـد الله عبد ربه | O183: 0
F184: 181 | H184: 0 | M184: 10 | N184: مصطفى النجار | O184: 0
F185: 182 | H185: 0 | M185: 11 | N185: محمود حمدى | O185: 0
F186: 183 | H186: 0 | M186: 12 | N186: على السواق | O186: 0
F187: 184 | H187: 0 | M187: 13 | N187: حسن على | O187: 0
F188: 185 | H188: 0 | M188: 14 | N188: محمد خليل | O188: 0
F189: 186 | H189: 0 | M189: 15 | N189: أحمد سليم | O189: 0
F190: 187 | H190: 0 | M190: 16 | N190: أحمد مصلح | O190: 0
F191: 188 | H191: 0 | M191: 17 | N191: حازم | O191: 0
F192: 189 | H192: 0 | M192: 18 | N192: عبـد الله أشرف | O192: 0
F193: 190 | H193: 0 | M193: 19 | N193: حسن أحمد | O193: 0
F194: 191 | H194: 0 | M194: 22 | N194: أيمن القاضى | O194: 0
F195: 192 | H195: 0 | M195: 23 | N195: حسن أبو ندا | O195: 0
F196: 193 | H196: =IFERROR(VLOOKUP(G196,$M$4:$O$69,2,0),"0") -> 0 | I196: =IF(G196<>"",IF(I196="",NOW(),I196),"") ->  | M196: 25 | N196: أشرف | O196: 0
F197: 194 | H197: 0 | K197: =IF(G197<>"",IF(K197="",NOW(),K197),"") ->  | M197: 26 | N197: هانى صالح | O197: 0
F198: 195 | H198: 0 | M198: 27 | N198: محمد فضل | O198: 0
F199: 196 | H199: 0 | M199: 28 | N199: ندى القاضى | O199: 0
F200: 197 | H200: 0 | M200: 29 | N200: إسلام عــوض | O200: 0
... 135 more rows

Sheet رصيــد الخــزنــة (hidden)
A1: م | B1: موجود الخــزنــة | C1: التاريــخ | D1: شـيـكـــات | E1: نقــديـــة | F1: مشتريــات | G1: مبيعــات | H1: فلوس للعهدة | I1: التاريــخ | J1: فلوس مرتبات | K1: التاريــخ | L1: دفعــات المبــالغ
A2: 1 | B2: أصل السجل | I2: =IF(H2<>"",IF(I2="",NOW(),I2),"") -> 
A3: 2 | B3: أصل البطاقة الضريبية
A4: 3 | B4: أصل عقد الإيجار
A5: 4 | B5: أصل عقد الشركة
A6: 5
A7: 6
A8: 7
A9: 8
A10: 9 | I10: =IF(H10<>"",IF(I10="",NOW(),I10),"") -> 
A11: 10
A12: 11
A13: 12
A14: 13
A15: 14
A16: 15
A17: 16
A18: 17
A19: 18
A20: 19
A21: 20
A22: 21
A23: 22
A24: 23
A25: 24
A26: 25
A27: 26
A28: 27
A29: 28
A30: 29
A31: 30
A32: 31
A33: 32
A34: 33
A35: 34
A36: 35
A37: 36
A38: 37
A39: 38
A40: 39
A41: 40
A42: 41
A43: 42
A44: 43
A45: 44
A46: 45
A47: 46
A48: 47
A49: 48
A50: 49
A51: 50
A52: 51
A53: 52
A54: 53
A55: 54
A56: 55
A57: 56
A58: 57
A59: 58
A60: 59
A61: 60
A62: 61
A63: 62
A64: 63
A65: 64
A66: 65
A67: 66 | I67: =IF(H67<>"",IF(I67="",NOW(),I67),"") -> 
A68: 67
A69: 68
A70: 69
A71: 70
A72: 71
A73: 72
A74: 73
A75: 74
A76: 75
A77: 76
A78: 77
A79: 78
A80: 79
A81: 80 | I81: =IF(H81<>"",IF(I81="",NOW(),I81),"") -> 
A82: 81 | I82: =IF(H82<>"",IF(I82="",NOW(),I82),"") -> 
A83: 82
A84: 83
A85: 84
A86: 85
A87: 86
A88: 87
A89: 88
A90: 89
A91: 90
A92: 91
A93: 92
A94: 93
A95: 94
A96: 95
A97: 96
A98: 97
A99: 98
A100: 99
A101: 100
A102: 101
A103: 102
A104: 103
A105: 104
A106: 105
A107: 106
A108: 107
A109: 108
A110: 109
A111: 110
A112: 111
A113: 112
A114: 113
A115: 114
A116: 115
A117: 116
A118: 117
A119: 118
A120: 119
A121: 120
A122: الإجـمــــــــالــى | D122: =SUM(D2:D121) -> 0 | E122: =SUM(E2:E121) -> 0 | F122: =SUM(F2:F121) -> 0 | G122: =SUM(G2:G121) -> 0 | H122: =SUM(H2:H121) -> 0 | J122: =SUM(J2:J121) -> 0 | L122: =SUM(L2:L121) -> 0
A123: الإجـمــــــــالــى | D123: =D122+E122 -> 0 | E123: =E122-F122+G122-H122-J122+L122 -> 0

Sheet كشف المرتبات
A1: 3 | B1: 2025 | C1: 08:00:00 | D1: مصطفى القاضى | G1: بكر كشك | J1: أبو خالد | M1: محمود شكرى | P1: عبـد الله عبد ربه | S1: مصطفى النجار | V1: محمود حمدى | Y1: على السواق | AB1: حسن على | AE1: محمد خليل | AH1: أحمد سليم | AK1: أحمد مصلح | AN1: حازم | AQ1: عبد الله أشرف | AT1: حسن أحمد | BI1: أيمن القاضى | BL1: حسن أبو ندا | BR1: أشرف | BU1: هانى صالح | BX1: محمد فضل | CA1: ندى القاضى | CD1: إسلام عــوض | CG1: نادر عوض | CJ1: لطفى منصور | CM1: محمد حشاد | CP1: وائل الخراط | CS1: خميس | DK1: إبراهيم الغفير
A2: م | B2: الـيـــــوم | C2: التــاريـخ | D2: حضور | E2: إنصراف | F2: عــدد | G2: حضور | H2: إنصراف | I2: عــدد | J2: حضور | K2: إنصراف | L2: عــدد | M2: حضور | N2: إنصراف | O2: عــدد | P2: حضور | Q2: إنصراف | R2: عــدد | S2: حضور | T2: إنصراف | U2: عــدد | V2: حضور | W2: إنصراف | X2: عــدد | Y2: حضور | Z2: إنصراف | AA2: عــدد | AB2: حضور | AC2: إنصراف | AD2: عــدد | AE2: حضور | AF2: إنصراف | AG2: عــدد | AH2: حضور | AI2: إنصراف | AJ2: عــدد | AK2: حضور | AL2: إنصراف | AM2: عــدد | AN2: حضور | AO2: إنصراف | AP2: عــدد | AQ2: حضور | AR2: إنصراف | AS2: عــدد | AT2: حضور | AU2: إنصراف | AV2: عــدد | AW2: حضور | AX2: إنصراف | AY2: عــدد | AZ2: حضور | BA2: إنصراف | BB2: عــدد | BC2: حضور | BD2: إنصراف | BE2: عــدد | BF2: حضور | BG2: إنصراف | BH2: عــدد | BI2: حضور | BJ2: إنصراف | BK2: عــدد | BL2: حضور | BM2: إنصراف | BN2: عــدد | BO2: حضور | BP2: إنصراف | BQ2: عــدد | BR2: حضور | BS2: إنصراف | BT2: عــدد | BU2: حضور | BV2: إنصراف | BW2: عــدد | BX2: حضور | BY2: إنصراف | BZ2: عــدد | CA2: حضور | CB2: إنصراف | CC2: عــدد | CD2: حضور | CE2: إنصراف | CF2: عــدد | CG2: حضور | CH2: إنصراف | CI2: عــدد | CJ2: حضور | CK2: إنصراف | CL2: عــدد | CM2: حضور | CN2: إنصراف | CO2: عــدد | CP2: حضور | CQ2: إنصراف | CR2: عــدد | CS2: حضور | CT2: إنصراف | CU2: عــدد | CV2: حضور | CW2: إنصراف | CX2: عــدد | CY2: حضور | CZ2: إنصراف | DA2: عــدد | DB2: حضور | DC2: إنصراف | DD2: عــدد | DE2: حضور | DF2: إنصراف | DG2: عــدد | DH2: حضور | DI2: إنصراف | DJ2: عــدد | DK2: حضور | DL2: إنصراف | DM2: عــدد | DN2: حضور | DO2: إنصراف | DP2: عــدد | DQ2: حضور | DR2: إنصراف | DS2: عــدد | DT2: حضور | DU2: إنصراف | DV2: عــدد | DW2: حضور | DX2: إنصراف | DY2: عــدد | DZ2: حضور | EA2: إنصراف | EB2: عــدد | EC2: حضور | ED2: إنصراف | EE2: عــدد | EF2: حضور | EG2: إنصراف | EH2: عــدد | EI2: حضور | EJ2: إنصراف | EK2: عــدد | EL2: حضور | EM2: إنصراف | EN2: عــدد | EO2: حضور | EP2: إنصراف | EQ2: عــدد | ER2: حضور | ES2: إنصراف | ET2: عــدد | EU2: حضور | EV2: إنصراف | EW2: عــدد | EX2: حضور | EY2: إنصراف | EZ2: عــدد | FA2: حضور | FB2: إنصراف | FC2: عــدد | FD2: حضور | FE2: إنصراف | FF2: عــدد | FG2: حضور | FH2: إنصراف | FI2: عــدد | FJ2: حضور | FK2: إنصراف | FL2: عــدد | FM2: حضور | FN2: إنصراف | FO2: عــدد | FP2: حضور | FQ2: إنصراف | FR2: عــدد | FS2: حضور | FT2: إنصراف | FU2: عــدد | FV2: حضور | FW2: إنصراف | FX2: عــدد | FY2: حضور | FZ2: إنصراف | GA2: عــدد | GB2: حضور | GC2: إنصراف | GD2: عــدد | GE2: حضور | GF2: إنصراف | GG2: عــدد | GH2: حضور | GI2: إنصراف | GJ2: عــدد | GK2: حضور | GL2: إنصراف | GM2: عــدد | GN2: حضور | GO2: إنصراف | GP2: عــدد | GQ2: حضور | GR2: إنصراف | GS2: عــدد | GT2: حضور | GU2: إنصراف | GV2: عــدد | GW2: حضور | GX2: إنصراف | GY2: عــدد | GZ2: حضور | HA2: إنصراف | HB2: عــدد | HC2: حضور | HD2: إنصراف | HE2: عــدد | HF2: حضور | HG2: إنصراف | HH2: عــدد | HI2: حضور | HJ2: إنصراف | HK2: عــدد
A3: 1 | B3: =C3 -> 2025-03-01 | C3: =DATE($B$1,$A$1,COLUMN(A:A)) -> 2025-03-01 | D3: 08:00:00 | E3: 17:00:00 | F3: =(D3-$C$1)*1440+((E3-$C$1)-(9/24))*-1440 -> -7.993605777e-14 | G3: 08:00:00 | H3: 17:00:00 | I3: =(G3-$C$1)*1440+((H3-$C$1)-(9/24))*-1440 -> -7.993605777e-14 | J3: 08:00:00 | K3: 17:00:00 | L3: =(J3-$C$1)*1440+((K3-$C$1)-(9/24))*-1440 -> -7.993605777e-14 | M3: 08:00:00 | N3: 17:00:00 | O3: =(M3-$C$1)*1440+((N3-$C$1)-(9/24))*-1440 -> -7.993605777e-14 | P3: 08:00:00 | Q3: 17:00:00 | R3: =(P3-$C$1)*1440+((Q3-$C$1)-(9/24))*-1440 -> -7.993605777e-14 | S3: 08:00:00 | T3: 17:00:00 | U3: =(S3-$C$1)*1440+((T3-$C$1)-(9/24))*-1440 -> -7.993605777e-14 | V3: 08:00:00 | W3: 17:00:00 | X3: =(V3-$C$1)*1440+((W3-$C$1)-(9/24))*-1440 -> -7.993605777e-14 | Y3: 08:00:00 | Z3: 17:00:00 | AA3: =(Y3-$C$1)*1440+((Z3-$C$1)-(9/24))*-1440 -> -7.993605777e-14 | AB3: 08:00:00 | AC3: 17:00:00 | AD3: =(AB3-$C$1)*1440+((AC3-$C$1)-(9/24))*-1440 -> -7.993605777e-14 | AE3: 08:00:00 | AF3: 17:00:00 | AG3: =(AE3-$C$1)*1440+((AF3-$C$1)-(9/24))*-1440 -> -7.993605777e-14 | AH3: 08:00:00 | AI3: 17:00:00 | AJ3: =(AH3-$C$1)*1440+((AI3-$C$1)-(9/24))*-1440 -> -7.993605777e-14 | AK3: 08:00:00 | AL3: 17:00:00 | AM3: =(AK3-$C$1)*1440+((AL3-$C$1)-(9/24))*-1440 -> -7.993605777e-14 | AN3: 08:00:00 | AO3: 17:00:00 | AP3: =(AN3-$C$1)*1440+((AO3-$C$1)-(9/24))*-1440 -> -7.993605777e-14 | AQ3: 08:00:00 | AR3: 17:00:00 | AS3: =(AQ3-$C$1)*1440+((AR3-$C$1)-(9/24))*-1440 -> -7.993605777e-14 | AT3: 08:00:00 | AU3: 17:00:00 | AV3: =(AT3-$C$1)*1440+((AU3-$C$1)-(9/24))*-1440 -> -7.993605777e-14 | AW3: 08:00:00 | AX3: 17:00:00 | AY3: =(AW3-$C$1)*1440+((AX3-$C$1)-(9/24))*-1440 -> -7.993605777e-14 | AZ3: 08:00:00 | BA3: 17:00:00 | BB3: =(AZ3-$C$1)*1440+((BA3-$C$1)-(9/24))*-1440 -> -7.993605777e-14 | BC3: 08:00:00 | BD3: 17:00:00 | BE3: =(BC3-$C$1)*1440+((BD3-$C$1)-(9/24))*-1440 -> -7.993605777e-14 | BF3: 08:00:00 | BG3: 17:00:00 | BH3: =(BF3-$C$1)*1440+((BG3-$C$1)-(9/24))*-1440 -> -7.993605777e-14 | BI3: اجازة | BL3: اجازة | BO3: 08:00:00 | BP3: 18:00:00 | BQ3: =(BO3-$C$1)*1440+((BP3-$C$1)-(10/24))*-1440 -> 0 | BS3: غياب | BV3: غياب | BX3: اجازة | CA3: اجازة | CE3: غياب | CG3: اجازة | CJ3: 08:00:00 | CK3: 18:00:00 | CL3: =(CJ3-$C$1)*1440+((CK3-$C$1)-(10/24))*-1440 -> 0 | CM3: اجازة | CP3: اجازة | CS3: اجازة | CV3: 08:00:00 | CW3: 18:00:00 | CX3: =(CV3-$C$1)*1440+((CW3-$C$1)-(10/24))*-1440 -> 0 | CY3: 08:00:00 | CZ3: 18:00:00 | DA3: =(CY3-$C$1)*1440+((CZ3-$C$1)-(10/24))*-1440 -> 0 | DB3: 08:00:00 | DC3: 18:00:00 | DD3: =(DB3-$C$1)*1440+((DC3-$C$1)-(10/24))*-1440 -> 0 | DE3: 08:00:00 | DF3: 18:00:00 | DG3: =(DE3-$C$1)*1440+((DF3-$C$1)-(10/24))*-1440 -> 0 | DH3: 08:00:00 | DI3: 18:00:00 | DJ3: =(DH3-$C$1)*1440+((DI3-$C$1)-(10/24))*-1440 -> 0 | DK3: 08:00:00 | DL3: 18:00:00 | DM3: =(DK3-$C$1)*1440+((DL3-$C$1)-(10/24))*-1440 -> 0 | DN3: 08:00:00 | DO3: 18:00:00 | DP3: =(DN3-$C$1)*1440+((DO3-$C$1)-(10/24))*-1440 -> 0 | DQ3: 08:00:00 | DR3: 18:00:00 | DS3: =(DQ3-$C$1)*1440+((DR3-$C$1)-(10/24))*-1440 -> 0 | DT3: 08:00:00 | DU3: 18:00:00 | DV3: =(DT3-$C$1)*1440+((DU3-$C$1)-(10/24))*-1440 -> 0 | DW3: 08:00:00 | DX3: 18:00:00 | DY3: =(DW3-$C$1)*1440+((DX3-$C$1)-(10/24))*-1440 -> 0 | DZ3: 08:00:00 | EA3: 18:00:00 | EB3: =(DZ3-$C$1)*1440+((EA3-$C$1)-(10/24))*-1440 -> 0 | EC3: 08:00:00 | ED3: 18:00:00 | EE3: =(EC3-$C$1)*1440+((ED3-$C$1)-(10/24))*-1440 -> 0 | EF3: 08:00:00 | EG3: 18:00:00 | EH3: =(EF3-$C$1)*1440+((EG3-$C$1)-(10/24))*-1440 -> 0 | EI3: 08:00:00 | EJ3: 18:00:00 | EK3: =(EI3-$C$1)*1440+((EJ3-$C$1)-(10/24))*-1440 -> 0 | EL3: 08:00:00 | EM3: 18:00:00 | EN3: =(EL3-$C$1)*1440+((EM3-$C$1)-(10/24))*-1440 -> 0 | EO3: 08:00:00 | EP3: 18:00:00 | EQ3: =(EO3-$C$1)*1440+((EP3-$C$1)-(10/24))*-1440 -> 0 | ER3: 08:00:00 | ES3: 18:00:00 | ET3: =(ER3-$C$1)*1440+((ES3-$C$1)-(10/24))*-1440 -> 0 | EU3: 08:00:00 | EV3: 18:00:00 | EW3: =(EU3-$C$1)*1440+((EV3-$C$1)-(10/24))*-1440 -> 0 | EX3: 08:00:00 | EY3: 18:00:00 | EZ3: =(EX3-$C$1)*1440+((EY3-$C$1)-(10/24))*-1440 -> 0 | FA3: 08:00:00 | FB3: 18:00:00 | FC3: =(FA3-$C$1)*1440+((FB3-$C$1)-(10/24))*-1440 -> 0 | FD3: 08:00:00 | FE3: 18:00:00 | FF3: =(FD3-$C$1)*1440+((FE3-$C$1)-(10/24))*-1440 -> 0 | FG3: 08:00:00 | FH3: 18:00:00 | FI3: =(FG3-$C$1)*1440+((FH3-$C$1)-(10/24))*-1440 -> 0 | FJ3: 08:00:00 | FK3: 18:00:00 | FL3: =(FJ3-$C$1)*1440+((FK3-$C$1)-(10/24))*-1440 -> 0 | FM3: 08:00:00 | FN3: 18:00:00 | FO3: =(FM3-$C$1)*1440+((FN3-$C$1)-(10/24))*-1440 -> 0 | FP3: 08:00:00 | FQ3: 18:00:00 | FR3: =(FP3-$C$1)*1440+((FQ3-$C$1)-(10/24))*-1440 -> 0 | FS3: 08:00:00 | FT3: 18:00:00 | FU3: =(FS3-$C$1)*1440+((FT3-$C$1)-(10/24))*-1440 -> 0 | FV3: 08:00:00 | FW3: 18:00:00 | FX3: =(FV3-$C$1)*1440+((FW3-$C$1)-(10/24))*-1440 -> 0 | FY3: 08:00:00 | FZ3: 18:00:00 | GA3: =(FY3-$C$1)*1440+((FZ3-$C$1)-(10/24))*-1440 -> 0 | GB3: 08:00:00 | GC3: 18:00:00 | GD3: =(GB3-$C$1)*1440+((GC3-$C$1)-(10/24))*-1440 -> 0 | GE3: 08:00:00 | GF3: 18:00:00 | GG3: =(GE3-$C$1)*1440+((GF3-$C$1)-(10/24))*-1440 -> 0 | GH3: 08:00:00 | GI3: 18:00:00 | GJ3: =(GH3-$C$1)*1440+((GI3-$C$1)-(10/24))*-1440 -> 0 | GK3: 08:00:00 | GL3: 18:00:00 | GM3: =(GK3-$C$1)*1440+((GL3-$C$1)-(10/24))*-1440 -> 0 | GN3: 08:00:00 | GO3: 18:00:00 | GP3: =(GN3-$C$1)*1440+((GO3-$C$1)-(10/24))*-1440 -> 0 | GQ3: 08:00:00 | GR3: 18:00:00 | GS3: =(GQ3-$C$1)*1440+((GR3-$C$1)-(10/24))*-1440 -> 0 | GT3: 08:00:00 | GU3: 18:00:00 | GV3: =(GT3-$C$1)*1440+((GU3-$C$1)-(10/24))*-1440 -> 0 | GW3: 08:00:00 | GX3: 18:00:00 | GY3: =(GW3-$C$1)*1440+((GX3-$C$1)-(10/24))*-1440 -> 0 | GZ3: 08:00:00 | HA3: 18:00:00 | HB3: =(GZ3-$C$1)*1440+((HA3-$C$1)-(10/24))*-1440 -> 0 | HC3: 08:00:00 | HD3: 18:00:00 | HE3: =(HC3-$C$1)*1440+((HD3-$C$1)-(10/24))*-1440 -> 0 | HF3: 08:00:00 | HG3: 18:00:00 | HH3: =(HF3-$C$1)*1440+((HG3-$C$1)-(10/24))*-1440 -> 0 | HI3: 08:00:00 | HJ3: 18:00:00 | HK3: =(HI3-$C$1)*1440+((HJ3-$C$1)-(10/24))*-1440 -> 0
A4: 2 | B4: =TEXT(C4,"DDD") -> الأحد | C4: =C3+1 -> 2025-03-02 | D4: 08:00:00 | E4: 17:00:00 | F4: -7.993605777e-14 | G4: 08:00:00 | H4: 17:00:00 | I4: -7.993605777e-14 | J4: 08:00:00 | K4: 17:00:00 | L4: -7.993605777e-14 | M4: 08:00:00 | N4: 17:00:00 | O4: -7.993605777e-14 | P4: 08:00:00 | Q4: 17:00:00 | R4: -7.993605777e-14 | S4: 08:00:00 | T4: 17:00:00 | U4: -7.993605777e-14 | V4: 08:00:00 | W4: 17:00:00 | X4: -7.993605777e-14 | Y4: 08:00:00 | Z4: 17:00:00 | AA4: -7.993605777e-14 | AB4: 08:00:00 | AC4: 17:00:00 | AD4: -7.993605777e-14 | AE4: 08:00:00 | AF4: 17:00:00 | AG4: -7.993605777e-14 | AH4: 08:00:00 | AI4: 17:00:00 | AJ4: -7.993605777e-14 | AK4: 08:00:00 | AL4: 17:00:00 | AM4: -7.993605777e-14 | AN4: 08:00:00 | AO4: 17:00:00 | AP4: -7.993605777e-14 | AQ4: 08:00:00 | AR4: 17:00:00 | AS4: -7.993605777e-14 | AT4: 08:00:00 | AU4: 17:00:00 | AV4: -7.993605777e-14 | AW4: 08:00:00 | AX4: 17:00:00 | AY4: -7.993605777e-14 | AZ4: 08:00:00 | BA4: 17:00:00 | BB4: -7.993605777e-14 | BC4: 08:00:00 | BD4: 17:00:00 | BE4: -7.993605777e-14 | BF4: 08:00:00 | BG4: 17:00:00 | BH4: -7.993605777e-14 | BI4: اجازة | BL4: اجازة | BO4: 08:00:00 | BP4: 18:00:00 | BQ4: 0 | BS4: غياب | BV4: غياب | BX4: اجازة | CA4: اجازة | CE4: غياب | CG4: اجازة | CJ4: 08:00:00 | CK4: 18:00:00 | CL4: 0 | CM4: اجازة | CP4: اجازة | CS4: اجازة | CV4: 08:00:00 | CW4: 18:00:00 | CX4: 0 | CY4: 08:00:00 | CZ4: 18:00:00 | DA4: 0 | DB4: 08:00:00 | DC4: 18:00:00 | DD4: 0 | DE4: 08:00:00 | DF4: 18:00:00 | DG4: 0 | DH4: 08:00:00 | DI4: 18:00:00 | DJ4: 0 | DK4: 08:00:00 | DL4: 18:00:00 | DM4: 0 | DP4: 600 | DS4: 600 | DV4: 600 | DY4: 600 | EB4: 600 | EE4: 600 | EH4: 600 | EK4: 600 | EN4: 600 | EQ4: 600 | ET4: 600 | EW4: 600 | EZ4: 600 | FC4: 600 | FF4: 600 | FI4: 600 | FL4: 600 | FO4: 600 | FR4: 600 | FU4: 600 | FX4: 600 | GA4: 600 | GD4: 600 | GG4: 600 | GJ4: 600 | GM4: 600 | GP4: 600 | GS4: 600 | GV4: 600 | GY4: 600 | HB4: 600 | HE4: 600 | HH4: 600 | HK4: 600
A5: 3 | B5: الإثنين | C5: =C4+1 -> 2025-03-03 | D5: 08:00:00 | E5: 17:00:00 | F5: -7.993605777e-14 | G5: 08:00:00 | H5: 17:00:00 | I5: -7.993605777e-14 | J5: 08:00:00 | K5: 17:00:00 | L5: -7.993605777e-14 | M5: 08:00:00 | N5: 17:00:00 | O5: -7.993605777e-14 | P5: 08:00:00 | Q5: 17:00:00 | R5: -7.993605777e-14 | S5: 08:00:00 | T5: 17:00:00 | U5: -7.993605777e-14 | V5: 08:00:00 | W5: 17:00:00 | X5: -7.993605777e-14 | Y5: 08:00:00 | Z5: 17:00:00 | AA5: -7.993605777e-14 | AB5: 08:00:00 | AC5: 17:00:00 | AD5: -7.993605777e-14 | AE5: 08:00:00 | AF5: 17:00:00 | AG5: -7.993605777e-14 | AH5: 08:00:00 | AI5: 17:00:00 | AJ5: -7.993605777e-14 | AK5: 08:00:00 | AL5: 17:00:00 | AM5: -7.993605777e-14 | AN5: 08:00:00 | AO5: 17:00:00 | AP5: -7.993605777e-14 | AQ5: 08:00:00 | AR5: 17:00:00 | AS5: -7.993605777e-14 | AT5: 08:00:00 | AU5: 17:00:00 | AV5: -7.993605777e-14 | AW5: 08:00:00 | AX5: 17:00:00 | AY5: -7.993605777e-14 | AZ5: 08:00:00 | BA5: 17:00:00 | BB5: -7.993605777e-14 | BC5: 08:00:00 | BD5: 17:00:00 | BE5: -7.993605777e-14 | BF5: 08:00:00 | BG5: 17:00:00 | BH5: -7.993605777e-14 | BI5: اجازة | BL5: اجازة | BO5: 08:00:00 | BP5: 18:00:00 | BQ5: -4.796163466e-13 | BS5: غياب | BV5: غياب | BX5: اجازة | CA5: اجازة | CE5: غياب | CG5: اجازة | CJ5: 08:00:00 | CK5: 18:00:00 | CL5: -4.796163466e-13 | CM5: 08:00:00 | CN5: 18:00:00 | CO5: =(CM5-$C$1)*1440+((CN5-$C$1)-(10/24))*-1440 -> -4.796163466e-13 | CP5: 08:00:00 | CQ5: 18:00:00 | CR5: =(CP5-$C$1)*1440+((CQ5-$C$1)-(10/24))*-1440 -> -4.796163466e-13 | CS5: اجازة | CV5: 08:00:00 | CW5: 18:00:00 | CX5: -4.796163466e-13 | CY5: 08:00:00 | CZ5: 18:00:00 | DA5: -4.796163466e-13 | DB5: 08:00:00 | DC5: 18:00:00 | DD5: -4.796163466e-13 | DE5: 08:00:00 | DF5: 18:00:00 | DG5: -4.796163466e-13 | DH5: 08:00:00 | DI5: 18:00:00 | DJ5: -4.796163466e-13 | DK5: 08:00:00 | DL5: 18:00:00 | DM5: -4.796163466e-13 | DP5: 600 | DS5: 600 | DV5: 600 | DY5: 600 | EB5: 600 | EE5: 600 | EH5: 600 | EK5: 600 | EN5: 600 | EQ5: 600 | ET5: 600 | EW5: 600 | EZ5: 600 | FC5: 600 | FF5: 600 | FI5: 600 | FL5: 600 | FO5: 600 | FR5: 600 | FU5: 600 | FX5: 600 | GA5: 600 | GD5: 600 | GG5: 600 | GJ5: 600 | GM5: 600 | GP5: 600 | GS5: 600 | GV5: 600 | GY5: 600 | HB5: 600 | HE5: 600 | HH5: 600 | HK5: 600
A6: 4 | B6: الثلاثاء | C6: 2025-03-04 | D6: 08:00:00 | E6: 17:00:00 | F6: -7.993605777e-14 | G6: 08:00:00 | H6: 17:00:00 | I6: =(G6-$C$1)*1440+((H6-$C$1)-(9/24))*-1440 -> -7.993605777e-14 | J6: 08:00:00 | K6: 17:00:00 | L6: -7.993605777e-14 | M6: 08:00:00 | N6: 17:00:00 | O6: -7.993605777e-14 | P6: 08:00:00 | Q6: 17:00:00 | R6: -7.993605777e-14 | S6: 08:00:00 | T6: 17:00:00 | U6: -7.993605777e-14 | V6: 08:00:00 | W6: 17:00:00 | X6: -7.993605777e-14 | Y6: 08:00:00 | Z6: 17:00:00 | AA6: -7.993605777e-14 | AB6: 08:00:00 | AC6: 17:00:00 | AD6: -7.993605777e-14 | AE6: 08:00:00 | AF6: 17:00:00 | AG6: -7.993605777e-14 | AH6: 08:00:00 | AI6: 17:00:00 | AJ6: -7.993605777e-14 | AK6: 08:00:00 | AL6: 17:00:00 | AM6: -7.993605777e-14 | AN6: 08:00:00 | AO6: 17:00:00 | AP6: -7.993605777e-14 | AQ6: 08:00:00 | AR6: 17:00:00 | AS6: -7.993605777e-14 | AT6: 08:00:00 | AU6: 17:00:00 | AV6: -7.993605777e-14 | AW6: 08:00:00 | AX6: 17:00:00 | AY6: -7.993605777e-14 | AZ6: 08:00:00 | BA6: 17:00:00 | BB6: -7.993605777e-14 | BC6: 08:00:00 | BD6: 17:00:00 | BE6: -7.993605777e-14 | BF6: 08:00:00 | BG6: 17:00:00 | BH6: -7.993605777e-14 | BI6: اجازة | BL6: اجازة | BO6: 08:00:00 | BP6: 18:00:00 | BQ6: -4.796163466e-13 | BS6: غياب | BV6: غياب | BX6: اجازة | CA6: اجازة | CE6: غياب | CG6: اجازة | CJ6: 08:00:00 | CK6: 18:00:00 | CL6: -4.796163466e-13 | CM6: 08:00:00 | CN6: 18:00:00 | CO6: -4.796163466e-13 | CP6: 08:30:00 | CQ6: 18:00:00 | CR6: 30 | CS6: اجازة | CV6: 08:00:00 | CW6: 18:00:00 | CX6: -4.796163466e-13 | CY6: 08:00:00 | CZ6: 18:00:00 | DA6: -4.796163466e-13 | DB6: 08:00:00 | DC6: 18:00:00 | DD6: -4.796163466e-13 | DE6: 08:00:00 | DF6: 18:00:00 | DG6: -4.796163466e-13 | DH6: 08:00:00 | DI6: 18:00:00 | DJ6: -4.796163466e-13 | DK6: 08:00:00 | DL6: 18:00:00 | DM6: -4.796163466e-13 | DP6: 600 | DS6: 600 | DV6: 600 | DY6: 600 | EB6: 600 | EE6: 600 | EH6: 600 | EK6: 600 | EN6: 600 | EQ6: 600 | ET6: 600 | EW6: 600 | EZ6: 600 | FC6: 600 | FF6: 600 | FI6: 600 | FL6: 600 | FO6: 600 | FR6: 600 | FU6: 600 | FX6: 600 | GA6: 600 | GD6: 600 | GG6: 600 | GJ6: 600 | GM6: 600 | GP6: 600 | GS6: 600 | GV6: 600 | GY6: 600 | HB6: 600 | HE6: 600 | HH6: 600 | HK6: 600
A7: 5 | B7: الأربعاء | C7: 2025-03-05 | D7: 08:00:00 | E7: 17:00:00 | F7: -7.993605777e-14 | G7: 08:00:00 | H7: 17:00:00 | I7: -7.993605777e-14 | J7: 08:00:00 | K7: 17:00:00 | L7: -7.993605777e-14 | M7: 08:00:00 | N7: 17:00:00 | O7: -7.993605777e-14 | P7: 08:00:00 | Q7: 17:00:00 | R7: -7.993605777e-14 | S7: 08:00:00 | T7: 17:00:00 | U7: -7.993605777e-14 | V7: 08:00:00 | W7: 17:00:00 | X7: -7.993605777e-14 | Y7: 08:00:00 | Z7: 17:00:00 | AA7: -7.993605777e-14 | AB7: 08:00:00 | AC7: 17:00:00 | AD7: -7.993605777e-14 | AE7: 08:00:00 | AF7: 17:00:00 | AG7: -7.993605777e-14 | AH7: 08:00:00 | AI7: 17:00:00 | AJ7: -7.993605777e-14 | AK7: 08:00:00 | AL7: 17:00:00 | AM7: -7.993605777e-14 | AN7: 08:00:00 | AO7: 17:00:00 | AP7: -7.993605777e-14 | AQ7: 08:00:00 | AR7: 17:00:00 | AS7: -7.993605777e-14 | AT7: 08:00:00 | AU7: 17:00:00 | AV7: -7.993605777e-14 | AW7: 08:00:00 | AX7: 17:00:00 | AY7: -7.993605777e-14 | AZ7: 08:00:00 | BA7: 17:00:00 | BB7: -7.993605777e-14 | BC7: 08:00:00 | BD7: 17:00:00 | BE7: -7.993605777e-14 | BF7: 08:00:00 | BG7: 17:00:00 | BH7: -7.993605777e-14 | BI7: 08:00:00 | BJ7: 18:00:00 | BK7: =(BI7-$C$1)*1440+((BJ7-$C$1)-(10/24))*-1440 -> -4.796163466e-13 | BL7: اجازة | BO7: 08:00:00 | BP7: 18:00:00 | BQ7: -4.796163466e-13 | BR7: 08:00:00 | BS7: 18:00:00 | BT7: =(BR7-$C$1)*1440+((BS7-$C$1)-(10/24))*-1440 -> -4.796163466e-13 | BV7: غياب | BX7: اجازة | CB7: غياب | CE7: غياب | CH7: نص | CJ7: 08:00:00 | CK7: 18:00:00 | CL7: -4.796163466e-13 | CM7: 08:00:00 | CN7: 18:00:00 | CO7: -4.796163466e-13 | CQ7: غياب | CS7: اجازة | CV7: 08:00:00 | CW7: 18:00:00 | CX7: -4.796163466e-13 | CY7: 08:00:00 | CZ7: 18:00:00 | DA7: -4.796163466e-13 | DB7: 08:00:00 | DC7: 18:00:00 | DD7: -4.796163466e-13 | DE7: 08:00:00 | DF7: 18:00:00 | DG7: -4.796163466e-13 | DH7: 08:00:00 | DI7: 18:00:00 | DJ7: -4.796163466e-13 | DK7: 08:00:00 | DL7: 18:00:00 | DM7: -4.796163466e-13 | DP7: 600 | DS7: 600 | DV7: 600 | DY7: 600 | EB7: 600 | EE7: 600 | EH7: 600 | EK7: 600 | EN7: 600 | EQ7: 600 | ET7: 600 | EW7: 600 | EZ7: 600 | FC7: 600 | FF7: 600 | FI7: 600 | FL7: 600 | FO7: 600 | FR7: 600 | FU7: 600 | FX7: 600 | GA7: 600 | GD7: 600 | GG7: 600 | GJ7: 600 | GM7: 600 | GP7: 600 | GS7: 600 | GV7: 600 | GY7: 600 | HB7: 600 | HE7: 600 | HH7: 600 | HK7: 600
A8: 6 | B8: الخميس | C8: 2025-03-06 | D8: 08:00:00 | E8: 17:00:00 | F8: -7.993605777e-14 | G8: 08:00:00 | H8: 17:00:00 | I8: -7.993605777e-14 | J8: 08:00:00 | K8: 17:00:00 | L8: -7.993605777e-14 | M8: 08:00:00 | N8: 17:00:00 | O8: -7.993605777e-14 | P8: 08:00:00 | Q8: 17:00:00 | R8: -7.993605777e-14 | S8: 08:00:00 | T8: 17:00:00 | U8: -7.993605777e-14 | V8: 08:00:00 | W8: 17:00:00 | X8: -7.993605777e-14 | Y8: 08:00:00 | Z8: 17:00:00 | AA8: -7.993605777e-14 | AB8: 08:00:00 | AC8: 17:00:00 | AD8: -7.993605777e-14 | AE8: 08:00:00 | AF8: 17:00:00 | AG8: -7.993605777e-14 | AH8: 08:00:00 | AI8: 17:00:00 | AJ8: -7.993605777e-14 | AK8: 08:00:00 | AL8: 17:00:00 | AM8: -7.993605777e-14 | AN8: 08:00:00 | AO8: 17:00:00 | AP8: -7.993605777e-14 | AQ8: 08:00:00 | AR8: 17:00:00 | AS8: -7.993605777e-14 | AT8: 08:00:00 | AU8: 17:00:00 | AV8: -7.993605777e-14 | AW8: 08:00:00 | AX8: 17:00:00 | AY8: -7.993605777e-14 | AZ8: 08:00:00 | BA8: 17:00:00 | BB8: -7.993605777e-14 | BC8: 08:00:00 | BD8: 17:00:00 | BE8: -7.993605777e-14 | BF8: 08:00:00 | BG8: 17:00:00 | BH8: -7.993605777e-14 | BI8: 08:00:00 | BJ8: 18:00:00 | BK8: -4.796163466e-13 | BL8: 12:30:00 | BM8: 18:00:00 | BN8: =(BL8-$C$1)*1440+((BM8-$C$1)-(8/24))*-1440 -> 150 | BO8: 08:00:00 | BP8: 18:00:00 | BQ8: -4.796163466e-13 | BR8: 08:00:00 | BS8: 18:00:00 | BT8: -4.796163466e-13 | BV8: غياب | BX8: 08:00:00 | BY8: 18:00:00 | BZ8: =(BX8-$C$1)*1440+((BY8-$C$1)-(10/24))*-1440 -> -4.796163466e-13 | CA8: 13:00:00 | CB8: 18:00:00 | CD8: 14:00:00 | CE8: 18:00:00 | CF8: =(CD8-$C$1)*1440+((CE8-$C$1)-(8/24))*-1440 -> 240 | CG8: 14:00:00 | CH8: 18:00:00 | CI8: =(CG8-$C$1)*1440+((CH8-$C$1)-(8/24))*-1440 -> 240 | CJ8: 08:00:00 | CK8: 18:00:00 | CL8: -4.796163466e-13 | CM8: 08:00:00 | CN8: 18:00:00 | CO8: -4.796163466e-13 | CP8: 08:00:00 | CQ8: 18:00:00 | CR8: -4.796163466e-13 | CS8: اجازة | CV8: 08:00:00 | CW8: 18:00:00 | CX8: -4.796163466e-13 | CY8: 08:00:00 | CZ8: 18:00:00 | DA8: -4.796163466e-13 | DB8: 08:00:00 | DC8: 18:00:00 | DD8: -4.796163466e-13 | DE8: 08:00:00 | DF8: 18:00:00 | DG8: -4.796163466e-13 | DH8: 08:00:00 | DI8: 18:00:00 | DJ8: -4.796163466e-13 | DK8: 08:00:00 | DL8: 18:00:00 | DM8: -4.796163466e-13 | DP8: 600 | DS8: 600 | DV8: 600 | DY8: 600 | EB8: 600 | EE8: 600 | EH8: 600 | EK8: 600 | EN8: 600 | EQ8: 600 | ET8: 600 | EW8: 600 | EZ8: 600 | FC8: 600 | FF8: 600 | FI8: 600 | FL8: 600 | FO8: 600 | FR8: 600 | FU8: 600 | FX8: 600 | GA8: 600 | GD8: 600 | GG8: 600 | GJ8: 600 | GM8: 600 | GP8: 600 | GS8: 600 | GV8: 600 | GY8: 600 | HB8: 600 | HE8: 600 | HH8: 600 | HK8: 600
A9: 7 | B9: الجمعة | C9: 2025-03-07 | D9: 08:00:00 | E9: 17:00:00 | F9: -7.993605777e-14 | G9: 08:00:00 | H9: 17:00:00 | I9: -7.993605777e-14 | J9: 08:00:00 | K9: 17:00:00 | L9: -7.993605777e-14 | M9: 08:00:00 | N9: 17:00:00 | O9: -7.993605777e-14 | P9: 08:00:00 | Q9: 17:00:00 | R9: -7.993605777e-14 | S9: 08:00:00 | T9: 17:00:00 | U9: -7.993605777e-14 | V9: 08:00:00 | W9: 17:00:00 | X9: -7.993605777e-14 | Y9: 08:00:00 | Z9: 17:00:00 | AA9: -7.993605777e-14 | AB9: 08:00:00 | AC9: 17:00:00 | AD9: -7.993605777e-14 | AE9: 08:00:00 | AF9: 17:00:00 | AG9: -7.993605777e-14 | AH9: 08:00:00 | AI9: 17:00:00 | AJ9: -7.993605777e-14 | AK9: 08:00:00 | AL9: 17:00:00 | AM9: -7.993605777e-14 | AN9: 08:00:00 | AO9: 17:00:00 | AP9: -7.993605777e-14 | AQ9: 08:00:00 | AR9: 17:00:00 | AS9: -7.993605777e-14 | AT9: 08:00:00 | AU9: 17:00:00 | AV9: -7.993605777e-14 | AW9: 08:00:00 | AX9: 17:00:00 | AY9: -7.993605777e-14 | AZ9: 08:00:00 | BA9: 17:00:00 | BB9: -7.993605777e-14 | BC9: 08:00:00 | BD9: 17:00:00 | BE9: -7.993605777e-14 | BF9: 08:00:00 | BG9: 17:00:00 | BH9: -7.993605777e-14 | BI9: 08:00:00 | BJ9: 18:00:00 | BK9: -4.796163466e-13 | BL9: 08:00:00 | BM9: 18:00:00 | BN9: =(BL9-$C$1)*1440+((BM9-$C$1)-(10/24))*-1440 -> -4.796163466e-13 | BO9: 08:00:00 | BP9: 18:00:00 | BQ9: -4.796163466e-13 | BR9: 08:00:00 | BS9: 18:00:00 | BT9: -4.796163466e-13 | BV9: غياب | BX9: 08:00:00 | BY9: 18:00:00 | BZ9: -4.796163466e-13 | CA9: 08:00:00 | CB9: 18:00:00 | CC9: =(CA9-$C$1)*1440+((CB9-$C$1)-(10/24))*-1440 -> -4.796163466e-13 | CD9: 08:00:00 | CE9: 18:00:00 | CF9: =(CD9-$C$1)*1440+((CE9-$C$1)-(10/24))*-1440 -> -4.796163466e-13 | CG9: 08:00:00 | CH9: 18:00:00 | CI9: =(CG9-$C$1)*1440+((CH9-$C$1)-(10/24))*-1440 -> -4.796163466e-13 | CJ9: 08:00:00 | CK9: 18:00:00 | CL9: -4.796163466e-13 | CM9: 08:00:00 | CN9: 18:00:00 | CO9: -4.796163466e-13 | CP9: اجازة | CT9: غياب | CV9: 08:00:00 | CW9: 18:00:00 | CX9: -4.796163466e-13 | CY9: 08:00:00 | CZ9: 18:00:00 | DA9: -4.796163466e-13 | DB9: 08:00:00 | DC9: 18:00:00 | DD9: -4.796163466e-13 | DE9: 08:00:00 | DF9: 18:00:00 | DG9: -4.796163466e-13 | DH9: 08:00:00 | DI9: 18:00:00 | DJ9: -4.796163466e-13 | DK9: 08:00:00 | DL9: 18:00:00 | DM9: -4.796163466e-13 | DP9: 600 | DS9: 600 | DV9: 600 | DY9: 600 | EB9: 600 | EE9: 600 | EH9: 600 | EK9: 600 | EN9: 600 | EQ9: 600 | ET9: 600 | EW9: 600 | EZ9: 600 | FC9: 600 | FF9: 600 | FI9: 600 | FL9: 600 | FO9: 600 | FR9: 600 | FU9: 600 | FX9: 600 | GA9: 600 | GD9: 600 | GG9: 600 | GJ9: 600 | GM9: 600 | GP9: 600 | GS9: 600 | GV9: 600 | GY9: 600 | HB9: 600 | HE9: 600 | HH9: 600 | HK9: 600
A10: 8 | B10: السبت | C10: 2025-03-08 | D10: 08:00:00 | E10: 17:00:00 | F10: -7.993605777e-14 | G10: 08:00:00 | H10: 17:00:00 | I10: -7.993605777e-14 | J10: 08:00:00 | K10: 17:00:00 | L10: -7.993605777e-14 | M10: 08:00:00 | N10: 17:00:00 | O10: -7.993605777e-14 | P10: 08:00:00 | Q10: 17:00:00 | R10: -7.993605777e-14 | S10: 08:00:00 | T10: 17:00:00 | U10: -7.993605777e-14 | V10: 08:00:00 | W10: 17:00:00 | X10: -7.993605777e-14 | Y10: 08:00:00 | Z10: 17:00:00 | AA10: -7.993605777e-14 | AB10: 08:00:00 | AC10: 17:00:00 | AD10: -7.993605777e-14 | AE10: 08:00:00 | AF10: 17:00:00 | AG10: -7.993605777e-14 | AH10: 08:00:00 | AI10: 17:00:00 | AJ10: -7.993605777e-14 | AK10: 08:00:00 | AL10: 17:00:00 | AM10: -7.993605777e-14 | AN10: 08:00:00 | AO10: 17:00:00 | AP10: -7.993605777e-14 | AQ10: 08:00:00 | AR10: 17:00:00 | AS10: -7.993605777e-14 | AT10: 08:00:00 | AU10: 17:00:00 | AV10: -7.993605777e-14 | AW10: 08:00:00 | AX10: 17:00:00 | AY10: -7.993605777e-14 | AZ10: 08:00:00 | BA10: 17:00:00 | BB10: -7.993605777e-14 | BC10: 08:00:00 | BD10: 17:00:00 | BE10: -7.993605777e-14 | BF10: 08:00:00 | BG10: 17:00:00 | BH10: -7.993605777e-14 | BI10: 08:00:00 | BJ10: 18:00:00 | BK10: -4.796163466e-13 | BL10: 08:00:00 | BM10: 18:00:00 | BN10: -4.796163466e-13 | BO10: 08:00:00 | BP10: 18:00:00 | BQ10: -4.796163466e-13 | BR10: 08:00:00 | BS10: 18:00:00 | BT10: -4.796163466e-13 | BU10: 08:00:00 | BV10: 18:00:00 | BW10: =(BU10-$C$1)*1440+((BV10-$C$1)-(10/24))*-1440 -> -4.796163466e-13 | BX10: 08:00:00 | BY10: 18:00:00 | BZ10: -4.796163466e-13 | CA10: 08:00:00 | CB10: 18:00:00 | CC10: -4.796163466e-13 | CD10: 08:00:00 | CE10: 18:00:00 | CF10: -4.796163466e-13 | CG10: 08:00:00 | CH10: 18:00:00 | CI10: -4.796163466e-13 | CJ10: 08:00:00 | CK10: 18:00:00 | CL10: -4.796163466e-13 | CM10: 08:00:00 | CN10: 18:00:00 | CO10: -4.796163466e-13 | CP10: 08:00:00 | CQ10: 11:00:00 | CR10: =(CP10-$C$1)*1440+((CQ10-$C$1)-(8/24))*-1440 -> 300 | CS10: 08:00:00 | CT10: 18:00:00 | CU10: =(CS10-$C$1)*1440+((CT10-$C$1)-(10/24))*-1440 -> -4.796163466e-13 | CV10: 08:00:00 | CW10: 18:00:00 | CX10: -4.796163466e-13 | CY10: 08:00:00 | CZ10: 18:00:00 | DA10: -4.796163466e-13 | DB10: 08:00:00 | DC10: 18:00:00 | DD10: -4.796163466e-13 | DE10: 08:00:00 | DF10: 18:00:00 | DG10: -4.796163466e-13 | DH10: 08:00:00 | DI10: 18:00:00 | DJ10: -4.796163466e-13 | DK10: 08:00:00 | DL10: 18:00:00 | DM10: -4.796163466e-13 | DP10: 600 | DS10: 600 | DV10: 600 | DY10: 600 | EB10: 600 | EE10: 600 | EH10: 600 | EK10: 600 | EN10: 600 | EQ10: 600 | ET10: 600 | EW10: 600 | EZ10: 600 | FC10: 600 | FF10: 600 | FI10: 600 | FL10: 600 | FO10: 600 | FR10: 600 | FU10: 600 | FX10: 600 | GA10: 600 | GD10: 600 | GG10: 600 | GJ10: 600 | GM10: 600 | GP10: 600 | GS10: 600 | GV10: 600 | GY10: 600 | HB10: 600 | HE10: 600 | HH10: 600 | HK10: 600
A11: 9 | B11: الأحد | C11: 2025-03-09 | D11: 08:00:00 | E11: 17:00:00 | F11: -7.993605777e-14 | G11: 08:00:00 | H11: 17:00:00 | I11: -7.993605777e-14 | J11: 08:00:00 | K11: 17:00:00 | L11: -7.993605777e-14 | M11: 08:00:00 | N11: 17:00:00 | O11: -7.993605777e-14 | P11: 08:00:00 | Q11: 17:00:00 | R11: -7.993605777e-14 | S11: 08:00:00 | T11: 17:00:00 | U11: -7.993605777e-14 | V11: 08:00:00 | W11: 17:00:00 | X11: -7.993605777e-14 | Y11: 08:00:00 | Z11: 17:00:00 | AA11: -7.993605777e-14 | AB11: 08:00:00 | AC11: 17:00:00 | AD11: -7.993605777e-14 | AE11: 08:00:00 | AF11: 17:00:00 | AG11: -7.993605777e-14 | AH11: 08:00:00 | AI11: 17:00:00 | AJ11: -7.993605777e-14 | AK11: 08:00:00 | AL11: 17:00:00 | AM11: -7.993605777e-14 | AN11: 08:00:00 | AO11: 17:00:00 | AP11: -7.993605777e-14 | AQ11: 08:00:00 | AR11: 17:00:00 | AS11: -7.993605777e-14 | AT11: 08:00:00 | AU11: 17:00:00 | AV11: -7.993605777e-14 | AW11: 08:00:00 | AX11: 17:00:00 | AY11: -7.993605777e-14 | AZ11: 08:00:00 | BA11: 17:00:00 | BB11: -7.993605777e-14 | BC11: 08:00:00 | BD11: 17:00:00 | BE11: -7.993605777e-14 | BF11: 08:00:00 | BG11: 17:00:00 | BH11: -7.993605777e-14 | BI11: 08:00:00 | BJ11: 18:00:00 | BK11: -4.796163466e-13 | BL11: 08:00:00 | BM11: 18:00:00 | BN11: -4.796163466e-13 | BO11: 08:00:00 | BP11: 18:00:00 | BQ11: -4.796163466e-13 | BR11: 08:00:00 | BS11: 18:00:00 | BT11: -4.796163466e-13 | BU11: 08:00:00 | BV11: 18:00:00 | BW11: -4.796163466e-13 | BX11: 08:00:00 | BY11: 18:00:00 | BZ11: -4.796163466e-13 | CA11: 08:00:00 | CB11: 18:00:00 | CC11: -4.796163466e-13 | CD11: 08:00:00 | CE11: 18:00:00 | CF11: -4.796163466e-13 | CG11: 08:00:00 | CH11: 18:00:00 | CI11: -4.796163466e-13 | CJ11: 08:00:00 | CK11: 18:00:00 | CL11: -4.796163466e-13 | CM11: 08:00:00 | CN11: 18:00:00 | CO11: -4.796163466e-13 | CP11: 08:00:00 | CQ11: 18:00:00 | CR11: -4.796163466e-13 | CS11: 08:00:00 | CT11: 18:00:00 | CU11: -4.796163466e-13 | CV11: 08:00:00 | CW11: 18:00:00 | CX11: -4.796163466e-13 | CY11: 08:00:00 | CZ11: 18:00:00 | DA11: -4.796163466e-13 | DB11: 08:00:00 | DC11: 18:00:00 | DD11: -4.796163466e-13 | DE11: 08:00:00 | DF11: 18:00:00 | DG11: -4.796163466e-13 | DH11: 08:00:00 | DI11: 18:00:00 | DJ11: -4.796163466e-13 | DK11: 08:00:00 | DL11: 18:00:00 | DM11: -4.796163466e-13 | DP11: 600 | DS11: 600 | DV11: 600 | DY11: 600 | EB11: 600 | EE11: 600 | EH11: 600 | EK11: 600 | EN11: 600 | EQ11: 600 | ET11: 600 | EW11: 600 | EZ11: 600 | FC11: 600 | FF11: 600 | FI11: 600 | FL11: 600 | FO11: 600 | FR11: 600 | FU11: 600 | FX11: 600 | GA11: 600 | GD11: 600 | GG11: 600 | GJ11: 600 | GM11: 600 | GP11: 600 | GS11: 600 | GV11: 600 | GY11: 600 | HB11: 600 | HE11: 600 | HH11: 600 | HK11: 600
A12: 10 | B12: الإثنين | C12: 2025-03-10 | D12: 08:00:00 | E12: 17:00:00 | F12: -7.993605777e-14 | G12: 08:00:00 | H12: 17:00:00 | I12: -7.993605777e-14 | J12: 08:00:00 | K12: 17:00:00 | L12: -7.993605777e-14 | M12: 08:00:00 | N12: 17:00:00 | O12: -7.993605777e-14 | P12: 08:00:00 | Q12: 17:00:00 | R12: -7.993605777e-14 | S12: 08:00:00 | T12: 17:00:00 | U12: -7.993605777e-14 | V12: 08:00:00 | W12: 17:00:00 | X12: -7.993605777e-14 | Y12: 08:00:00 | Z12: 17:00:00 | AA12: -7.993605777e-14 | AB12: 08:00:00 | AC12: 17:00:00 | AD12: -7.993605777e-14 | AE12: 08:00:00 | AF12: 17:00:00 | AG12: -7.993605777e-14 | AH12: 08:00:00 | AI12: 17:00:00 | AJ12: -7.993605777e-14 | AK12: 08:00:00 | AL12: 17:00:00 | AM12: -7.993605777e-14 | AN12: 08:00:00 | AO12: 17:00:00 | AP12: -7.993605777e-14 | AQ12: 08:00:00 | AR12: 17:00:00 | AS12: -7.993605777e-14 | AT12: 08:00:00 | AU12: 17:00:00 | AV12: -7.993605777e-14 | AW12: 08:00:00 | AX12: 17:00:00 | AY12: -7.993605777e-14 | AZ12: 08:00:00 | BA12: 17:00:00 | BB12: -7.993605777e-14 | BC12: 08:00:00 | BD12: 17:00:00 | BE12: -7.993605777e-14 | BF12: 08:00:00 | BG12: 17:00:00 | BH12: -7.993605777e-14 | BI12: 08:00:00 | BJ12: 18:00:00 | BK12: =(BI12-$C$1)*1440+((BJ12-$C$1)-(10/24))*-1440 -> -4.796163466e-13 | BL12: 08:00:00 | BM12: 18:00:00 | BN12: -4.796163466e-13 | BO12: 08:00:00 | BP12: 18:00:00 | BQ12: -4.796163466e-13 | BR12: 08:00:00 | BS12: 18:00:00 | BT12: -4.796163466e-13 | BU12: 08:00:00 | BV12: 18:00:00 | BW12: -4.796163466e-13 | BX12: 08:00:00 | BY12: 18:00:00 | BZ12: -4.796163466e-13 | CA12: 08:00:00 | CB12: 18:00:00 | CC12: -4.796163466e-13 | CD12: 08:00:00 | CE12: 18:00:00 | CF12: -4.796163466e-13 | CG12: 08:00:00 | CH12: 18:00:00 | CI12: -4.796163466e-13 | CJ12: 08:00:00 | CK12: 18:00:00 | CL12: -4.796163466e-13 | CM12: 08:00:00 | CN12: 18:00:00 | CO12: -4.796163466e-13 | CP12: 08:00:00 | CQ12: 18:00:00 | CR12: -4.796163466e-13 | CS12: 08:00:00 | CT12: 18:00:00 | CU12: -4.796163466e-13 | CV12: 08:00:00 | CW12: 18:00:00 | CX12: -4.796163466e-13 | CY12: 08:00:00 | CZ12: 18:00:00 | DA12: -4.796163466e-13 | DB12: 08:00:00 | DC12: 18:00:00 | DD12: -4.796163466e-13 | DE12: 08:00:00 | DF12: 18:00:00 | DG12: -4.796163466e-13 | DH12: 08:00:00 | DI12: 18:00:00 | DJ12: -4.796163466e-13 | DK12: 08:00:00 | DL12: 18:00:00 | DM12: -4.796163466e-13 | DP12: 600 | DS12: 600 | DV12: 600 | DY12: 600 | EB12: 600 | EE12: 600 | EH12: 600 | EK12: 600 | EN12: 600 | EQ12: 600 | ET12: 600 | EW12: 600 | EZ12: 600 | FC12: 600 | FF12: 600 | FI12: 600 | FL12: 600 | FO12: 600 | FR12: 600 | FU12: 600 | FX12: 600 | GA12: 600 | GD12: 600 | GG12: 600 | GJ12: 600 | GM12: 600 | GP12: 600 | GS12: 600 | GV12: 600 | GY12: 600 | HB12: 600 | HE12: 600 | HH12: 600 | HK12: 600
A13: 11 | B13: الثلاثاء | C13: 2025-03-11 | D13: 08:00:00 | E13: 17:00:00 | F13: -7.993605777e-14 | G13: 08:00:00 | H13: 17:00:00 | I13: -7.993605777e-14 | J13: 08:00:00 | K13: 17:00:00 | L13: -7.993605777e-14 | M13: 08:00:00 | N13: 17:00:00 | O13: -7.993605777e-14 | P13: 08:00:00 | Q13: 17:00:00 | R13: -7.993605777e-14 | S13: 08:00:00 | T13: 17:00:00 | U13: -7.993605777e-14 | V13: 08:00:00 | W13: 17:00:00 | X13: -7.993605777e-14 | Y13: 08:00:00 | Z13: 17:00:00 | AA13: -7.993605777e-14 | AB13: 08:00:00 | AC13: 17:00:00 | AD13: -7.993605777e-14 | AE13: 08:00:00 | AF13: 17:00:00 | AG13: -7.993605777e-14 | AH13: 08:00:00 | AI13: 17:00:00 | AJ13: -7.993605777e-14 | AK13: 08:00:00 | AL13: 17:00:00 | AM13: -7.993605777e-14 | AN13: 08:00:00 | AO13: 17:00:00 | AP13: -7.993605777e-14 | AQ13: 08:00:00 | AR13: 17:00:00 | AS13: -7.993605777e-14 | AT13: 08:00:00 | AU13: 17:00:00 | AV13: -7.993605777e-14 | AW13: 08:00:00 | AX13: 17:00:00 | AY13: -7.993605777e-14 | AZ13: 08:00:00 | BA13: 17:00:00 | BB13: -7.993605777e-14 | BC13: 08:00:00 | BD13: 17:00:00 | BE13: -7.993605777e-14 | BF13: 08:00:00 | BG13: 17:00:00 | BH13: -7.993605777e-14 | BI13: 08:00:00 | BJ13: 18:00:00 | BK13: -4.796163466e-13 | BL13: 08:00:00 | BM13: 18:00:00 | BN13: -4.796163466e-13 | BO13: 08:00:00 | BP13: 18:00:00 | BQ13: -4.796163466e-13 | BR13: 08:00:00 | BS13: 18:00:00 | BT13: -4.796163466e-13 | BU13: 08:00:00 | BV13: 18:00:00 | BW13: -4.796163466e-13 | BX13: 08:00:00 | BY13: 18:00:00 | BZ13: -4.796163466e-13 | CA13: 08:00:00 | CB13: 18:00:00 | CC13: -4.796163466e-13 | CD13: 08:00:00 | CE13: 18:00:00 | CF13: -4.796163466e-13 | CG13: 08:00:00 | CH13: 18:00:00 | CI13: -4.796163466e-13 | CJ13: 08:00:00 | CK13: 18:00:00 | CL13: -4.796163466e-13 | CM13: 08:00:00 | CN13: 18:00:00 | CO13: -4.796163466e-13 | CP13: 08:00:00 | CQ13: 18:00:00 | CR13: -4.796163466e-13 | CS13: 08:00:00 | CT13: 18:00:00 | CU13: -4.796163466e-13 | CV13: 08:00:00 | CW13: 18:00:00 | CX13: -4.796163466e-13 | CY13: 08:00:00 | CZ13: 18:00:00 | DA13: -4.796163466e-13 | DB13: 08:00:00 | DC13: 18:00:00 | DD13: -4.796163466e-13 | DE13: 08:00:00 | DF13: 18:00:00 | DG13: -4.796163466e-13 | DH13: 08:00:00 | DI13: 18:00:00 | DJ13: -4.796163466e-13 | DK13: 08:00:00 | DL13: 18:00:00 | DM13: -4.796163466e-13 | DP13: 600 | DS13: 600 | DV13: 600 | DY13: 600 | EB13: 600 | EE13: 600 | EH13: 600 | EK13: 600 | EN13: 600 | EQ13: 600 | ET13: 600 | EW13: 600 | EZ13: 600 | FC13: 600 | FF13: 600 | FI13: 600 | FL13: 600 | FO13: 600 | FR13: 600 | FU13: 600 | FX13: 600 | GA13: 600 | GD13: 600 | GG13: 600 | GJ13: 600 | GM13: 600 | GP13: 600 | GS13: 600 | GV13: 600 | GY13: 600 | HB13: 600 | HE13: 600 | HH13: 600 | HK13: 600
A14: 12 | B14: الأربعاء | C14: 2025-03-12 | D14: 08:00:00 | E14: 17:00:00 | F14: -7.993605777e-14 | G14: 08:00:00 | H14: 17:00:00 | I14: -7.993605777e-14 | J14: 08:00:00 | K14: 17:00:00 | L14: -7.993605777e-14 | M14: 08:00:00 | N14: 17:00:00 | O14: -7.993605777e-14 | P14: 08:00:00 | Q14: 17:00:00 | R14: -7.993605777e-14 | S14: 08:00:00 | T14: 17:00:00 | U14: -7.993605777e-14 | V14: 08:00:00 | W14: 17:00:00 | X14: -7.993605777e-14 | Y14: 08:00:00 | Z14: 17:00:00 | AA14: -7.993605777e-14 | AB14: 08:00:00 | AC14: 17:00:00 | AD14: -7.993605777e-14 | AE14: 08:00:00 | AF14: 17:00:00 | AG14: -7.993605777e-14 | AH14: 08:00:00 | AI14: 17:00:00 | AJ14: -7.993605777e-14 | AK14: 08:00:00 | AL14: 17:00:00 | AM14: -7.993605777e-14 | AN14: 08:00:00 | AO14: 17:00:00 | AP14: -7.993605777e-14 | AQ14: 08:00:00 | AR14: 17:00:00 | AS14: -7.993605777e-14 | AT14: 08:00:00 | AU14: 17:00:00 | AV14: -7.993605777e-14 | AW14: 08:00:00 | AX14: 17:00:00 | AY14: -7.993605777e-14 | AZ14: 08:00:00 | BA14: 17:00:00 | BB14: -7.993605777e-14 | BC14: 08:00:00 | BD14: 17:00:00 | BE14: -7.993605777e-14 | BF14: 08:00:00 | BG14: 17:00:00 | BH14: -7.993605777e-14 | BI14: 08:00:00 | BJ14: 18:00:00 | BK14: -4.796163466e-13 | BL14: 08:00:00 | BM14: 18:00:00 | BN14: -4.796163466e-13 | BO14: 08:00:00 | BP14: 18:00:00 | BQ14: -4.796163466e-13 | BR14: 08:00:00 | BS14: 18:00:00 | BT14: -4.796163466e-13 | BU14: 08:00:00 | BV14: 18:00:00 | BW14: -4.796163466e-13 | BX14: 08:00:00 | BY14: 18:00:00 | BZ14: -4.796163466e-13 | CA14: 08:00:00 | CB14: 18:00:00 | CC14: -4.796163466e-13 | CD14: 08:00:00 | CE14: 18:00:00 | CF14: -4.796163466e-13 | CG14: 08:00:00 | CH14: 18:00:00 | CI14: -4.796163466e-13 | CJ14: 08:00:00 | CK14: 18:00:00 | CL14: -4.796163466e-13 | CM14: 08:00:00 | CN14: 18:00:00 | CO14: -4.796163466e-13 | CP14: 08:00:00 | CQ14: 18:00:00 | CR14: -4.796163466e-13 | CS14: 08:00:00 | CT14: 18:00:00 | CU14: -4.796163466e-13 | CV14: 08:00:00 | CW14: 18:00:00 | CX14: -4.796163466e-13 | CY14: 08:00:00 | CZ14: 18:00:00 | DA14: -4.796163466e-13 | DB14: 08:00:00 | DC14: 18:00:00 | DD14: -4.796163466e-13 | DE14: 08:00:00 | DF14: 18:00:00 | DG14: -4.796163466e-13 | DH14: 08:00:00 | DI14: 18:00:00 | DJ14: -4.796163466e-13 | DK14: 08:00:00 | DL14: 18:00:00 | DM14: -4.796163466e-13 | DP14: 600 | DS14: 600 | DV14: 600 | DY14: 600 | EB14: 600 | EE14: 600 | EH14: 600 | EK14: 600 | EN14: 600 | EQ14: 600 | ET14: 600 | EW14: 600 | EZ14: 600 | FC14: 600 | FF14: 600 | FI14: 600 | FL14: 600 | FO14: 600 | FR14: 600 | FU14: 600 | FX14: 600 | GA14: 600 | GD14: 600 | GG14: 600 | GJ14: 600 | GM14: 600 | GP14: 600 | GS14: 600 | GV14: 600 | GY14: 600 | HB14: 600 | HE14: 600 | HH14: 600 | HK14: 600
A15: 13 | B15: الخميس | C15: 2025-03-13 | D15: 08:00:00 | E15: 17:00:00 | F15: -7.993605777e-14 | G15: 08:00:00 | H15: 17:00:00 | I15: =(G15-$C$1)*1440+((H15-$C$1)-(9/24))*-1440 -> -7.993605777e-14 | J15: 08:00:00 | K15: 17:00:00 | L15: -7.993605777e-14 | M15: 08:00:00 | N15: 17:00:00 | O15: -7.993605777e-14 | P15: 08:00:00 | Q15: 17:00:00 | R15: -7.993605777e-14 | S15: 08:00:00 | T15: 17:00:00 | U15: -7.993605777e-14 | V15: 08:00:00 | W15: 17:00:00 | X15: -7.993605777e-14 | Y15: 08:00:00 | Z15: 17:00:00 | AA15: -7.993605777e-14 | AB15: 08:00:00 | AC15: 17:00:00 | AD15: -7.993605777e-14 | AE15: 08:00:00 | AF15: 17:00:00 | AG15: -7.993605777e-14 | AH15: 08:00:00 | AI15: 17:00:00 | AJ15: -7.993605777e-14 | AK15: 08:00:00 | AL15: 17:00:00 | AM15: -7.993605777e-14 | AN15: 08:00:00 | AO15: 17:00:00 | AP15: -7.993605777e-14 | AQ15: 08:00:00 | AR15: 17:00:00 | AS15: -7.993605777e-14 | AT15: 08:00:00 | AU15: 17:00:00 | AV15: =(AT15-$C$1)*1440+((AU15-$C$1)-(9/24))*-1440 -> -7.993605777e-14 | AW15: 08:00:00 | AX15: 17:00:00 | AY15: =(AW15-$C$1)*1440+((AX15-$C$1)-(9/24))*-1440 -> -7.993605777e-14 | AZ15: 08:00:00 | BA15: 17:00:00 | BB15: =(AZ15-$C$1)*1440+((BA15-$C$1)-(9/24))*-1440 -> -7.993605777e-14 | BC15: 08:00:00 | BD15: 17:00:00 | BE15: =(BC15-$C$1)*1440+((BD15-$C$1)-(9/24))*-1440 -> -7.993605777e-14 | BF15: 08:00:00 | BG15: 17:00:00 | BH15: =(BF15-$C$1)*1440+((BG15-$C$1)-(9/24))*-1440 -> -7.993605777e-14 | BI15: 08:00:00 | BJ15: 18:00:00 | BK15: -4.796163466e-13 | BL15: 08:00:00 | BM15: 18:00:00 | BN15: -4.796163466e-13 | BO15: 08:00:00 | BP15: 18:00:00 | BQ15: -4.796163466e-13 | BR15: 08:00:00 | BS15: 18:00:00 | BT15: -4.796163466e-13 | BU15: 08:00:00 | BV15: 18:00:00 | BW15: -4.796163466e-13 | BX15: 08:00:00 | BY15: 18:00:00 | BZ15: -4.796163466e-13 | CA15: 08:00:00 | CB15: 18:00:00 | CC15: -4.796163466e-13 | CD15: 08:00:00 | CE15: 18:00:00 | CF15: -4.796163466e-13 | CG15: 08:00:00 | CH15: 18:00:00 | CI15: -4.796163466e-13 | CJ15: 08:00:00 | CK15: 18:00:00 | CL15: -4.796163466e-13 | CM15: 08:00:00 | CN15: 18:00:00 | CO15: -4.796163466e-13 | CP15: 08:00:00 | CQ15: 18:00:00 | CR15: -4.796163466e-13 | CS15: 08:00:00 | CT15: 18:00:00 | CU15: -4.796163466e-13 | CV15: 08:00:00 | CW15: 18:00:00 | CX15: -4.796163466e-13 | CY15: 08:00:00 | CZ15: 18:00:00 | DA15: -4.796163466e-13 | DB15: 08:00:00 | DC15: 18:00:00 | DD15: -4.796163466e-13 | DE15: 08:00:00 | DF15: 18:00:00 | DG15: -4.796163466e-13 | DH15: 08:00:00 | DI15: 18:00:00 | DJ15: -4.796163466e-13 | DK15: 08:00:00 | DL15: 18:00:00 | DM15: -4.796163466e-13 | DP15: 600 | DS15: 600 | DV15: 600 | DY15: 600 | EB15: 600 | EE15: 600 | EH15: 600 | EK15: 600 | EN15: 600 | EQ15: 600 | ET15: 600 | EW15: 600 | EZ15: 600 | FC15: 600 | FF15: 600 | FI15: 600 | FL15: 600 | FO15: 600 | FR15: 600 | FU15: 600 | FX15: 600 | GA15: 600 | GD15: 600 | GG15: 600 | GJ15: 600 | GM15: 600 | GP15: 600 | GS15: 600 | GV15: 600 | GY15: 600 | HB15: 600 | HE15: 600 | HH15: 600 | HK15: 600
A16: 14 | B16: الجمعة | C16: 2025-03-14 | D16: 08:00:00 | E16: 17:00:00 | F16: -7.993605777e-14 | G16: 08:00:00 | H16: 17:00:00 | I16: -7.993605777e-14 | J16: 08:00:00 | K16: 17:00:00 | L16: -7.993605777e-14 | M16: 08:00:00 | N16: 17:00:00 | O16: -7.993605777e-14 | P16: 08:00:00 | Q16: 17:00:00 | R16: -7.993605777e-14 | S16: 08:00:00 | T16: 17:00:00 | U16: -7.993605777e-14 | V16: 08:00:00 | W16: 17:00:00 | X16: -7.993605777e-14 | Y16: 08:00:00 | Z16: 17:00:00 | AA16: -7.993605777e-14 | AB16: 08:00:00 | AC16: 17:00:00 | AD16: -7.993605777e-14 | AE16: 08:00:00 | AF16: 17:00:00 | AG16: -7.993605777e-14 | AH16: 08:00:00 | AI16: 17:00:00 | AJ16: -7.993605777e-14 | AK16: 08:00:00 | AL16: 17:00:00 | AM16: -7.993605777e-14 | AN16: 08:00:00 | AO16: 17:00:00 | AP16: -7.993605777e-14 | AQ16: 08:00:00 | AR16: 17:00:00 | AS16: -7.993605777e-14 | AT16: 08:00:00 | AU16: 17:00:00 | AV16: -7.993605777e-14 | AW16: 08:00:00 | AX16: 17:00:00 | AY16: -7.993605777e-14 | AZ16: 08:00:00 | BA16: 17:00:00 | BB16: -7.993605777e-14 | BC16: 08:00:00 | BD16: 17:00:00 | BE16: -7.993605777e-14 | BF16: 08:00:00 | BG16: 17:00:00 | BH16: -7.993605777e-14 | BI16: 08:00:00 | BJ16: 18:00:00 | BK16: -4.796163466e-13 | BL16: 08:00:00 | BM16: 18:00:00 | BN16: -4.796163466e-13 | BO16: 08:00:00 | BP16: 18:00:00 | BQ16: -4.796163466e-13 | BR16: 08:00:00 | BS16: 18:00:00 | BT16: -4.796163466e-13 | BU16: 08:00:00 | BV16: 18:00:00 | BW16: -4.796163466e-13 | BX16: 08:00:00 | BY16: 18:00:00 | BZ16: -4.796163466e-13 | CA16: 08:00:00 | CB16: 18:00:00 | CC16: -4.796163466e-13 | CD16: 08:00:00 | CE16: 18:00:00 | CF16: -4.796163466e-13 | CG16: 08:00:00 | CH16: 18:00:00 | CI16: -4.796163466e-13 | CJ16: 08:00:00 | CK16: 18:00:00 | CL16: -4.796163466e-13 | CM16: 08:00:00 | CN16: 18:00:00 | CO16: -4.796163466e-13 | CP16: اجازة | CS16: 08:00:00 | CT16: 18:00:00 | CU16: -4.796163466e-13 | CV16: 08:00:00 | CW16: 18:00:00 | CX16: -4.796163466e-13 | CY16: 08:00:00 | CZ16: 18:00:00 | DA16: -4.796163466e-13 | DB16: 08:00:00 | DC16: 18:00:00 | DD16: -4.796163466e-13 | DE16: 08:00:00 | DF16: 18:00:00 | DG16: -4.796163466e-13 | DH16: 08:00:00 | DI16: 18:00:00 | DJ16: -4.796163466e-13 | DK16: 08:00:00 | DL16: 18:00:00 | DM16: -4.796163466e-13 | DP16: 600 | DS16: 600 | DV16: 600 | DY16: 600 | EB16: 600 | EE16: 600 | EH16: 600 | EK16: 600 | EN16: 600 | EQ16: 600 | ET16: 600 | EW16: 600 | EZ16: 600 | FC16: 600 | FF16: 600 | FI16: 600 | FL16: 600 | FO16: 600 | FR16: 600 | FU16: 600 | FX16: 600 | GA16: 600 | GD16: 600 | GG16: 600 | GJ16: 600 | GM16: 600 | GP16: 600 | GS16: 600 | GV16: 600 | GY16: 600 | HB16: 600 | HE16: 600 | HH16: 600 | HK16: 600
A17: 15 | B17: السبت | C17: 2025-03-15 | D17: 08:00:00 | E17: 17:00:00 | F17: -7.993605777e-14 | G17: 08:00:00 | H17: 17:00:00 | I17: -7.993605777e-14 | J17: 08:00:00 | K17: 17:00:00 | L17: -7.993605777e-14 | M17: 08:00:00 | N17: 17:00:00 | O17: -7.993605777e-14 | P17: 08:00:00 | Q17: 17:00:00 | R17: -7.993605777e-14 | S17: 08:00:00 | T17: 17:00:00 | U17: -7.993605777e-14 | V17: 08:00:00 | W17: 17:00:00 | X17: -7.993605777e-14 | Y17: 08:00:00 | Z17: 17:00:00 | AA17: -7.993605777e-14 | AB17: 08:00:00 | AC17: 17:00:00 | AD17: -7.993605777e-14 | AE17: 08:00:00 | AF17: 17:00:00 | AG17: -7.993605777e-14 | AH17: 08:00:00 | AI17: 17:00:00 | AJ17: -7.993605777e-14 | AK17: 08:00:00 | AL17: 17:00:00 | AM17: -7.993605777e-14 | AN17: 08:00:00 | AO17: 17:00:00 | AP17: -7.993605777e-14 | AQ17: 08:00:00 | AR17: 17:00:00 | AS17: -7.993605777e-14 | AT17: 08:00:00 | AU17: 17:00:00 | AV17: -7.993605777e-14 | AW17: 08:00:00 | AX17: 17:00:00 | AY17: -7.993605777e-14 | AZ17: 08:00:00 | BA17: 17:00:00 | BB17: -7.993605777e-14 | BC17: 08:00:00 | BD17: 17:00:00 | BE17: -7.993605777e-14 | BF17: 08:00:00 | BG17: 17:00:00 | BH17: -7.993605777e-14 | BI17: 08:00:00 | BJ17: 18:00:00 | BK17: -4.796163466e-13 | BL17: 08:00:00 | BM17: 18:00:00 | BN17: -4.796163466e-13 | BO17: 08:00:00 | BP17: 18:00:00 | BQ17: -4.796163466e-13 | BR17: 08:00:00 | BS17: 18:00:00 | BT17: -4.796163466e-13 | BU17: 08:00:00 | BV17: 18:00:00 | BW17: -4.796163466e-13 | BX17: 08:00:00 | BY17: 18:00:00 | BZ17: -4.796163466e-13 | CA17: 08:00:00 | CB17: 18:00:00 | CC17: -4.796163466e-13 | CD17: 08:00:00 | CE17: 18:00:00 | CF17: -4.796163466e-13 | CG17: 08:00:00 | CH17: 18:00:00 | CI17: -4.796163466e-13 | CJ17: 08:00:00 | CK17: 18:00:00 | CL17: -4.796163466e-13 | CM17: 08:00:00 | CN17: 18:00:00 | CO17: -4.796163466e-13 | CQ17: غياب | CS17: 08:00:00 | CT17: 18:00:00 | CU17: -4.796163466e-13 | CV17: 08:00:00 | CW17: 18:00:00 | CX17: -4.796163466e-13 | CY17: 08:00:00 | CZ17: 18:00:00 | DA17: -4.796163466e-13 | DB17: 08:00:00 | DC17: 18:00:00 | DD17: -4.796163466e-13 | DE17: 08:00:00 | DF17: 18:00:00 | DG17: -4.796163466e-13 | DH17: 08:00:00 | DI17: 18:00:00 | DJ17: -4.796163466e-13 | DK17: 08:00:00 | DL17: 18:00:00 | DM17: -4.796163466e-13 | DP17: 600 | DS17: 600 | DV17: 600 | DY17: 600 | EB17: 600 | EE17: 600 | EH17: 600 | EK17: 600 | EN17: 600 | EQ17: 600 | ET17: 600 | EW17: 600 | EZ17: 600 | FC17: 600 | FF17: 600 | FI17: 600 | FL17: 600 | FO17: 600 | FR17: 600 | FU17: 600 | FX17: 600 | GA17: 600 | GD17: 600 | GG17: 600 | GJ17: 600 | GM17: 600 | GP17: 600 | GS17: 600 | GV17: 600 | GY17: 600 | HB17: 600 | HE17: 600 | HH17: 600 | HK17: 600
A18: 16 | B18: الأحد | C18: 2025-03-16 | D18: 08:00:00 | E18: 17:00:00 | F18: -7.993605777e-14 | G18: 08:00:00 | H18: 17:00:00 | I18: -7.993605777e-14 | J18: 08:00:00 | K18: 17:00:00 | L18: -7.993605777e-14 | M18: 08:00:00 | N18: 17:00:00 | O18: -7.993605777e-14 | P18: 08:00:00 | Q18: 17:00:00 | R18: -7.993605777e-14 | S18: 08:00:00 | T18: 17:00:00 | U18: -7.993605777e-14 | V18: 08:00:00 | W18: 17:00:00 | X18: -7.993605777e-14 | Y18: 08:00:00 | Z18: 17:00:00 | AA18: -7.993605777e-14 | AB18: 08:00:00 | AC18: 17:00:00 | AD18: -7.993605777e-14 | AE18: 08:00:00 | AF18: 17:00:00 | AG18: -7.993605777e-14 | AH18: 08:00:00 | AI18: 17:00:00 | AJ18: -7.993605777e-14 | AK18: 08:00:00 | AL18: 17:00:00 | AM18: -7.993605777e-14 | AN18: 08:00:00 | AO18: 17:00:00 | AP18: -7.993605777e-14 | AQ18: 08:00:00 | AR18: 17:00:00 | AS18: -7.993605777e-14 | AT18: 08:00:00 | AU18: 17:00:00 | AV18: -7.993605777e-14 | AW18: 08:00:00 | AX18: 17:00:00 | AY18: -7.993605777e-14 | AZ18: 08:00:00 | BA18: 17:00:00 | BB18: -7.993605777e-14 | BC18: 08:00:00 | BD18: 17:00:00 | BE18: -7.993605777e-14 | BF18: 08:00:00 | BG18: 17:00:00 | BH18: -7.993605777e-14 | BI18: 08:00:00 | BJ18: 18:00:00 | BK18: -4.796163466e-13 | BL18: 08:00:00 | BM18: 18:00:00 | BN18: -4.796163466e-13 | BO18: 08:00:00 | BP18: 18:00:00 | BQ18: -4.796163466e-13 | BR18: 08:00:00 | BS18: 18:00:00 | BT18: -4.796163466e-13 | BU18: 08:00:00 | BV18: 18:00:00 | BW18: -4.796163466e-13 | BX18: 08:00:00 | BY18: 18:00:00 | BZ18: -4.796163466e-13 | CA18: 08:00:00 | CB18: 18:00:00 | CC18: -4.796163466e-13 | CD18: 08:00:00 | CE18: 18:00:00 | CF18: -4.796163466e-13 | CG18: 08:00:00 | CH18: 18:00:00 | CI18: -4.796163466e-13 | CJ18: 08:00:00 | CK18: 18:00:00 | CL18: -4.796163466e-13 | CM18: 08:00:00 | CN18: 18:00:00 | CO18: -4.796163466e-13 | CP18: 08:00:00 | CQ18: 18:00:00 | CR18: -4.796163466e-13 | CS18: 08:00:00 | CT18: 18:00:00 | CU18: -4.796163466e-13 | CV18: 08:00:00 | CW18: 18:00:00 | CX18: -4.796163466e-13 | CY18: 08:00:00 | CZ18: 18:00:00 | DA18: -4.796163466e-13 | DB18: 08:00:00 | DC18: 18:00:00 | DD18: -4.796163466e-13 | DE18: 08:00:00 | DF18: 18:00:00 | DG18: -4.796163466e-13 | DH18: 08:00:00 | DI18: 18:00:00 | DJ18: -4.796163466e-13 | DK18: 08:00:00 | DL18: 18:00:00 | DM18: -4.796163466e-13 | DP18: 600 | DS18: 600 | DV18: 600 | DY18: 600 | EB18: 600 | EE18: 600 | EH18: 600 | EK18: 600 | EN18: 600 | EQ18: 600 | ET18: 600 | EW18: 600 | EZ18: 600 | FC18: 600 | FF18: 600 | FI18: 600 | FL18: 600 | FO18: 600 | FR18: 600 | FU18: 600 | FX18: 600 | GA18: 600 | GD18: 600 | GG18: 600 | GJ18: 600 | GM18: 600 | GP18: 600 | GS18: 600 | GV18: 600 | GY18: 600 | HB18: 600 | HE18: 600 | HH18: 600 | HK18: 600
A19: 17 | B19: الإثنين | C19: 2025-03-17 | D19: 08:00:00 | E19: 17:00:00 | F19: -7.993605777e-14 | G19: 08:00:00 | H19: 17:00:00 | I19: -7.993605777e-14 | J19: 08:00:00 | K19: 17:00:00 | L19: -7.993605777e-14 | M19: 08:00:00 | N19: 17:00:00 | O19: -7.993605777e-14 | P19: 08:00:00 | Q19: 17:00:00 | R19: -7.993605777e-14 | S19: 08:00:00 | T19: 17:00:00 | U19: -7.993605777e-14 | V19: 08:00:00 | W19: 17:00:00 | X19: -7.993605777e-14 | Y19: 08:00:00 | Z19: 17:00:00 | AA19: -7.993605777e-14 | AB19: 08:00:00 | AC19: 17:00:00 | AD19: -7.993605777e-14 | AE19: 08:00:00 | AF19: 17:00:00 | AG19: -7.993605777e-14 | AH19: 08:00:00 | AI19: 17:00:00 | AJ19: -7.993605777e-14 | AK19: 08:00:00 | AL19: 17:00:00 | AM19: -7.993605777e-14 | AN19: 08:00:00 | AO19: 17:00:00 | AP19: -7.993605777e-14 | AQ19: 08:00:00 | AR19: 17:00:00 | AS19: -7.993605777e-14 | AT19: 08:00:00 | AU19: 17:00:00 | AV19: -7.993605777e-14 | AW19: 08:00:00 | AX19: 17:00:00 | AY19: -7.993605777e-14 | AZ19: 08:00:00 | BA19: 17:00:00 | BB19: -7.993605777e-14 | BC19: 08:00:00 | BD19: 17:00:00 | BE19: -7.993605777e-14 | BF19: 08:00:00 | BG19: 17:00:00 | BH19: -7.993605777e-14 | BI19: 08:00:00 | BJ19: 18:00:00 | BK19: -4.796163466e-13 | BL19: 08:00:00 | BM19: 18:00:00 | BN19: -4.796163466e-13 | BO19: 08:00:00 | BP19: 18:00:00 | BQ19: -4.796163466e-13 | BR19: 08:00:00 | BS19: 18:00:00 | BT19: -4.796163466e-13 | BU19: 08:00:00 | BV19: 18:00:00 | BW19: -4.796163466e-13 | BX19: 08:00:00 | BY19: 18:00:00 | BZ19: -4.796163466e-13 | CA19: 08:00:00 | CB19: 18:00:00 | CC19: -4.796163466e-13 | CD19: 08:00:00 | CE19: 18:00:00 | CF19: -4.796163466e-13 | CG19: 08:00:00 | CH19: 18:00:00 | CI19: -4.796163466e-13 | CJ19: 08:00:00 | CK19: 18:00:00 | CL19: -4.796163466e-13 | CM19: 08:00:00 | CN19: 18:00:00 | CO19: -4.796163466e-13 | CP19: 08:00:00 | CQ19: 18:00:00 | CR19: -4.796163466e-13 | CS19: 08:00:00 | CT19: 18:00:00 | CU19: -4.796163466e-13 | CV19: 08:00:00 | CW19: 18:00:00 | CX19: -4.796163466e-13 | CY19: 08:00:00 | CZ19: 18:00:00 | DA19: -4.796163466e-13 | DB19: 08:00:00 | DC19: 18:00:00 | DD19: -4.796163466e-13 | DE19: 08:00:00 | DF19: 18:00:00 | DG19: -4.796163466e-13 | DH19: 08:00:00 | DI19: 18:00:00 | DJ19: -4.796163466e-13 | DK19: 08:00:00 | DL19: 18:00:00 | DM19: -4.796163466e-13 | DP19: 600 | DS19: 600 | DV19: 600 | DY19: 600 | EB19: 600 | EE19: 600 | EH19: 600 | EK19: 600 | EN19: 600 | EQ19: 600 | ET19: 600 | EW19: 600 | EZ19: 600 | FC19: 600 | FF19: 600 | FI19: 600 | FL19: 600 | FO19: 600 | FR19: 600 | FU19: 600 | FX19: 600 | GA19: 600 | GD19: 600 | GG19: 600 | GJ19: 600 | GM19: 600 | GP19: 600 | GS19: 600 | GV19: 600 | GY19: 600 | HB19: 600 | HE19: 600 | HH19: 600 | HK19: 600
A20: 18 | B20: الثلاثاء | C20: 2025-03-18 | D20: 08:00:00 | E20: 17:00:00 | F20: -7.993605777e-14 | G20: 08:00:00 | H20: 17:00:00 | I20: -7.993605777e-14 | J20: 08:00:00 | K20: 17:00:00 | L20: -7.993605777e-14 | M20: 08:00:00 | N20: 17:00:00 | O20: -7.993605777e-14 | P20: 08:00:00 | Q20: 17:00:00 | R20: -7.993605777e-14 | S20: 08:00:00 | T20: 17:00:00 | U20: -7.993605777e-14 | V20: 08:00:00 | W20: 17:00:00 | X20: -7.993605777e-14 | Y20: 08:00:00 | Z20: 17:00:00 | AA20: -7.993605777e-14 | AB20: 08:00:00 | AC20: 17:00:00 | AD20: -7.993605777e-14 | AE20: 08:00:00 | AF20: 17:00:00 | AG20: -7.993605777e-14 | AH20: 08:00:00 | AI20: 17:00:00 | AJ20: -7.993605777e-14 | AK20: 08:00:00 | AL20: 17:00:00 | AM20: -7.993605777e-14 | AN20: 08:00:00 | AO20: 17:00:00 | AP20: -7.993605777e-14 | AQ20: 08:00:00 | AR20: 17:00:00 | AS20: -7.993605777e-14 | AT20: 08:00:00 | AU20: 17:00:00 | AV20: -7.993605777e-14 | AW20: 08:00:00 | AX20: 17:00:00 | AY20: -7.993605777e-14 | AZ20: 08:00:00 | BA20: 17:00:00 | BB20: -7.993605777e-14 | BC20: 08:00:00 | BD20: 17:00:00 | BE20: -7.993605777e-14 | BF20: 08:00:00 | BG20: 17:00:00 | BH20: -7.993605777e-14 | BI20: 08:00:00 | BJ20: 18:00:00 | BK20: -4.796163466e-13 | BL20: 08:00:00 | BM20: 18:00:00 | BN20: -4.796163466e-13 | BO20: 08:00:00 | BP20: 18:00:00 | BQ20: -4.796163466e-13 | BR20: 08:00:00 | BS20: 18:00:00 | BT20: -4.796163466e-13 | BU20: 08:00:00 | BV20: 18:00:00 | BW20: -4.796163466e-13 | BX20: 08:00:00 | BY20: 18:00:00 | BZ20: -4.796163466e-13 | CA20: 08:00:00 | CB20: 18:00:00 | CC20: -4.796163466e-13 | CD20: 08:00:00 | CE20: 18:00:00 | CF20: -4.796163466e-13 | CG20: 08:00:00 | CH20: 18:00:00 | CI20: -4.796163466e-13 | CJ20: 08:00:00 | CK20: 18:00:00 | CL20: -4.796163466e-13 | CM20: 08:00:00 | CN20: 18:00:00 | CO20: -4.796163466e-13 | CP20: 08:00:00 | CQ20: 18:00:00 | CR20: -4.796163466e-13 | CS20: 08:00:00 | CT20: 18:00:00 | CU20: -4.796163466e-13 | CV20: 08:00:00 | CW20: 18:00:00 | CX20: -4.796163466e-13 | CY20: 08:00:00 | CZ20: 18:00:00 | DA20: -4.796163466e-13 | DB20: 08:00:00 | DC20: 18:00:00 | DD20: -4.796163466e-13 | DE20: 08:00:00 | DF20: 18:00:00 | DG20: -4.796163466e-13 | DH20: 08:00:00 | DI20: 18:00:00 | DJ20: -4.796163466e-13 | DK20: 08:00:00 | DL20: 18:00:00 | DM20: -4.796163466e-13 | DP20: 600 | DS20: 600 | DV20: 600 | DY20: 600 | EB20: 600 | EE20: 600 | EH20: 600 | EK20: 600 | EN20: 600 | EQ20: 600 | ET20: 600 | EW20: 600 | EZ20: 600 | FC20: 600 | FF20: 600 | FI20: 600 | FL20: 600 | FO20: 600 | FR20: 600 | FU20: 600 | FX20: 600 | GA20: 600 | GD20: 600 | GG20: 600 | GJ20: 600 | GM20: 600 | GP20: 600 | GS20: 600 | GV20: 600 | GY20: 600 | HB20: 600 | HE20: 600 | HH20: 600 | HK20: 600
A21: 19 | B21: الأربعاء | C21: 2025-03-19 | D21: 08:00:00 | E21: 17:00:00 | F21: -7.993605777e-14 | G21: 08:00:00 | H21: 17:00:00 | I21: -7.993605777e-14 | J21: 08:00:00 | K21: 17:00:00 | L21: -7.993605777e-14 | M21: 08:00:00 | N21: 17:00:00 | O21: -7.993605777e-14 | P21: 08:00:00 | Q21: 17:00:00 | R21: -7.993605777e-14 | S21: 08:00:00 | T21: 17:00:00 | U21: -7.993605777e-14 | V21: 08:00:00 | W21: 17:00:00 | X21: -7.993605777e-14 | Y21: 08:00:00 | Z21: 17:00:00 | AA21: -7.993605777e-14 | AB21: 08:00:00 | AC21: 17:00:00 | AD21: -7.993605777e-14 | AE21: 08:00:00 | AF21: 17:00:00 | AG21: -7.993605777e-14 | AH21: 08:00:00 | AI21: 17:00:00 | AJ21: -7.993605777e-14 | AK21: 08:00:00 | AL21: 17:00:00 | AM21: -7.993605777e-14 | AN21: 08:00:00 | AO21: 17:00:00 | AP21: -7.993605777e-14 | AQ21: 08:00:00 | AR21: 17:00:00 | AS21: -7.993605777e-14 | AT21: 08:00:00 | AU21: 17:00:00 | AV21: -7.993605777e-14 | AW21: 08:00:00 | AX21: 17:00:00 | AY21: -7.993605777e-14 | AZ21: 08:00:00 | BA21: 17:00:00 | BB21: -7.993605777e-14 | BC21: 08:00:00 | BD21: 17:00:00 | BE21: -7.993605777e-14 | BF21: 08:00:00 | BG21: 17:00:00 | BH21: -7.993605777e-14 | BI21: 08:00:00 | BJ21: 18:00:00 | BK21: -4.796163466e-13 | BL21: 08:00:00 | BM21: 18:00:00 | BN21: -4.796163466e-13 | BO21: 08:00:00 | BP21: 18:00:00 | BQ21: -4.796163466e-13 | BR21: 08:00:00 | BS21: 18:00:00 | BT21: -4.796163466e-13 | BU21: 08:00:00 | BV21: 18:00:00 | BW21: -4.796163466e-13 | BX21: 08:00:00 | BY21: 18:00:00 | BZ21: -4.796163466e-13 | CA21: 08:00:00 | CB21: 18:00:00 | CC21: -4.796163466e-13 | CD21: 08:00:00 | CE21: 18:00:00 | CF21: -4.796163466e-13 | CG21: 08:00:00 | CH21: 18:00:00 | CI21: -4.796163466e-13 | CJ21: 08:00:00 | CK21: 18:00:00 | CL21: -4.796163466e-13 | CM21: 08:00:00 | CN21: 18:00:00 | CO21: -4.796163466e-13 | CP21: 08:00:00 | CQ21: 18:00:00 | CR21: -4.796163466e-13 | CS21: 08:00:00 | CT21: 18:00:00 | CU21: -4.796163466e-13 | CV21: 08:00:00 | CW21: 18:00:00 | CX21: -4.796163466e-13 | CY21: 08:00:00 | CZ21: 18:00:00 | DA21: -4.796163466e-13 | DB21: 08:00:00 | DC21: 18:00:00 | DD21: -4.796163466e-13 | DE21: 08:00:00 | DF21: 18:00:00 | DG21: -4.796163466e-13 | DH21: 08:00:00 | DI21: 18:00:00 | DJ21: -4.796163466e-13 | DK21: 08:00:00 | DL21: 18:00:00 | DM21: -4.796163466e-13 | DP21: 600 | DS21: 600 | DV21: 600 | DY21: 600 | EB21: 600 | EE21: 600 | EH21: 600 | EK21: 600 | EN21: 600 | EQ21: 600 | ET21: 600 | EW21: 600 | EZ21: 600 | FC21: 600 | FF21: 600 | FI21: 600 | FL21: 600 | FO21: 600 | FR21: 600 | FU21: 600 | FX21: 600 | GA21: 600 | GD21: 600 | GG21: 600 | GJ21: 600 | GM21: 600 | GP21: 600 | GS21: 600 | GV21: 600 | GY21: 600 | HB21: 600 | HE21: 600 | HH21: 600 | HK21: 600
A22: 20 | B22: الخميس | C22: 2025-03-20 | D22: 08:00:00 | E22: 17:00:00 | F22: -7.993605777e-14 | G22: 08:00:00 | H22: 17:00:00 | I22: -7.993605777e-14 | J22: 08:00:00 | K22: 17:00:00 | L22: -7.993605777e-14 | M22: 08:00:00 | N22: 17:00:00 | O22: -7.993605777e-14 | P22: 08:00:00 | Q22: 17:00:00 | R22: -7.993605777e-14 | S22: 08:00:00 | T22: 17:00:00 | U22: -7.993605777e-14 | V22: 08:00:00 | W22: 17:00:00 | X22: -7.993605777e-14 | Y22: 08:00:00 | Z22: 17:00:00 | AA22: -7.993605777e-14 | AB22: 08:00:00 | AC22: 17:00:00 | AD22: -7.993605777e-14 | AE22: 08:00:00 | AF22: 17:00:00 | AG22: -7.993605777e-14 | AH22: 08:00:00 | AI22: 17:00:00 | AJ22: -7.993605777e-14 | AK22: 08:00:00 | AL22: 17:00:00 | AM22: -7.993605777e-14 | AN22: 08:00:00 | AO22: 17:00:00 | AP22: -7.993605777e-14 | AQ22: 08:00:00 | AR22: 17:00:00 | AS22: -7.993605777e-14 | AT22: 08:00:00 | AU22: 17:00:00 | AV22: -7.993605777e-14 | AW22: 08:00:00 | AX22: 17:00:00 | AY22: -7.993605777e-14 | AZ22: 08:00:00 | BA22: 17:00:00 | BB22: -7.993605777e-14 | BC22: 08:00:00 | BD22: 17:00:00 | BE22: -7.993605777e-14 | BF22: 08:00:00 | BG22: 17:00:00 | BH22: -7.993605777e-14 | BI22: 08:00:00 | BJ22: 18:00:00 | BK22: -4.796163466e-13 | BL22: 08:00:00 | BM22: 18:00:00 | BN22: -4.796163466e-13 | BO22: 08:00:00 | BP22: 18:00:00 | BQ22: -4.796163466e-13 | BR22: 08:00:00 | BS22: 18:00:00 | BT22: -4.796163466e-13 | BU22: 08:00:00 | BV22: 18:00:00 | BW22: -4.796163466e-13 | BX22: 08:00:00 | BY22: 18:00:00 | BZ22: -4.796163466e-13 | CA22: 08:00:00 | CB22: 18:00:00 | CC22: -4.796163466e-13 | CD22: 08:00:00 | CE22: 18:00:00 | CF22: -4.796163466e-13 | CG22: 08:00:00 | CH22: 18:00:00 | CI22: -4.796163466e-13 | CJ22: 08:00:00 | CK22: 18:00:00 | CL22: -4.796163466e-13 | CM22: 08:00:00 | CN22: 18:00:00 | CO22: -4.796163466e-13 | CP22: 08:00:00 | CQ22: 18:00:00 | CR22: -4.796163466e-13 | CS22: 08:00:00 | CT22: 18:00:00 | CU22: -4.796163466e-13 | CV22: 08:00:00 | CW22: 18:00:00 | CX22: -4.796163466e-13 | CY22: 08:00:00 | CZ22: 18:00:00 | DA22: -4.796163466e-13 | DB22: 08:00:00 | DC22: 18:00:00 | DD22: -4.796163466e-13 | DE22: 08:00:00 | DF22: 18:00:00 | DG22: -4.796163466e-13 | DH22: 08:00:00 | DI22: 18:00:00 | DJ22: -4.796163466e-13 | DK22: 08:00:00 | DL22: 18:00:00 | DM22: -4.796163466e-13 | DP22: 600 | DS22: 600 | DV22: 600 | DY22: 600 | EB22: 600 | EE22: 600 | EH22: 600 | EK22: 600 | EN22: 600 | EQ22: 600 | ET22: 600 | EW22: 600 | EZ22: 600 | FC22: 600 | FF22: 600 | FI22: 600 | FL22: 600 | FO22: 600 | FR22: 600 | FU22: 600 | FX22: 600 | GA22: 600 | GD22: 600 | GG22: 600 | GJ22: 600 | GM22: 600 | GP22: 600 | GS22: 600 | GV22: 600 | GY22: 600 | HB22: 600 | HE22: 600 | HH22: 600 | HK22: 600
A23: 21 | B23: الجمعة | C23: 2025-03-21 | D23: 08:00:00 | E23: 17:00:00 | F23: -7.993605777e-14 | G23: 08:00:00 | H23: 17:00:00 | I23: -7.993605777e-14 | J23: 08:00:00 | K23: 17:00:00 | L23: -7.993605777e-14 | M23: 08:00:00 | N23: 17:00:00 | O23: -7.993605777e-14 | P23: 08:00:00 | Q23: 17:00:00 | R23: -7.993605777e-14 | S23: 08:00:00 | T23: 17:00:00 | U23: -7.993605777e-14 | V23: 08:00:00 | W23: 17:00:00 | X23: -7.993605777e-14 | Y23: 08:00:00 | Z23: 17:00:00 | AA23: -7.993605777e-14 | AB23: 08:00:00 | AC23: 17:00:00 | AD23: -7.993605777e-14 | AE23: 08:00:00 | AF23: 17:00:00 | AG23: -7.993605777e-14 | AH23: 08:00:00 | AI23: 17:00:00 | AJ23: -7.993605777e-14 | AK23: 08:00:00 | AL23: 17:00:00 | AM23: -7.993605777e-14 | AN23: 08:00:00 | AO23: 17:00:00 | AP23: -7.993605777e-14 | AQ23: 08:00:00 | AR23: 17:00:00 | AS23: -7.993605777e-14 | AT23: 08:00:00 | AU23: 17:00:00 | AV23: -7.993605777e-14 | AW23: 08:00:00 | AX23: 17:00:00 | AY23: -7.993605777e-14 | AZ23: 08:00:00 | BA23: 17:00:00 | BB23: -7.993605777e-14 | BC23: 08:00:00 | BD23: 17:00:00 | BE23: -7.993605777e-14 | BF23: 08:00:00 | BG23: 17:00:00 | BH23: -7.993605777e-14 | BI23: 08:00:00 | BJ23: 18:00:00 | BK23: -4.796163466e-13 | BL23: 08:00:00 | BM23: 18:00:00 | BN23: -4.796163466e-13 | BO23: 08:00:00 | BP23: 18:00:00 | BQ23: -4.796163466e-13 | BR23: 08:00:00 | BS23: 18:00:00 | BT23: -4.796163466e-13 | BU23: 08:00:00 | BV23: 18:00:00 | BW23: -4.796163466e-13 | BX23: 08:00:00 | BY23: 18:00:00 | BZ23: -4.796163466e-13 | CA23: 08:00:00 | CB23: 18:00:00 | CC23: -4.796163466e-13 | CD23: 08:00:00 | CE23: 18:00:00 | CF23: -4.796163466e-13 | CG23: 08:00:00 | CH23: 18:00:00 | CI23: -4.796163466e-13 | CJ23: 08:00:00 | CK23: 18:00:00 | CL23: -4.796163466e-13 | CM23: 08:00:00 | CN23: 18:00:00 | CO23: -4.796163466e-13 | CP23: 08:00:00 | CQ23: 18:00:00 | CR23: -4.796163466e-13 | CS23: 08:00:00 | CT23: 18:00:00 | CU23: -4.796163466e-13 | CV23: 08:00:00 | CW23: 18:00:00 | CX23: -4.796163466e-13 | CY23: 08:00:00 | CZ23: 18:00:00 | DA23: -4.796163466e-13 | DB23: 08:00:00 | DC23: 18:00:00 | DD23: -4.796163466e-13 | DE23: 08:00:00 | DF23: 18:00:00 | DG23: -4.796163466e-13 | DH23: 08:00:00 | DI23: 18:00:00 | DJ23: -4.796163466e-13 | DK23: 08:00:00 | DL23: 18:00:00 | DM23: -4.796163466e-13 | DP23: 600 | DS23: 600 | DV23: 600 | DY23: 600 | EB23: 600 | EE23: 600 | EH23: 600 | EK23: 600 | EN23: 600 | EQ23: 600 | ET23: 600 | EW23: 600 | EZ23: 600 | FC23: 600 | FF23: 600 | FI23: 600 | FL23: 600 | FO23: 600 | FR23: 600 | FU23: 600 | FX23: 600 | GA23: 600 | GD23: 600 | GG23: 600 | GJ23: 600 | GM23: 600 | GP23: 600 | GS23: 600 | GV23: 600 | GY23: 600 | HB23: 600 | HE23: 600 | HH23: 600 | HK23: 600
A24: 22 | B24: السبت | C24: 2025-03-22 | D24: 08:00:00 | E24: 17:00:00 | F24: -7.993605777e-14 | G24: 08:00:00 | H24: 17:00:00 | I24: -7.993605777e-14 | J24: 08:00:00 | K24: 17:00:00 | L24: -7.993605777e-14 | M24: 08:00:00 | N24: 17:00:00 | O24: -7.993605777e-14 | P24: 08:00:00 | Q24: 17:00:00 | R24: -7.993605777e-14 | S24: 08:00:00 | T24: 17:00:00 | U24: -7.993605777e-14 | V24: 08:00:00 | W24: 17:00:00 | X24: -7.993605777e-14 | Y24: 08:00:00 | Z24: 17:00:00 | AA24: -7.993605777e-14 | AB24: 08:00:00 | AC24: 17:00:00 | AD24: -7.993605777e-14 | AE24: 08:00:00 | AF24: 17:00:00 | AG24: -7.993605777e-14 | AH24: 08:00:00 | AI24: 17:00:00 | AJ24: -7.993605777e-14 | AK24: 08:00:00 | AL24: 17:00:00 | AM24: -7.993605777e-14 | AN24: 08:00:00 | AO24: 17:00:00 | AP24: -7.993605777e-14 | AQ24: 08:00:00 | AR24: 17:00:00 | AS24: -7.993605777e-14 | AT24: 08:00:00 | AU24: 17:00:00 | AV24: -7.993605777e-14 | AW24: 08:00:00 | AX24: 17:00:00 | AY24: -7.993605777e-14 | AZ24: 08:00:00 | BA24: 17:00:00 | BB24: -7.993605777e-14 | BC24: 08:00:00 | BD24: 17:00:00 | BE24: -7.993605777e-14 | BF24: 08:00:00 | BG24: 17:00:00 | BH24: -7.993605777e-14 | BI24: 08:00:00 | BJ24: 18:00:00 | BK24: -4.796163466e-13 | BL24: 08:00:00 | BM24: 18:00:00 | BN24: -4.796163466e-13 | BO24: 08:00:00 | BP24: 18:00:00 | BQ24: -4.796163466e-13 | BR24: 08:00:00 | BS24: 18:00:00 | BT24: -4.796163466e-13 | BU24: 08:00:00 | BV24: 18:00:00 | BW24: -4.796163466e-13 | BX24: 08:00:00 | BY24: 18:00:00 | BZ24: -4.796163466e-13 | CA24: 08:00:00 | CB24: 18:00:00 | CC24: -4.796163466e-13 | CD24: 08:00:00 | CE24: 18:00:00 | CF24: -4.796163466e-13 | CG24: 08:00:00 | CH24: 18:00:00 | CI24: -4.796163466e-13 | CJ24: 08:00:00 | CK24: 18:00:00 | CL24: -4.796163466e-13 | CM24: 08:00:00 | CN24: 18:00:00 | CO24: -4.796163466e-13 | CP24: 08:00:00 | CQ24: 18:00:00 | CR24: -4.796163466e-13 | CS24: 08:00:00 | CT24: 18:00:00 | CU24: -4.796163466e-13 | CV24: 08:00:00 | CW24: 18:00:00 | CX24: -4.796163466e-13 | CY24: 08:00:00 | CZ24: 18:00:00 | DA24: -4.796163466e-13 | DB24: 08:00:00 | DC24: 18:00:00 | DD24: -4.796163466e-13 | DE24: 08:00:00 | DF24: 18:00:00 | DG24: -4.796163466e-13 | DH24: 08:00:00 | DI24: 18:00:00 | DJ24: -4.796163466e-13 | DK24: 08:00:00 | DL24: 18:00:00 | DM24: -4.796163466e-13 | DP24: 600 | DS24: 600 | DV24: 600 | DY24: 600 | EB24: 600 | EE24: 600 | EH24: 600 | EK24: 600 | EN24: 600 | EQ24: 600 | ET24: 600 | EW24: 600 | EZ24: 600 | FC24: 600 | FF24: 600 | FI24: 600 | FL24: 600 | FO24: 600 | FR24: 600 | FU24: 600 | FX24: 600 | GA24: 600 | GD24: 600 | GG24: 600 | GJ24: 600 | GM24: 600 | GP24: 600 | GS24: 600 | GV24: 600 | GY24: 600 | HB24: 600 | HE24: 600 | HH24: 600 | HK24: 600
A25: 23 | B25: الأحد | C25: 2025-03-23 | D25: 08:00:00 | E25: 17:00:00 | F25: -7.993605777e-14 | G25: 08:00:00 | H25: 17:00:00 | I25: -7.993605777e-14 | J25: 08:00:00 | K25: 17:00:00 | L25: -7.993605777e-14 | M25: 08:00:00 | N25: 17:00:00 | O25: -7.993605777e-14 | P25: 08:00:00 | Q25: 17:00:00 | R25: -7.993605777e-14 | S25: 08:00:00 | T25: 17:00:00 | U25: -7.993605777e-14 | V25: 08:00:00 | W25: 17:00:00 | X25: -7.993605777e-14 | Y25: 08:00:00 | Z25: 17:00:00 | AA25: -7.993605777e-14 | AB25: 08:00:00 | AC25: 17:00:00 | AD25: -7.993605777e-14 | AE25: 08:00:00 | AF25: 17:00:00 | AG25: -7.993605777e-14 | AH25: 08:00:00 | AI25: 17:00:00 | AJ25: -7.993605777e-14 | AK25: 08:00:00 | AL25: 17:00:00 | AM25: -7.993605777e-14 | AN25: 08:00:00 | AO25: 17:00:00 | AP25: -7.993605777e-14 | AQ25: 08:00:00 | AR25: 17:00:00 | AS25: -7.993605777e-14 | AT25: 08:00:00 | AU25: 17:00:00 | AV25: -7.993605777e-14 | AW25: 08:00:00 | AX25: 17:00:00 | AY25: -7.993605777e-14 | AZ25: 08:00:00 | BA25: 17:00:00 | BB25: -7.993605777e-14 | BC25: 08:00:00 | BD25: 17:00:00 | BE25: -7.993605777e-14 | BF25: 08:00:00 | BG25: 17:00:00 | BH25: -7.993605777e-14 | BI25: 08:00:00 | BJ25: 18:00:00 | BK25: -4.796163466e-13 | BL25: 08:00:00 | BM25: 18:00:00 | BN25: -4.796163466e-13 | BO25: 08:00:00 | BP25: 18:00:00 | BQ25: -4.796163466e-13 | BR25: 08:00:00 | BS25: 18:00:00 | BT25: -4.796163466e-13 | BU25: 08:00:00 | BV25: 18:00:00 | BW25: -4.796163466e-13 | BX25: 08:00:00 | BY25: 18:00:00 | BZ25: -4.796163466e-13 | CA25: 08:00:00 | CB25: 18:00:00 | CC25: -4.796163466e-13 | CD25: 08:00:00 | CE25: 18:00:00 | CF25: -4.796163466e-13 | CG25: 08:00:00 | CH25: 18:00:00 | CI25: -4.796163466e-13 | CJ25: 08:00:00 | CK25: 18:00:00 | CL25: -4.796163466e-13 | CM25: 08:00:00 | CN25: 18:00:00 | CO25: -4.796163466e-13 | CP25: 08:00:00 | CQ25: 18:00:00 | CR25: -4.796163466e-13 | CS25: 08:00:00 | CT25: 18:00:00 | CU25: -4.796163466e-13 | CV25: 08:00:00 | CW25: 18:00:00 | CX25: -4.796163466e-13 | CY25: 08:00:00 | CZ25: 18:00:00 | DA25: -4.796163466e-13 | DB25: 08:00:00 | DC25: 18:00:00 | DD25: -4.796163466e-13 | DE25: 08:00:00 | DF25: 18:00:00 | DG25: -4.796163466e-13 | DH25: 08:00:00 | DI25: 18:00:00 | DJ25: -4.796163466e-13 | DK25: 08:00:00 | DL25: 18:00:00 | DM25: -4.796163466e-13 | DP25: 600 | DS25: 600 | DV25: 600 | DY25: 600 | EB25: 600 | EE25: 600 | EH25: 600 | EK25: 600 | EN25: 600 | EQ25: 600 | ET25: 600 | EW25: 600 | EZ25: 600 | FC25: 600 | FF25: 600 | FI25: 600 | FL25: 600 | FO25: 600 | FR25: 600 | FU25: 600 | FX25: 600 | GA25: 600 | GD25: 600 | GG25: 600 | GJ25: 600 | GM25: 600 | GP25: 600 | GS25: 600 | GV25: 600 | GY25: 600 | HB25: 600 | HE25: 600 | HH25: 600 | HK25: 600
A26: 24 | B26: الإثنين | C26: 2025-03-24 | D26: 08:00:00 | E26: 17:00:00 | F26: -7.993605777e-14 | G26: 08:00:00 | H26: 17:00:00 | I26: -7.993605777e-14 | J26: 08:00:00 | K26: 17:00:00 | L26: -7.993605777e-14 | M26: 08:00:00 | N26: 17:00:00 | O26: -7.993605777e-14 | P26: 08:00:00 | Q26: 17:00:00 | R26: -7.993605777e-14 | S26: 08:00:00 | T26: 17:00:00 | U26: -7.993605777e-14 | V26: 08:00:00 | W26: 17:00:00 | X26: -7.993605777e-14 | Y26: 08:00:00 | Z26: 17:00:00 | AA26: -7.993605777e-14 | AB26: 08:00:00 | AC26: 17:00:00 | AD26: -7.993605777e-14 | AE26: 08:00:00 | AF26: 17:00:00 | AG26: -7.993605777e-14 | AH26: 08:00:00 | AI26: 17:00:00 | AJ26: -7.993605777e-14 | AK26: 08:00:00 | AL26: 17:00:00 | AM26: -7.993605777e-14 | AN26: 08:00:00 | AO26: 17:00:00 | AP26: -7.993605777e-14 | AQ26: 08:00:00 | AR26: 17:00:00 | AS26: -7.993605777e-14 | AT26: 08:00:00 | AU26: 17:00:00 | AV26: -7.993605777e-14 | AW26: 08:00:00 | AX26: 17:00:00 | AY26: -7.993605777e-14 | AZ26: 08:00:00 | BA26: 17:00:00 | BB26: -7.993605777e-14 | BC26: 08:00:00 | BD26: 17:00:00 | BE26: -7.993605777e-14 | BF26: 08:00:00 | BG26: 17:00:00 | BH26: -7.993605777e-14 | BI26: 08:00:00 | BJ26: 18:00:00 | BK26: -4.796163466e-13 | BL26: 08:00:00 | BM26: 18:00:00 | BN26: -4.796163466e-13 | BO26: 08:00:00 | BP26: 18:00:00 | BQ26: -4.796163466e-13 | BR26: 08:00:00 | BS26: 18:00:00 | BT26: -4.796163466e-13 | BU26: 08:00:00 | BV26: 18:00:00 | BW26: -4.796163466e-13 | BX26: 08:00:00 | BY26: 18:00:00 | BZ26: -4.796163466e-13 | CA26: 08:00:00 | CB26: 18:00:00 | CC26: -4.796163466e-13 | CD26: 08:00:00 | CE26: 18:00:00 | CF26: -4.796163466e-13 | CG26: 08:00:00 | CH26: 18:00:00 | CI26: -4.796163466e-13 | CJ26: 08:00:00 | CK26: 18:00:00 | CL26: -4.796163466e-13 | CM26: 08:00:00 | CN26: 18:00:00 | CO26: -4.796163466e-13 | CP26: 08:00:00 | CQ26: 18:00:00 | CR26: -4.796163466e-13 | CS26: 08:00:00 | CT26: 18:00:00 | CU26: -4.796163466e-13 | CV26: 08:00:00 | CW26: 18:00:00 | CX26: -4.796163466e-13 | CY26: 08:00:00 | CZ26: 18:00:00 | DA26: -4.796163466e-13 | DB26: 08:00:00 | DC26: 18:00:00 | DD26: -4.796163466e-13 | DE26: 08:00:00 | DF26: 18:00:00 | DG26: -4.796163466e-13 | DH26: 08:00:00 | DI26: 18:00:00 | DJ26: -4.796163466e-13 | DK26: 08:00:00 | DL26: 18:00:00 | DM26: -4.796163466e-13 | DP26: 600 | DS26: 600 | DV26: 600 | DY26: 600 | EB26: 600 | EE26: 600 | EH26: 600 | EK26: 600 | EN26: 600 | EQ26: 600 | ET26: 600 | EW26: 600 | EZ26: 600 | FC26: 600 | FF26: 600 | FI26: 600 | FL26: 600 | FO26: 600 | FR26: 600 | FU26: 600 | FX26: 600 | GA26: 600 | GD26: 600 | GG26: 600 | GJ26: 600 | GM26: 600 | GP26: 600 | GS26: 600 | GV26: 600 | GY26: 600 | HB26: 600 | HE26: 600 | HH26: 600 | HK26: 600
A27: 25 | B27: الثلاثاء | C27: 2025-03-25 | D27: 08:00:00 | E27: 17:00:00 | F27: -7.993605777e-14 | G27: 08:00:00 | H27: 17:00:00 | I27: -7.993605777e-14 | J27: 08:00:00 | K27: 17:00:00 | L27: -7.993605777e-14 | M27: 08:00:00 | N27: 17:00:00 | O27: -7.993605777e-14 | P27: 08:00:00 | Q27: 17:00:00 | R27: -7.993605777e-14 | S27: 08:00:00 | T27: 17:00:00 | U27: -7.993605777e-14 | V27: 08:00:00 | W27: 17:00:00 | X27: -7.993605777e-14 | Y27: 08:00:00 | Z27: 17:00:00 | AA27: -7.993605777e-14 | AB27: 08:00:00 | AC27: 17:00:00 | AD27: -7.993605777e-14 | AE27: 08:00:00 | AF27: 17:00:00 | AG27: -7.993605777e-14 | AH27: 08:00:00 | AI27: 17:00:00 | AJ27: -7.993605777e-14 | AK27: 08:00:00 | AL27: 17:00:00 | AM27: -7.993605777e-14 | AN27: 08:00:00 | AO27: 17:00:00 | AP27: -7.993605777e-14 | AQ27: 08:00:00 | AR27: 17:00:00 | AS27: -7.993605777e-14 | AT27: 08:00:00 | AU27: 17:00:00 | AV27: -7.993605777e-14 | AW27: 08:00:00 | AX27: 17:00:00 | AY27: -7.993605777e-14 | AZ27: 08:00:00 | BA27: 17:00:00 | BB27: -7.993605777e-14 | BC27: 08:00:00 | BD27: 17:00:00 | BE27: -7.993605777e-14 | BF27: 08:00:00 | BG27: 17:00:00 | BH27: -7.993605777e-14 | BI27: 08:00:00 | BJ27: 18:00:00 | BK27: -4.796163466e-13 | BL27: 08:00:00 | BM27: 18:00:00 | BN27: -4.796163466e-13 | BO27: 08:00:00 | BP27: 18:00:00 | BQ27: -4.796163466e-13 | BR27: 08:00:00 | BS27: 18:00:00 | BT27: -4.796163466e-13 | BU27: 08:00:00 | BV27: 18:00:00 | BW27: -4.796163466e-13 | BX27: 08:00:00 | BY27: 18:00:00 | BZ27: -4.796163466e-13 | CA27: 08:00:00 | CB27: 18:00:00 | CC27: -4.796163466e-13 | CD27: 08:00:00 | CE27: 18:00:00 | CF27: -4.796163466e-13 | CG27: 08:00:00 | CH27: 18:00:00 | CI27: -4.796163466e-13 | CJ27: 08:00:00 | CK27: 18:00:00 | CL27: -4.796163466e-13 | CM27: 08:00:00 | CN27: 18:00:00 | CO27: -4.796163466e-13 | CP27: 08:00:00 | CQ27: 18:00:00 | CR27: -4.796163466e-13 | CS27: 08:00:00 | CT27: 18:00:00 | CU27: -4.796163466e-13 | CV27: 08:00:00 | CW27: 18:00:00 | CX27: -4.796163466e-13 | CY27: 08:00:00 | CZ27: 18:00:00 | DA27: -4.796163466e-13 | DB27: 08:00:00 | DC27: 18:00:00 | DD27: -4.796163466e-13 | DE27: 08:00:00 | DF27: 18:00:00 | DG27: -4.796163466e-13 | DH27: 08:00:00 | DI27: 18:00:00 | DJ27: -4.796163466e-13 | DK27: 08:00:00 | DL27: 18:00:00 | DM27: -4.796163466e-13 | DP27: 600 | DS27: 600 | DV27: 600 | DY27: 600 | EB27: 600 | EE27: 600 | EH27: 600 | EK27: 600 | EN27: 600 | EQ27: 600 | ET27: 600 | EW27: 600 | EZ27: 600 | FC27: 600 | FF27: 600 | FI27: 600 | FL27: 600 | FO27: 600 | FR27: 600 | FU27: 600 | FX27: 600 | GA27: 600 | GD27: 600 | GG27: 600 | GJ27: 600 | GM27: 600 | GP27: 600 | GS27: 600 | GV27: 600 | GY27: 600 | HB27: 600 | HE27: 600 | HH27: 600 | HK27: 600
A28: 26 | B28: الأربعاء | C28: 2025-03-26 | D28: 08:00:00 | E28: 17:00:00 | F28: -7.993605777e-14 | G28: 08:00:00 | H28: 17:00:00 | I28: -7.993605777e-14 | J28: 08:00:00 | K28: 17:00:00 | L28: -7.993605777e-14 | M28: 08:00:00 | N28: 17:00:00 | O28: -7.993605777e-14 | P28: 08:00:00 | Q28: 17:00:00 | R28: -7.993605777e-14 | S28: 08:00:00 | T28: 17:00:00 | U28: -7.993605777e-14 | V28: 08:00:00 | W28: 17:00:00 | X28: -7.993605777e-14 | Y28: 08:00:00 | Z28: 17:00:00 | AA28: -7.993605777e-14 | AB28: 08:00:00 | AC28: 17:00:00 | AD28: -7.993605777e-14 | AE28: 08:00:00 | AF28: 17:00:00 | AG28: -7.993605777e-14 | AH28: 08:00:00 | AI28: 17:00:00 | AJ28: -7.993605777e-14 | AK28: 08:00:00 | AL28: 17:00:00 | AM28: -7.993605777e-14 | AN28: 08:00:00 | AO28: 17:00:00 | AP28: -7.993605777e-14 | AQ28: 08:00:00 | AR28: 17:00:00 | AS28: -7.993605777e-14 | AT28: 08:00:00 | AU28: 17:00:00 | AV28: -7.993605777e-14 | AW28: 08:00:00 | AX28: 17:00:00 | AY28: -7.993605777e-14 | AZ28: 08:00:00 | BA28: 17:00:00 | BB28: -7.993605777e-14 | BC28: 08:00:00 | BD28: 17:00:00 | BE28: -7.993605777e-14 | BF28: 08:00:00 | BG28: 17:00:00 | BH28: -7.993605777e-14 | BI28: 08:00:00 | BJ28: 18:00:00 | BK28: -4.796163466e-13 | BL28: 08:00:00 | BM28: 18:00:00 | BN28: -4.796163466e-13 | BO28: 08:00:00 | BP28: 18:00:00 | BQ28: -4.796163466e-13 | BR28: 08:00:00 | BS28: 18:00:00 | BT28: -4.796163466e-13 | BU28: 08:00:00 | BV28: 18:00:00 | BW28: -4.796163466e-13 | BX28: 08:00:00 | BY28: 18:00:00 | BZ28: -4.796163466e-13 | CA28: 08:00:00 | CB28: 18:00:00 | CC28: -4.796163466e-13 | CD28: 08:00:00 | CE28: 18:00:00 | CF28: -4.796163466e-13 | CG28: 08:00:00 | CH28: 18:00:00 | CI28: -4.796163466e-13 | CJ28: 08:00:00 | CK28: 18:00:00 | CL28: -4.796163466e-13 | CM28: 08:00:00 | CN28: 18:00:00 | CO28: -4.796163466e-13 | CP28: 08:00:00 | CQ28: 18:00:00 | CR28: -4.796163466e-13 | CS28: 08:00:00 | CT28: 18:00:00 | CU28: -4.796163466e-13 | CV28: 08:00:00 | CW28: 18:00:00 | CX28: -4.796163466e-13 | CY28: 08:00:00 | CZ28: 18:00:00 | DA28: -4.796163466e-13 | DB28: 08:00:00 | DC28: 18:00:00 | DD28: -4.796163466e-13 | DE28: 08:00:00 | DF28: 18:00:00 | DG28: -4.796163466e-13 | DH28: 08:00:00 | DI28: 18:00:00 | DJ28: -4.796163466e-13 | DK28: 08:00:00 | DL28: 18:00:00 | DM28: -4.796163466e-13 | DP28: 600 | DS28: 600 | DV28: 600 | DY28: 600 | EB28: 600 | EE28: 600 | EH28: 600 | EK28: 600 | EN28: 600 | EQ28: 600 | ET28: 600 | EW28: 600 | EZ28: 600 | FC28: 600 | FF28: 600 | FI28: 600 | FL28: 600 | FO28: 600 | FR28: 600 | FU28: 600 | FX28: 600 | GA28: 600 | GD28: 600 | GG28: 600 | GJ28: 600 | GM28: 600 | GP28: 600 | GS28: 600 | GV28: 600 | GY28: 600 | HB28: 600 | HE28: 600 | HH28: 600 | HK28: 600
A29: 27 | B29: الخميس | C29: 2025-03-27 | D29: 08:00:00 | E29: 17:00:00 | F29: -7.993605777e-14 | G29: 08:00:00 | H29: 17:00:00 | I29: -7.993605777e-14 | J29: 08:00:00 | K29: 17:00:00 | L29: -7.993605777e-14 | M29: 08:00:00 | N29: 17:00:00 | O29: -7.993605777e-14 | P29: 08:00:00 | Q29: 17:00:00 | R29: -7.993605777e-14 | S29: 08:00:00 | T29: 17:00:00 | U29: -7.993605777e-14 | V29: 08:00:00 | W29: 17:00:00 | X29: -7.993605777e-14 | Y29: 08:00:00 | Z29: 17:00:00 | AA29: -7.993605777e-14 | AB29: 08:00:00 | AC29: 17:00:00 | AD29: -7.993605777e-14 | AE29: 08:00:00 | AF29: 17:00:00 | AG29: -7.993605777e-14 | AH29: 08:00:00 | AI29: 17:00:00 | AJ29: -7.993605777e-14 | AK29: 08:00:00 | AL29: 17:00:00 | AM29: -7.993605777e-14 | AN29: 08:00:00 | AO29: 17:00:00 | AP29: -7.993605777e-14 | AQ29: 08:00:00 | AR29: 17:00:00 | AS29: -7.993605777e-14 | AT29: 08:00:00 | AU29: 17:00:00 | AV29: -7.993605777e-14 | AW29: 08:00:00 | AX29: 17:00:00 | AY29: -7.993605777e-14 | AZ29: 08:00:00 | BA29: 17:00:00 | BB29: -7.993605777e-14 | BC29: 08:00:00 | BD29: 17:00:00 | BE29: -7.993605777e-14 | BF29: 08:00:00 | BG29: 17:00:00 | BH29: -7.993605777e-14 | BI29: 08:00:00 | BJ29: 18:00:00 | BK29: -4.796163466e-13 | BL29: 08:00:00 | BM29: 18:00:00 | BN29: -4.796163466e-13 | BO29: 08:00:00 | BP29: 18:00:00 | BQ29: -4.796163466e-13 | BR29: 08:00:00 | BS29: 18:00:00 | BT29: -4.796163466e-13 | BU29: 08:00:00 | BV29: 18:00:00 | BW29: -4.796163466e-13 | BX29: 08:00:00 | BY29: 18:00:00 | BZ29: -4.796163466e-13 | CA29: 08:00:00 | CB29: 18:00:00 | CC29: -4.796163466e-13 | CD29: 08:00:00 | CE29: 18:00:00 | CF29: -4.796163466e-13 | CG29: 08:00:00 | CH29: 18:00:00 | CI29: -4.796163466e-13 | CJ29: 08:00:00 | CK29: 18:00:00 | CL29: -4.796163466e-13 | CM29: 08:00:00 | CN29: 18:00:00 | CO29: -4.796163466e-13 | CP29: 08:00:00 | CQ29: 18:00:00 | CR29: -4.796163466e-13 | CS29: 08:00:00 | CT29: 18:00:00 | CU29: -4.796163466e-13 | CV29: 08:00:00 | CW29: 18:00:00 | CX29: -4.796163466e-13 | CY29: 08:00:00 | CZ29: 18:00:00 | DA29: -4.796163466e-13 | DB29: 08:00:00 | DC29: 18:00:00 | DD29: -4.796163466e-13 | DE29: 08:00:00 | DF29: 18:00:00 | DG29: -4.796163466e-13 | DH29: 08:00:00 | DI29: 18:00:00 | DJ29: -4.796163466e-13 | DK29: 08:00:00 | DL29: 18:00:00 | DM29: -4.796163466e-13 | DP29: 600 | DS29: 600 | DV29: 600 | DY29: 600 | EB29: 600 | EE29: 600 | EH29: 600 | EK29: 600 | EN29: 600 | EQ29: 600 | ET29: 600 | EW29: 600 | EZ29: 600 | FC29: 600 | FF29: 600 | FI29: 600 | FL29: 600 | FO29: 600 | FR29: 600 | FU29: 600 | FX29: 600 | GA29: 600 | GD29: 600 | GG29: 600 | GJ29: 600 | GM29: 600 | GP29: 600 | GS29: 600 | GV29: 600 | GY29: 600 | HB29: 600 | HE29: 600 | HH29: 600 | HK29: 600
A30: 28 | B30: الجمعة | C30: 2025-03-28 | D30: 08:00:00 | E30: 17:00:00 | F30: -7.993605777e-14 | G30: 08:00:00 | H30: 17:00:00 | I30: -7.993605777e-14 | J30: 08:00:00 | K30: 17:00:00 | L30: -7.993605777e-14 | M30: 08:00:00 | N30: 17:00:00 | O30: -7.993605777e-14 | P30: 08:00:00 | Q30: 17:00:00 | R30: -7.993605777e-14 | S30: 08:00:00 | T30: 17:00:00 | U30: -7.993605777e-14 | V30: 08:00:00 | W30: 17:00:00 | X30: -7.993605777e-14 | Y30: 08:00:00 | Z30: 17:00:00 | AA30: -7.993605777e-14 | AB30: 08:00:00 | AC30: 17:00:00 | AD30: -7.993605777e-14 | AE30: 08:00:00 | AF30: 17:00:00 | AG30: -7.993605777e-14 | AH30: 08:00:00 | AI30: 17:00:00 | AJ30: -7.993605777e-14 | AK30: 08:00:00 | AL30: 17:00:00 | AM30: -7.993605777e-14 | AN30: 08:00:00 | AO30: 17:00:00 | AP30: -7.993605777e-14 | AQ30: 08:00:00 | AR30: 17:00:00 | AS30: -7.993605777e-14 | AT30: 08:00:00 | AU30: 17:00:00 | AV30: -7.993605777e-14 | AW30: 08:00:00 | AX30: 17:00:00 | AY30: -7.993605777e-14 | AZ30: 08:00:00 | BA30: 17:00:00 | BB30: -7.993605777e-14 | BC30: 08:00:00 | BD30: 17:00:00 | BE30: -7.993605777e-14 | BF30: 08:00:00 | BG30: 17:00:00 | BH30: -7.993605777e-14 | BI30: 08:00:00 | BJ30: 18:00:00 | BK30: -4.796163466e-13 | BL30: 08:00:00 | BM30: 18:00:00 | BN30: -4.796163466e-13 | BO30: 08:00:00 | BP30: 18:00:00 | BQ30: -4.796163466e-13 | BR30: 08:00:00 | BS30: 18:00:00 | BT30: -4.796163466e-13 | BU30: 08:00:00 | BV30: 18:00:00 | BW30: -4.796163466e-13 | BX30: 08:00:00 | BY30: 18:00:00 | BZ30: -4.796163466e-13 | CA30: 08:00:00 | CB30: 18:00:00 | CC30: -4.796163466e-13 | CD30: 08:00:00 | CE30: 18:00:00 | CF30: -4.796163466e-13 | CG30: 08:00:00 | CH30: 18:00:00 | CI30: -4.796163466e-13 | CJ30: 08:00:00 | CK30: 18:00:00 | CL30: -4.796163466e-13 | CM30: 08:00:00 | CN30: 18:00:00 | CO30: -4.796163466e-13 | CP30: 08:00:00 | CQ30: 18:00:00 | CR30: -4.796163466e-13 | CS30: 08:00:00 | CT30: 18:00:00 | CU30: -4.796163466e-13 | CV30: 08:00:00 | CW30: 18:00:00 | CX30: -4.796163466e-13 | CY30: 08:00:00 | CZ30: 18:00:00 | DA30: -4.796163466e-13 | DB30: 08:00:00 | DC30: 18:00:00 | DD30: -4.796163466e-13 | DE30: 08:00:00 | DF30: 18:00:00 | DG30: -4.796163466e-13 | DH30: 08:00:00 | DI30: 18:00:00 | DJ30: -4.796163466e-13 | DK30: 08:00:00 | DL30: 18:00:00 | DM30: -4.796163466e-13 | DP30: 600 | DS30: 600 | DV30: 600 | DY30: 600 | EB30: 600 | EE30: 600 | EH30: 600 | EK30: 600 | EN30: 600 | EQ30: 600 | ET30: 600 | EW30: 600 | EZ30: 600 | FC30: 600 | FF30: 600 | FI30: 600 | FL30: 600 | FO30: 600 | FR30: 600 | FU30: 600 | FX30: 600 | GA30: 600 | GD30: 600 | GG30: 600 | GJ30: 600 | GM30: 600 | GP30: 600 | GS30: 600 | GV30: 600 | GY30: 600 | HB30: 600 | HE30: 600 | HH30: 600 | HK30: 600
A31: 29 | B31: السبت | C31: 2025-03-29 | D31: 08:00:00 | E31: 17:00:00 | F31: -7.993605777e-14 | G31: 08:00:00 | H31: 17:00:00 | I31: -7.993605777e-14 | J31: 08:00:00 | K31: 17:00:00 | L31: -7.993605777e-14 | M31: 08:00:00 | N31: 17:00:00 | O31: -7.993605777e-14 | P31: 08:00:00 | Q31: 17:00:00 | R31: -7.993605777e-14 | S31: 08:00:00 | T31: 17:00:00 | U31: -7.993605777e-14 | V31: 08:00:00 | W31: 17:00:00 | X31: -7.993605777e-14 | Y31: 08:00:00 | Z31: 17:00:00 | AA31: -7.993605777e-14 | AB31: 08:00:00 | AC31: 17:00:00 | AD31: -7.993605777e-14 | AE31: 08:00:00 | AF31: 17:00:00 | AG31: -7.993605777e-14 | AH31: 08:00:00 | AI31: 17:00:00 | AJ31: -7.993605777e-14 | AK31: 08:00:00 | AL31: 17:00:00 | AM31: -7.993605777e-14 | AN31: 08:00:00 | AO31: 17:00:00 | AP31: -7.993605777e-14 | AQ31: 08:00:00 | AR31: 17:00:00 | AS31: -7.993605777e-14 | AT31: 08:00:00 | AU31: 17:00:00 | AV31: -7.993605777e-14 | AW31: 08:00:00 | AX31: 17:00:00 | AY31: -7.993605777e-14 | AZ31: 08:00:00 | BA31: 17:00:00 | BB31: -7.993605777e-14 | BC31: 08:00:00 | BD31: 17:00:00 | BE31: -7.993605777e-14 | BF31: 08:00:00 | BG31: 17:00:00 | BH31: -7.993605777e-14 | BI31: 08:00:00 | BJ31: 18:00:00 | BK31: -4.796163466e-13 | BL31: 08:00:00 | BM31: 18:00:00 | BN31: -4.796163466e-13 | BO31: 08:00:00 | BP31: 18:00:00 | BQ31: -4.796163466e-13 | BR31: 08:00:00 | BS31: 18:00:00 | BT31: -4.796163466e-13 | BU31: 08:00:00 | BV31: 18:00:00 | BW31: -4.796163466e-13 | BX31: 08:00:00 | BY31: 18:00:00 | BZ31: -4.796163466e-13 | CA31: 08:00:00 | CB31: 18:00:00 | CC31: -4.796163466e-13 | CD31: 08:00:00 | CE31: 18:00:00 | CF31: -4.796163466e-13 | CG31: 08:00:00 | CH31: 18:00:00 | CI31: -4.796163466e-13 | CJ31: 08:00:00 | CK31: 18:00:00 | CL31: -4.796163466e-13 | CM31: 08:00:00 | CN31: 18:00:00 | CO31: -4.796163466e-13 | CP31: 08:00:00 | CQ31: 18:00:00 | CR31: -4.796163466e-13 | CS31: 08:00:00 | CT31: 18:00:00 | CU31: -4.796163466e-13 | CV31: 08:00:00 | CW31: 18:00:00 | CX31: -4.796163466e-13 | CY31: 08:00:00 | CZ31: 18:00:00 | DA31: -4.796163466e-13 | DB31: 08:00:00 | DC31: 18:00:00 | DD31: -4.796163466e-13 | DE31: 08:00:00 | DF31: 18:00:00 | DG31: -4.796163466e-13 | DH31: 08:00:00 | DI31: 18:00:00 | DJ31: -4.796163466e-13 | DK31: 08:00:00 | DL31: 18:00:00 | DM31: -4.796163466e-13 | DP31: 600 | DS31: 600 | DV31: 600 | DY31: 600 | EB31: 600 | EE31: 600 | EH31: 600 | EK31: 600 | EN31: 600 | EQ31: 600 | ET31: 600 | EW31: 600 | EZ31: 600 | FC31: 600 | FF31: 600 | FI31: 600 | FL31: 600 | FO31: 600 | FR31: 600 | FU31: 600 | FX31: 600 | GA31: 600 | GD31: 600 | GG31: 600 | GJ31: 600 | GM31: 600 | GP31: 600 | GS31: 600 | GV31: 600 | GY31: 600 | HB31: 600 | HE31: 600 | HH31: 600 | HK31: 600
A32: 30 | B32: الأحد | C32: 2025-03-30 | D32: 08:00:00 | E32: 17:00:00 | F32: -7.993605777e-14 | G32: 08:00:00 | H32: 17:00:00 | I32: -7.993605777e-14 | J32: 08:00:00 | K32: 17:00:00 | L32: -7.993605777e-14 | M32: 08:00:00 | N32: 17:00:00 | O32: -7.993605777e-14 | P32: 08:00:00 | Q32: 17:00:00 | R32: -7.993605777e-14 | S32: 08:00:00 | T32: 17:00:00 | U32: -7.993605777e-14 | V32: 08:00:00 | W32: 17:00:00 | X32: -7.993605777e-14 | Y32: 08:00:00 | Z32: 17:00:00 | AA32: -7.993605777e-14 | AB32: 08:00:00 | AC32: 17:00:00 | AD32: -7.993605777e-14 | AE32: 08:00:00 | AF32: 17:00:00 | AG32: -7.993605777e-14 | AH32: 08:00:00 | AI32: 17:00:00 | AJ32: -7.993605777e-14 | AK32: 08:00:00 | AL32: 17:00:00 | AM32: -7.993605777e-14 | AN32: 08:00:00 | AO32: 17:00:00 | AP32: -7.993605777e-14 | AQ32: 08:00:00 | AR32: 17:00:00 | AS32: -7.993605777e-14 | AT32: 08:00:00 | AU32: 17:00:00 | AV32: -7.993605777e-14 | AW32: 08:00:00 | AX32: 17:00:00 | AY32: -7.993605777e-14 | AZ32: 08:00:00 | BA32: 17:00:00 | BB32: -7.993605777e-14 | BC32: 08:00:00 | BD32: 17:00:00 | BE32: -7.993605777e-14 | BF32: 08:00:00 | BG32: 17:00:00 | BH32: -7.993605777e-14 | BI32: 08:00:00 | BJ32: 18:00:00 | BK32: -4.796163466e-13 | BL32: 08:00:00 | BM32: 18:00:00 | BN32: -4.796163466e-13 | BO32: 08:00:00 | BP32: 18:00:00 | BQ32: -4.796163466e-13 | BR32: 08:00:00 | BS32: 18:00:00 | BT32: -4.796163466e-13 | BU32: 08:00:00 | BV32: 18:00:00 | BW32: -4.796163466e-13 | BX32: 08:00:00 | BY32: 18:00:00 | BZ32: -4.796163466e-13 | CA32: 08:00:00 | CB32: 18:00:00 | CC32: -4.796163466e-13 | CD32: 08:00:00 | CE32: 18:00:00 | CF32: -4.796163466e-13 | CG32: 08:00:00 | CH32: 18:00:00 | CI32: -4.796163466e-13 | CJ32: 08:00:00 | CK32: 18:00:00 | CL32: -4.796163466e-13 | CM32: 08:00:00 | CN32: 18:00:00 | CO32: -4.796163466e-13 | CP32: 08:00:00 | CQ32: 18:00:00 | CR32: -4.796163466e-13 | CS32: 08:00:00 | CT32: 18:00:00 | CU32: -4.796163466e-13 | CV32: 08:00:00 | CW32: 18:00:00 | CX32: -4.796163466e-13 | CY32: 08:00:00 | CZ32: 18:00:00 | DA32: -4.796163466e-13 | DB32: 08:00:00 | DC32: 18:00:00 | DD32: -4.796163466e-13 | DE32: 08:00:00 | DF32: 18:00:00 | DG32: -4.796163466e-13 | DH32: 08:00:00 | DI32: 18:00:00 | DJ32: -4.796163466e-13 | DK32: 08:00:00 | DL32: 18:00:00 | DM32: -4.796163466e-13 | DP32: 600 | DS32: 600 | DV32: 600 | DY32: 600 | EB32: 600 | EE32: 600 | EH32: 600 | EK32: 600 | EN32: 600 | EQ32: 600 | ET32: 600 | EW32: 600 | EZ32: 600 | FC32: 600 | FF32: 600 | FI32: 600 | FL32: 600 | FO32: 600 | FR32: 600 | FU32: 600 | FX32: 600 | GA32: 600 | GD32: 600 | GG32: 600 | GJ32: 600 | GM32: 600 | GP32: 600 | GS32: 600 | GV32: 600 | GY32: 600 | HB32: 600 | HE32: 600 | HH32: 600 | HK32: 600
A33: 31 | B33: الإثنين | C33: =C32+1 -> 2025-03-31 | D33: 08:00:00 | E33: 17:00:00 | F33: -7.993605777e-14 | G33: 08:00:00 | H33: 17:00:00 | I33: -7.993605777e-14 | J33: 08:00:00 | K33: 17:00:00 | L33: -7.993605777e-14 | M33: 08:00:00 | N33: 17:00:00 | O33: -7.993605777e-14 | P33: 08:00:00 | Q33: 17:00:00 | R33: -7.993605777e-14 | S33: 08:00:00 | T33: 17:00:00 | U33: -7.993605777e-14 | V33: 08:00:00 | W33: 17:00:00 | X33: -7.993605777e-14 | Y33: 08:00:00 | Z33: 17:00:00 | AA33: -7.993605777e-14 | AB33: 08:00:00 | AC33: 17:00:00 | AD33: -7.993605777e-14 | AE33: 08:00:00 | AF33: 17:00:00 | AG33: -7.993605777e-14 | AH33: 08:00:00 | AI33: 17:00:00 | AJ33: -7.993605777e-14 | AK33: 08:00:00 | AL33: 17:00:00 | AM33: -7.993605777e-14 | AN33: 08:00:00 | AO33: 17:00:00 | AP33: -7.993605777e-14 | AQ33: 08:00:00 | AR33: 17:00:00 | AS33: -7.993605777e-14 | AT33: 08:00:00 | AU33: 17:00:00 | AV33: -7.993605777e-14 | AW33: 08:00:00 | AX33: 17:00:00 | AY33: -7.993605777e-14 | AZ33: 08:00:00 | BA33: 17:00:00 | BB33: -7.993605777e-14 | BC33: 08:00:00 | BD33: 17:00:00 | BE33: -7.993605777e-14 | BF33: 08:00:00 | BG33: 17:00:00 | BH33: -7.993605777e-14 | BI33: 08:00:00 | BJ33: 18:00:00 | BK33: -4.796163466e-13 | BL33: 08:00:00 | BM33: 18:00:00 | BN33: -4.796163466e-13 | BO33: 08:00:00 | BP33: 18:00:00 | BQ33: -4.796163466e-13 | BR33: 08:00:00 | BS33: 18:00:00 | BT33: -4.796163466e-13 | BU33: 08:00:00 | BV33: 18:00:00 | BW33: -4.796163466e-13 | BX33: 08:00:00 | BY33: 18:00:00 | BZ33: -4.796163466e-13 | CA33: 08:00:00 | CB33: 18:00:00 | CC33: -4.796163466e-13 | CD33: 08:00:00 | CE33: 18:00:00 | CF33: -4.796163466e-13 | CG33: 08:00:00 | CH33: 18:00:00 | CI33: -4.796163466e-13 | CJ33: 08:00:00 | CK33: 18:00:00 | CL33: -4.796163466e-13 | CM33: 08:00:00 | CN33: 18:00:00 | CO33: -4.796163466e-13 | CP33: 08:00:00 | CQ33: 18:00:00 | CR33: -4.796163466e-13 | CS33: 08:00:00 | CT33: 18:00:00 | CU33: -4.796163466e-13 | CV33: 08:00:00 | CW33: 18:00:00 | CX33: -4.796163466e-13 | CY33: 08:00:00 | CZ33: 18:00:00 | DA33: -4.796163466e-13 | DB33: 08:00:00 | DC33: 18:00:00 | DD33: -4.796163466e-13 | DE33: 08:00:00 | DF33: 18:00:00 | DG33: -4.796163466e-13 | DH33: 08:00:00 | DI33: 18:00:00 | DJ33: -4.796163466e-13 | DK33: 08:00:00 | DL33: 18:00:00 | DM33: -4.796163466e-13 | DP33: 600 | DS33: 600 | DV33: 600 | DY33: 600 | EB33: 600 | EE33: 600 | EH33: 600 | EK33: 600 | EN33: 600 | EQ33: 600 | ET33: 600 | EW33: 600 | EZ33: 600 | FC33: 600 | FF33: 600 | FI33: 600 | FL33: 600 | FO33: 600 | FR33: 600 | FU33: 600 | FX33: 600 | GA33: 600 | GD33: 600 | GG33: 600 | GJ33: 600 | GM33: 600 | GP33: 600 | GS33: 600 | GV33: 600 | GY33: 600 | HB33: 600 | HE33: 600 | HH33: 600 | HK33: 600
A34: الإجـمــــــالـــى | D34: =SUM(F3:F33) -> -2.478017791e-12 | G34: =SUM(I3:I33) -> -2.478017791e-12 | J34: =SUM(L3:L33) -> -2.478017791e-12 | M34: =SUM(O3:O33) -> -2.478017791e-12 | P34: =SUM(R3:R33) -> -2.478017791e-12 | S34: =SUM(U3:U33) -> -2.478017791e-12 | V34: =SUM(X3:X33) -> -2.478017791e-12 | Y34: =SUM(AA3:AA33) -> -2.478017791e-12 | AB34: =SUM(AD3:AD33) -> -2.478017791e-12 | AE34: =SUM(AG3:AG33) -> -2.478017791e-12 | AH34: =SUM(AJ3:AJ33) -> -2.478017791e-12 | AK34: =SUM(AM3:AM33) -> -2.478017791e-12 | AN34: =SUM(AP3:AP33) -> -2.478017791e-12 | AQ34: =SUM(AS3:AS33) -> -2.478017791e-12 | AT34: =SUM(AV3:AV33) -> -2.478017791e-12 | AW34: =SUM(AY3:AY33) -> -2.478017791e-12 | AZ34: =SUM(BB3:BB33) -> -2.478017791e-12 | BC34: =SUM(BE3:BE33) -> -2.478017791e-12 | BF34: =SUM(BH3:BH33) -> -2.478017791e-12 | BI34: =SUM(BK3:BK33) -> -1.294964136e-11 | BL34: =SUM(BN3:BN33) -> 150 | BO34: =SUM(BQ3:BQ33) -> -1.390887405e-11 | BR34: =SUM(BT3:BT33) -> -1.294964136e-11 | BU34: =SUM(BW3:BW33) -> -1.151079232e-11 | BX34: =SUM(BZ3:BZ33) -> -1.247002501e-11 | CA34: =SUM(CC3:CC33) -> -1.199040867e-11 | CD34: =SUM(CF3:CF33) -> 240 | CG34: =SUM(CI3:CI33) -> 240 | CJ34: =SUM(CL3:CL33) -> -1.390887405e-11 | CM34: =SUM(CO3:CO33) -> -1.390887405e-11 | CP34: 260 | CS34: =SUM(CU3:CU33) -> -1.151079232e-11 | CV34: =SUM(CX3:CX33) -> -1.390887405e-11 | CY34: =SUM(DA3:DA33) -> -1.390887405e-11 | DB34: =SUM(DD3:DD33) -> -1.390887405e-11 | DE34: =SUM(DG3:DG33) -> -1.390887405e-11 | DH34: =SUM(DJ3:DJ33) -> -1.390887405e-11 | DK34: =SUM(DM3:DM33) -> -1.390887405e-11 | DN34: =SUM(DP3:DP33) -> 18000 | DQ34: =SUM(DS3:DS33) -> 18000 | DT34: =SUM(DV3:DV33) -> 18000 | DW34: =SUM(DY3:DY33) -> 18000 | DZ34: =SUM(EB3:EB33) -> 18000 | EC34: =SUM(EE3:EE33) -> 18000 | EF34: =SUM(EH3:EH33) -> 18000 | EI34: =SUM(EK3:EK33) -> 18000 | EL34: =SUM(EN3:EN33) -> 18000 | EO34: =SUM(EQ3:EQ33) -> 18000 | ER34: =SUM(ET3:ET33) -> 18000 | EU34: =SUM(EW3:EW33) -> 18000 | EX34: =SUM(EZ3:EZ33) -> 18000 | FA34: =SUM(FC3:FC33) -> 18000 | FD34: =SUM(FF3:FF33) -> 18000 | FG34: =SUM(FI3:FI33) -> 18000 | FJ34: =SUM(FL3:FL33) -> 18000 | FM34: =SUM(FO3:FO33) -> 18000 | FP34: =SUM(FR3:FR33) -> 18000 | FS34: =SUM(FU3:FU33) -> 18000 | FV34: =SUM(FX3:FX33) -> 18000 | FY34: =SUM(GA3:GA33) -> 18000 | GB34: =SUM(GD3:GD33) -> 18000 | GE34: =SUM(GG3:GG33) -> 18000 | GH34: =SUM(GJ3:GJ33) -> 18000 | GK34: =SUM(GM3:GM33) -> 18000 | GN34: =SUM(GP3:GP33) -> 18000 | GQ34: =SUM(GS3:GS33) -> 18000 | GT34: =SUM(GV3:GV33) -> 18000 | GW34: =SUM(GY3:GY33) -> 18000 | GZ34: =SUM(HB3:HB33) -> 18000 | HC34: =SUM(HE3:HE33) -> 18000 | HF34: =SUM(HH3:HH33) -> 18000 | HI34: =SUM(HK3:HK33) -> 18000
A35: صـــــافــى الأيـــــــام | D35: =SUM(D34) -> -2.478017791e-12 | G35: =SUM(G34) -> -2.478017791e-12 | J35: =SUM(L34) -> 0 | M35: =SUM(O34) -> 0 | P35: =SUM(R34) -> 0 | S35: =SUM(U34) -> 0 | V35: =SUM(X34) -> 0 | Y35: =SUM(AA34) -> 0 | AB35: =SUM(AD34) -> 0 | AE35: =SUM(AG34) -> 0 | AH35: =SUM(AJ34) -> 0 | AK35: =SUM(AM34) -> 0 | AN35: =SUM(AP34) -> 0 | AQ35: =SUM(AS34) -> 0 | AT35: =SUM(AV34) -> 0 | AW35: =SUM(AY34) -> 0 | AZ35: =SUM(BB34) -> 0 | BC35: =SUM(BE34) -> 0 | BF35: =SUM(BH34) -> 0 | BI35: =SUM(BJ34) -> 0 | BL35: =SUM(BM34) -> 0 | BO35: =SUM(BP34) -> 0 | BR35: =SUM(BS34) -> 0 | BU35: =SUM(BV34) -> 0 | BX35: =SUM(BY34) -> 0 | CA35: =SUM(CB34) -> 0 | CD35: =SUM(CE34) -> 0 | CG35: =SUM(CH34) -> 0 | CJ35: =SUM(CK34) -> 0 | CM35: =SUM(CN34) -> 0 | CP35: =SUM(CQ34) -> 0 | CS35: =SUM(CT34) -> 0 | CV35: =SUM(CW34) -> 0 | CY35: =SUM(CZ34) -> 0 | DB35: =SUM(DC34) -> 0 | DE35: =SUM(DF34) -> 0 | DH35: =SUM(DI34) -> 0 | DK35: =SUM(DL34) -> 0 | DN35: =SUM(DO34) -> 0 | DQ35: =SUM(DR34) -> 0 | DT35: =SUM(DU34) -> 0 | DW35: =SUM(DX34) -> 0 | DZ35: =SUM(EA34) -> 0 | EC35: =SUM(ED34) -> 0 | EF35: =SUM(EG34) -> 0 | EI35: =SUM(EJ34) -> 0 | EL35: =SUM(EM34) -> 0 | EO35: =SUM(EP34) -> 0 | ER35: =SUM(ES34) -> 0 | EU35: =SUM(EV34) -> 0 | EX35: =SUM(EY34) -> 0 | FA35: =SUM(FB34) -> 0 | FD35: =SUM(FE34) -> 0 | FG35: =SUM(FH34) -> 0 | FJ35: =SUM(FK34) -> 0 | FM35: =SUM(FN34) -> 0 | FP35: =SUM(FQ34) -> 0 | FS35: =SUM(FT34) -> 0 | FV35: =SUM(FW34) -> 0 | FY35: =SUM(FZ34) -> 0 | GB35: =SUM(GC34) -> 0 | GE35: =SUM(GF34) -> 0 | GH35: =SUM(GI34) -> 0 | GK35: =SUM(GL34) -> 0 | GN35: =SUM(GO34) -> 0 | GQ35: =SUM(GR34) -> 0 | GT35: =SUM(GU34) -> 0 | GW35: =SUM(GX34) -> 0 | GZ35: =SUM(HA34) -> 0 | HC35: =SUM(HD34) -> 0 | HF35: =SUM(HG34) -> 0 | HI35: =SUM(HJ34) -> 0
D36: اجازة | E36: غياب | F36: =COUNT(E3:E32) -> 30 | G36: اجازة | H36: غياب | I36: =COUNT(H3:H32) -> 30 | J36: اجازة | K36: غياب | L36: =COUNT(K3:K32) -> 30 | M36: اجازة | N36: غياب | O36: =COUNT(N3:N32) -> 30 | P36: اجازة | Q36: غياب | R36: =COUNT(Q3:Q32) -> 30 | S36: اجازة | T36: غياب | U36: =COUNT(T3:T32) -> 30 | V36: اجازة | W36: غياب | X36: =COUNT(W3:W32) -> 30 | Y36: اجازة | Z36: غياب | AA36: =COUNT(Z3:Z32) -> 30 | AB36: اجازة | AC36: غياب | AD36: =COUNT(AC3:AC32) -> 30 | AE36: اجازة | AF36: غياب | AG36: =COUNT(AF3:AF32) -> 30 | AH36: اجازة | AI36: غياب | AJ36: =COUNT(AI3:AI32) -> 30 | AK36: اجازة | AL36: غياب | AM36: =COUNT(AL3:AL32) -> 30 | AN36: اجازة | AO36: غياب | AP36: =COUNT(AO3:AO32) -> 30 | AQ36: اجازة | AR36: غياب | AS36: =COUNT(AR3:AR32) -> 30 | AT36: اجازة | AU36: غياب | AV36: =COUNT(AU3:AU32) -> 30 | AW36: اجازة | AX36: غياب | AY36: =COUNT(AX3:AX32) -> 30 | AZ36: اجازة | BA36: غياب | BB36: =COUNT(BA3:BA32) -> 30 | BC36: اجازة | BD36: غياب | BE36: =COUNT(BD3:BD32) -> 30 | BF36: اجازة | BG36: غياب | BH36: =COUNT(BG3:BG32) -> 30 | BI36: اجازة | BJ36: غياب | BK36: =COUNT(BJ3:BJ32) -> 26 | BL36: اجازة | BM36: غياب | BN36: =COUNT(BM3:BM32) -> 25 | BO36: اجازة | BP36: غياب | BQ36: =COUNT(BP3:BP32) -> 30 | BR36: اجازة | BS36: غياب | BT36: =COUNT(BS3:BS32) -> 26 | BU36: اجازة | BV36: غياب | BW36: =COUNT(BV3:BV32) -> 23 | BX36: اجازة | BY36: غياب | BZ36: =COUNT(BY3:BY32) -> 25 | CA36: اجازة | CB36: غياب | CC36: =COUNT(CB3:CB32) -> 25 | CD36: اجازة | CE36: غياب | CF36: =COUNT(CE3:CE32) -> 25 | CG36: اجازة | CH36: غياب | CI36: =COUNT(CH3:CH32) -> 25 | CJ36: اجازة | CK36: غياب | CL36: =COUNT(CK3:CK32) -> 30 | CM36: اجازة | CN36: غياب | CO36: =COUNT(CN3:CN32) -> 28 | CP36: اجازة | CQ36: غياب | CR36: =COUNT(CQ3:CQ32) -> 24 | CS36: اجازة | CT36: غياب | CU36: =COUNT(CT3:CT32) -> 23 | CV36: اجازة | CW36: غياب | CX36: =COUNT(CW3:CW32) -> 30 | CY36: اجازة | CZ36: غياب | DA36: =COUNT(CZ3:CZ32) -> 30 | DB36: اجازة | DC36: غياب | DD36: =COUNT(DC3:DC32) -> 30 | DE36: اجازة | DF36: غياب | DG36: =COUNT(DF3:DF32) -> 30 | DH36: اجازة | DI36: غياب | DJ36: =COUNT(DI3:DI32) -> 30 | DK36: اجازة | DL36: غياب | DM36: =COUNT(DL3:DL32) -> 30 | DN36: اجازة | DO36: غياب | DP36: =COUNT(DO3:DO32) -> 1 | DQ36: اجازة | DR36: غياب | DS36: =COUNT(DR3:DR32) -> 1 | DT36: اجازة | DU36: غياب | DV36: =COUNT(DU3:DU32) -> 1 | DW36: اجازة | DX36: غياب | DY36: =COUNT(DX3:DX32) -> 1 | DZ36: اجازة | EA36: غياب | EB36: =COUNT(EA3:EA32) -> 1 | EC36: اجازة | ED36: غياب | EE36: =COUNT(ED3:ED32) -> 1 | EF36: اجازة | EG36: غياب | EH36: =COUNT(EG3:EG32) -> 1 | EI36: اجازة | EJ36: غياب | EK36: =COUNT(EJ3:EJ32) -> 1 | EL36: اجازة | EM36: غياب | EN36: =COUNT(EM3:EM32) -> 1 | EO36: اجازة | EP36: غياب | EQ36: =COUNT(EP3:EP32) -> 1 | ER36: اجازة | ES36: غياب | ET36: =COUNT(ES3:ES32) -> 1 | EU36: اجازة | EV36: غياب | EW36: =COUNT(EV3:EV32) -> 1 | EX36: اجازة | EY36: غياب | EZ36: =COUNT(EY3:EY32) -> 1 | FA36: اجازة | FB36: غياب | FC36: =COUNT(FB3:FB32) -> 1 | FD36: اجازة | FE36: غياب | FF36: =COUNT(FE3:FE32) -> 1 | FG36: اجازة | FH36: غياب | FI36: =COUNT(FH3:FH32) -> 1 | FJ36: اجازة | FK36: غياب | FL36: =COUNT(FK3:FK32) -> 1 | FM36: اجازة | FN36: غياب | FO36: =COUNT(FN3:FN32) -> 1 | FP36: اجازة | FQ36: غياب | FR36: =COUNT(FQ3:FQ32) -> 1 | FS36: اجازة | FT36: غياب | FU36: =COUNT(FT3:FT32) -> 1 | FV36: اجازة | FW36: غياب | FX36: =COUNT(FW3:FW32) -> 1 | FY36: اجازة | FZ36: غياب | GA36: =COUNT(FZ3:FZ32) -> 1 | GB36: اجازة | GC36: غياب | GD36: =COUNT(GC3:GC32) -> 1 | GE36: اجازة | GF36: غياب | GG36: =COUNT(GF3:GF32) -> 1 | GH36: اجازة | GI36: غياب | GJ36: =COUNT(GI3:GI32) -> 1 | GK36: اجازة | GL36: غياب | GM36: =COUNT(GL3:GL32) -> 1 | GN36: اجازة | GO36: غياب | GP36: =COUNT(GO3:GO32) -> 1 | GQ36: اجازة | GR36: غياب | GS36: =COUNT(GR3:GR32) -> 1 | GT36: اجازة | GU36: غياب | GV36: =COUNT(GU3:GU32) -> 1 | GW36: اجازة | GX36: غياب | GY36: =COUNT(GX3:GX32) -> 1 | GZ36: اجازة | HA36: غياب | HB36: =COUNT(HA3:HA32) -> 1 | HC36: اجازة | HD36: غياب | HE36: =COUNT(HD3:HD32) -> 1 | HF36: اجازة | HG36: غياب | HH36: =COUNT(HG3:HG32) -> 1 | HI36: اجازة | HJ36: غياب | HK36: =COUNT(HJ3:HJ32) -> 1
A37: =A1 -> 3 | B37: =B1 -> 2025 | C37: كشــف رواتـــــب المــوظـفـيــن | V37: 1 | W37: شهــــــر | X37: 12 | Y37: 1 | Z37: 2 | AA37: 1 | AB37: ترحيل من الشهر السابق | AE37: القسط الشهرى | AF37: 0
A38: م | B38: الإســــــــم | C38: المـرتــب | D38: سـلــفـــة | E38: حافـز ســهــرة | F38: عدد أيام السهرة | G38: اجازة | H38: غياب | I38: أكـــــل | J38: إضــافــى | K38: أيام الحافز | L38: حافز إنتظام | M38: حــافـز أكـــل | N38: خصم | O38: خـصــم غــيـــاب | P38: خصم ساعات التأخير | Q38: رصيد الأجازات السنوية | R38: سلف مرحلة | S38: خصم التأمينات | T38: الإجـمـالـى | W38: الإســــــــم | X38: رصيد الأجازات حتى نهاية الشهر السابق | Y38: الغياب | Z38: رصيد الأجازات المرحلة | AA38: الإســم | AB38: الباقى | AC38: ترحيل - | AD38: تحويل السالب | AE38: الدين الثابت | AF38: الكود
A39: 1 | B39: مصطفى القاضى | C39: 8500 | D39: =$C$122 -> 0 | E39: =C39/30*F39/2 -> 0 | G39: =COUNTIF($D$3:D$33,$G$38) -> 0 | J39: 2000 | L39: =C39/30*K39 -> 0 | N39: =IF(H39=3,500,IF(H39=7,S39+500,IF(H39>7,(S39*2)+500,0))) -> 0 | O39: =IF(H39>0,H39*C39/30-1*C39/30,0) -> 0 | P39: =C39/30/9/60*D34 -> -1.30019452e-12 | Q39: =X39 -> 0 | R39: =AD39+AE39 -> 0 | T39: =C39+E39+J39+M39+L39-D39-I39-N39-O39-P39-R39-S39 -> 10500 | U39: =IF(T39<=1,"خــالص",0) -> 0 | W39: مصطفى القاضى | X39: 0 | Y39: =H39 -> 0 | AA39: مصطفى القاضى | AB39: =VLOOKUP(AA39,'[1]كشف المرتبات'!$B$39:$T$74,19,0) -> 1.216311003e-12 | AC39: =SUMIF(AB39,"<0") -> 0 | AD39: =ABS(AC39) -> 0 | AF39: 1 | AG39: =SUMIF(AB39,"<0") -> 0 | BV39: 4.63 | BW39: =BV39/60*10 -> 0.7716666667
A40: 2 | B40: بكر كشك | C40: 7400 | D40: =$D$122 -> 2120 | E40: 0 | G40: =COUNTIF($G$3:G$33,$G$38) -> 0 | H40: =COUNTIF($H$3:H$33,$H$38) -> 0 | J40: 2000 | L40: 0 | N40: =IF(H40=3,500,IF(H40=7,S40+500,IF(H40>7,(S40*2)+500,0))) -> 0 | O40: =IF(H40>0,H40*C40/30-1*C40/30,0) -> 0 | P40: =C40/30/9/60*G34 -> -1.131934053e-12 | Q40: =X40 -> 24 | R40: =AD40+AE40 -> 0 | T40: =C40+E40+J40+M40+L40-D40-I40-N40-O40-P40-R40-S40 -> 7280 | U40: =IF(T40<=1,"خــالص",0) -> 0 | W40: بكر كشك | X40: 24 | Y40: 0 | Z40: =IF(AND(Y40=0, X40>=0), X40 + 1, IF(AND(Y40>=1, X40=0), 0, IF(AND(Y40>=1, X40>0), X40 - Y40+1, X40))) -> 25 | AA40: بكر كشك | AB40: =VLOOKUP(AA40,'[1]كشف المرتبات'!$B$39:$T$74,19,0) -> 0 | AC40: =SUMIF(AB40,"<0") -> 0 | AD40: =ABS(AC40) -> 0 | AF40: 2 | AG40: =SUMIF(AB40,"<0") -> 0
A41: 3 | B41: أبو خالد | C41: 5200 | D41: =$E$122 -> 0 | E41: 0 | G41: =COUNTIF($J$3:J$33,$G$38) -> 0 | H41: =COUNTIF(K$3:$K$33,$H$38) -> 0 | L41: 0 | N41: 0 | O41: =IF(H41<0,H41*C41/30,0) -> 0 | P41: =C41/30/9/60*J34 -> -7.954131181e-13 | Q41: 0 | R41: 0.3333333333 | T41: 5199.666667 | U41: 0 | W41: أبو خالد | X41: 0 | Y41: 1 | Z41: 0 | AA41: أبو خالد | AB41: =VLOOKUP(AA41,'[1]كشف المرتبات'!$B$39:$T$74,19,0) -> -0.3333333333 | AC41: -0.3333333333 | AD41: 0.3333333333 | AF41: 3 | AG41: =SUMIF(AB41,"<0") -> -0.3333333333
A42: 4 | B42: محمود شكرى | C42: 5200 | D42: =$F$122 -> 1700 | E42: 0 | G42: =COUNTIF($M$3:M$33,$G$38) -> 0 | H42: =COUNTIF($N$3:N$33,$H$38) -> 0 | J42: =SUMIF(AB42,">0") -> 0 | L42: 0 | N42: 0 | O42: =IF(H42>0,H42*C42/30-1*C42/30,0) -> 0 | P42: =C42/30/9/60*M34 -> -7.954131181e-13 | Q42: 1 | R42: 0 | T42: 3500 | U42: 0 | W42: محمود شكرى | X42: 1 | Y42: 0 | Z42: 2 | AA42: محمود شكرى | AB42: =VLOOKUP(AA42,'[1]كشف المرتبات'!$B$39:$T$74,19,0) -> 0 | AC42: 0 | AD42: 0 | AF42: 4 | AG42: =SUMIF(AB42,"<0") -> 0
A43: 5 | B43: عبـد الله عبد ربه | C43: 5200 | D43: =$G$122 -> 1000 | E43: 0 | G43: =COUNTIF($P$3:P$33,$G$38) -> 0 | H43: =COUNTIF($Q$3:Q$33,$H$38) -> 0 | J43: 500 | L43: 0 | N43: 0 | O43: =IF(H43>0,H43*C43/30-1*C43/30,0) -> 0 | P43: =C43/30/9/60*P34 -> -7.954131181e-13 | Q43: 1 | R43: 0 | S43: =3100*11% -> 341 | T43: 4359 | U43: 0 | W43: عبـد الله عبد ربه | X43: 1 | Y43: 0 | Z43: 2 | AA43: عبـد الله عبد ربه | AB43: =VLOOKUP(AA43,'[1]كشف المرتبات'!$B$39:$T$74,19,0) -> 0.3333333333 | AC43: 0 | AD43: 0 | AF43: 5 | AG43: =SUMIF(AB43,">0") -> 0.3333333333
A44: 6 | B44: مصطفى النجار | C44: 9000 | D44: =$H$122 -> 4650 | E44: 0 | G44: =COUNTIF($S$3:S$33,$G$38) -> 0 | H44: =COUNTIF($T$3:T$33,$H$38) -> 0 | J44: =SUMIF(AB44,">0") -> 0 | L44: 0 | N44: 0 | O44: =H44*C44/30 -> 0 | P44: =C44/30/9/60*S34 -> -1.376676551e-12 | Q44: 0 | R44: 1000 | T44: =C44+E44+J44+M44+L44-D44-I44-N44-O44-P44-R44-S44 -> 3350 | U44: 0 | W44: مصطفى النجار | Y44: 0 | AA44: مصطفى النجار | AB44: =VLOOKUP(AA44,'[1]كشف المرتبات'!$B$39:$T$74,19,0) -> 0 | AC44: 0 | AD44: 0 | AE44: 1000 | AF44: 6
A45: 7 | B45: محمود حمدى | C45: 7000 | D45: =$I$122 -> 0 | E45: 0 | G45: =COUNTIF($V$3:V$33,$G$38) -> 0 | H45: =COUNTIF($W$3:W$33,$H$38) -> 0 | J45: =SUMIF(AB45,">0") -> 0 | L45: 0 | N45: 0 | O45: =IF(H45>0,H45*C45/30-1*C45/30,0) -> 0 | P45: =C45/30/9/60*V34 -> -1.070748428e-12 | Q45: 1 | R45: 0 | T45: =C45+E45+J45+M45+L45-D45-I45-N45-O45-P45-R45-S45 -> 7000 | U45: 0 | W45: محمود حمدى | X45: 1 | Y45: 0 | Z45: 2 | AA45: محمود حمدى | AB45: =VLOOKUP(AA45,'[1]كشف المرتبات'!$B$39:$T$74,19,0) -> 0 | AC45: 0 | AD45: 0 | AF45: 8
A46: 8 | B46: على السواق | C46: 6000 | D46: =$J$122 -> 0 | E46: 0 | G46: =COUNTIF($Y$3:Y$33,$G$38) -> 0 | H46: =COUNTIF($Z$3:Z$33,$H$38) -> 0 | J46: 1000 | L46: 0 | M46: 500 | N46: 0 | O46: =H46*C46/30 -> 0 | P46: =C46/30/9/60*Y$34 -> -9.17784367e-13 | Q46: 0 | R46: 0 | T46: 7500 | U46: 0 | W46: على السواق | X46: 0 | Y46: 0 | Z46: =IF(AND(Y46=0, X46>=0),0, IF(AND(Y46>=1, X46=0), 0, IF(AND(Y46>=1, X46>0), X46 - Y46+1, X46))) -> 0 | AA46: على السواق | AB46: =VLOOKUP(AA46,'[1]كشف المرتبات'!$B$39:$T$74,19,0) -> 9.17784367e-13 | AC46: 0 | AD46: 0 | AF46: 8
A47: 9 | B47: حسن على | C47: 6000 | D47: =$K$122 -> 0 | E47: 0 | G47: =COUNTIF($AB$3:AB$33,$G$38) -> 0 | H47: =COUNTIF($AC$3:AC$33,$H$38) -> 0 | J47: 1000 | L47: 0 | N47: 0 | O47: =H47*C47/30 -> 0 | P47: =C47/30/9/60*AB$34 -> -9.17784367e-13 | Q47: 0 | R47: 500 | S47: =3100*11% -> 341 | T47: 6159 | U47: 0 | W47: حسن على | X47: 0 | Y47: 0 | Z47: =IF(AND(Y47=0, X47>=0),0, IF(AND(Y47>=1, X47=0), 0, IF(AND(Y47>=1, X47>0), X47 - Y47+1, X47))) -> 0 | AA47: حسن على | AB47: =VLOOKUP(AA47,'[1]كشف المرتبات'!$B$39:$T$74,19,0) -> 0 | AC47: 0 | AD47: 0 | AE47: 500 | AF47: 9
A48: 10 | B48: محمد خليل | C48: 4000 | D48: =$L$122 -> 500 | E48: 0 | G48: =COUNTIF($AE$3:AE$33,$G$38) -> 0 | H48: =COUNTIF($AF$3:AF$33,$H$38) -> 0 | J48: =SUMIF(AB48,">0") -> 0 | L48: 0 | N48: 0 | O48: =IF(H48>0,H48*C48/30-1*C48/30,0) -> 0 | P48: =C49/30/9/60*AE$34 -> -6.883382753e-13 | Q48: 0 | R48: 500 | T48: 3000 | U48: 0 | W48: محمد خليل | X48: 0 | Y48: 0 | Z48: 1 | AA48: محمد خليل | AB48: =VLOOKUP(AA48,'[1]كشف المرتبات'!$B$39:$T$74,19,0) -> 0 | AC48: 0 | AD48: 0 | AE48: 500 | AF48: 10
A49: 11 | B49: أحمد سليم | C49: 4500 | D49: =$M$122 -> 2586 | E49: 0 | G49: =COUNTIF($AH$3:AH$33,$G$38) -> 0 | H49: =COUNTIF($AI$3:AI$33,$H$38) -> 0 | J49: 0 | L49: 0 | N49: 0 | O49: =IF(H49>0,H49*C49/30-1*C49/30,0) -> 0 | P49: =C49/30/9/60*AH$34 -> -6.883382753e-13 | Q49: 0 | R49: 0 | T49: 1914 | U49: 0 | W49: أحمد سليم | X49: 0 | Y49: 0 | Z49: =IF(AND(Y49=0, X49>=0),0, IF(AND(Y49>=1, X49=0), 0, IF(AND(Y49>=1, X49>0), X49 - Y49+1, X49))) -> 0 | AA49: أحمد سليم | AB49: =VLOOKUP(AA49,'[1]كشف المرتبات'!$B$39:$T$74,19,0) -> 0 | AC49: 0 | AD49: 0 | AF49: 11
A50: 12 | B50: أحمد مصلح | C50: 4500 | D50: =$N$122 -> 0 | E50: 0 | G50: =COUNTIF($AK$3:AK$33,$G$38) -> 0 | H50: =COUNTIF($AL$3:AL$33,$H$38) -> 0 | J50: 5.995204333e-13 | L50: 0 | N50: 0 | O50: =IF(H50>0,H50*C50/30-1*C50/30,0) -> 0 | P50: =C50/30/9/60*AK$34 -> -6.883382753e-13 | Q50: 0 | R50: 0 | T50: 4500 | U50: 0 | W50: أحمد مصلح | X50: 0 | Y50: 0 | Z50: 1 | AA50: أحمد مصلح | AB50: =VLOOKUP(AA50,'[1]كشف المرتبات'!$B$39:$T$74,19,0) -> 5.995204333e-13 | AC50: 0 | AD50: 0 | AF50: 12
A51: 13 | B51: حازم | C51: 4000 | D51: =$O$122 -> 700 | E51: 0 | G51: =COUNTIF($AN$3:AN$33,$G$38) -> 0 | H51: =COUNTIF($AO$3:AO$33,$H$38) -> 0 | J51: 0 | L51: 0 | N51: 0 | O51: =IF(H51>0,H51*C51/30,0) -> 0 | P51: =C51/30/8/60*AN$34 -> -6.883382753e-13 | Q51: 0 | R51: 0 | T51: 3300 | U51: 0 | W51: حازم | X51: 0 | Y51: 0 | Z51: 1 | AA51: حازم | AB51: =VLOOKUP(AA51,'[1]كشف المرتبات'!$B$39:$T$74,19,0) -> 0 | AC51: 0 | AD51: 0 | AF51: 13
A52: 14 | B52: عبد الله أشرف | C52: 6000 | D52: =$P$122 -> 0 | E52: 0 | G52: =COUNTIF($AQ$3:AQ$33,$G$38) -> 0 | H52: =COUNTIF($AR$3:AR$33,$H$38) -> 0 | J52: 9.658940314e-13 | L52: 0 | O52: =IF(H52>0,H52*C52/30-1*C52/30,0) -> 0 | P52: =C52/30/8/60*AH$34 -> -1.032507413e-12 | Q52: 0 | R52: 0 | T52: 6000 | U52: 0 | W52: عبد الله أشرف | X52: 0 | Y52: 0 | Z52: 1 | AA52: عبد الله أشرف | AB52: =VLOOKUP(AA52,'[1]كشف المرتبات'!$B$39:$T$74,19,0) -> 9.658940314e-13 | AC52: 0 | AD52: 0 | AF52: 14
A53: 15 | B53: حسن أحمد | C53: 4000 | D53: =$Q$122 -> 500 | E53: 0 | G53: =COUNTIF($AT$3:AT$33,$G$38) -> 0 | H53: =COUNTIF($AU$3:AU$33,$H$38) -> 0 | J53: 0 | L53: 0 | N53: 0 | O53: 0 | P53: =C53/30/8/60*AT$34 -> -6.883382753e-13 | Q53: 0 | R53: 0 | T53: 3500 | U53: 0 | W53: حسن أحمد | X53: 0 | Y53: 0 | Z53: 1 | AA53: حسن أحمد | AC53: 0 | AD53: 0 | AF53: 15
A54: 16 | D54: =$R$122 -> 0 | E54: 0 | G54: =COUNTIF($AW$3:AW$33,$G$38) -> 0 | H54: =COUNTIF($AX$3:AX$33,$H$38) -> 0 | J54: 0 | L54: 0 | N54: 0 | O54: 0 | P54: =C54/30/8/60*AH$34 -> 0 | R54: 0 | T54: 0 | U54: خــالص | Y54: 0 | AB54: =VLOOKUP(AA54,'[1]كشف المرتبات'!$B$39:$T$74,19,0) ->  | AC54: 0 | AD54: 0 | AF54: 16
A55: 17 | D55: =$S$122 -> 0 | E55: 0 | G55: =COUNTIF($AZ$3:AZ$33,$G$38) -> 0 | H55: =COUNTIF($BA$3:BA$33,$H$38) -> 0 | J55: 0 | L55: 0 | N55: 0 | O55: 0 | P55: =C55/30/8/60*AZ$34 -> 0 | R55: 0 | T55: 0 | U55: خــالص | Y55: 0 | AB55: =VLOOKUP(AA55,'[1]كشف المرتبات'!$B$39:$T$74,19,0) ->  | AC55: 0 | AD55: 0 | AF55: 17
A56: 18 | B56: أيمن القاضى | C56: 7500 | D56: =$T$122 -> 5000 | E56: =C56/30*F56/2 -> 0 | G56: =COUNTIF($BI$3:BI$33,$G$38) -> 4 | H56: =COUNTIF($BJ$3:BJ$33,$H$38) -> 0 | I56: =K125 -> 0 | J56: 2000 | L56: 0 | M56: 500 | N56: 0 | O56: 0 | P56: =C56/30/10/60*BI$34 -> -5.3956839e-12 | Q56: 3 | T56: 5000 | U56: 0 | W56: أيمن القاضى | X56: 3 | Y56: 0 | Z56: 4 | AA56: أيمن القاضى | AB56: =VLOOKUP(AA56,'[1]كشف المرتبات'!$B$39:$T$74,19,0) -> 0 | AC56: 0 | AD56: 0 | AF56: 18
A57: 19 | B57: حسن أبو ندا | C57: 6500 | D57: =$U$122 -> 2100 | E57: 0 | G57: =COUNTIF($BL$3:BL$33,$G$38) -> 5 | H57: =COUNTIF($BM$3:BM$33,$H$38) -> 0 | I57: =K126 -> 0 | J57: =SUMIF(AB57,">0") -> 0 | L57: 0 | M57: 500 | N57: 0 | O57: 0 | P57: =C57/30/10/60*BL$34 -> 54.16666667 | Q57: 2 | R57: 1000 | T57: 3845.833333 | U57: 0 | W57: حسن أبو ندا | X57: 2 | Y57: 0 | Z57: 3 | AA57: حسن أبو ندا | AB57: =VLOOKUP(AA57,'[1]كشف المرتبات'!$B$39:$T$74,19,0) -> 0 | AC57: 0 | AD57: 0 | AE57: 1000 | AF57: 19
A58: 20 | B58: مصطفى محيى | D58: =$V$122 -> 0 | E58: 0 | G58: =COUNTIF($BO$3:BO$33,$G$38) -> 0 | H58: =COUNTIF($BM$3:BM$33,$H$38) -> 0 | I58: 0 | N58: 0 | O58: 0 | P58: =C534/30/10/60*BI$34 -> 0 | Q58: 1 | T58: 0 | U58: خــالص | W58: مصطفى محيى | X58: 1 | Y58: 0 | Z58: 2 | AA58: مصطفى محيى | AB58: =VLOOKUP(AA58,'[1]كشف المرتبات'!$B$39:$T$74,19,0) -> 0 | AC58: 0 | AD58: 0 | AF58: 20
A59: 21 | B59: أشرف | C59: 5650 | D59: =$W$122 -> 0 | E59: 0 | G59: =COUNTIF($BR$3:BR$33,$G$38) -> 0 | H59: =COUNTIF($BS$3:BS$33,$H$38) -> 4 | I59: 0 | L59: =C59/30*K59 -> 0 | M59: 500 | N59: 0 | O59: 565 | P59: =C534/30/10/60*BR$34 -> 0 | Q59: 0 | R59: 0.3333333333 | T59: 5584.666667 | U59: 0 | W59: أشرف | Y59: 4 | Z59: 0 | AA59: أشرف | AB59: =VLOOKUP(AA59,'[1]كشف المرتبات'!$B$39:$T$74,19,0) -> -0.3333333333 | AC59: -0.3333333333 | AD59: 0.3333333333 | AF59: 21
A60: 22 | B60: هانى صالح | C60: 6000 | D60: =$X$122 -> 100 | E60: 0 | G60: =COUNTIF($BU$3:BU$33,$G$38) -> 0 | H60: =COUNTIF($BV$3:BV$33,$H$38) -> 7 | I60: 0 | J60: =SUMIF(AB60,">0") -> 0 | L60: 0 | M60: 500 | N60: 500 | O60: 1200 | P60: =C60/30/10/60*BU$34 -> -3.836930773e-12 | Q60: 0 | R60: 238.5198413 | T60: 4461.480159 | U60: 0 | W60: هانى صالح | X60: 0 | Y60: 7 | Z60: 0 | AA60: هانى صالح | AB60: =VLOOKUP(AA60,'[1]كشف المرتبات'!$B$39:$T$74,19,0) -> -238.5198413 | AC60: -238.5198413 | AD60: 238.5198413 | AF60: 22
A61: 23 | B61: محمد فضل | C61: 5200 | D61: =$Y$122 -> 2000 | E61: 0 | G61: =COUNTIF($BX$3:BX$33,$G$38) -> 5 | H61: =COUNTIF($BY$3:BY$33,$H$38) -> 0 | J61: 0.4444444445 | L61: 0 | M61: 500 | N61: 0 | O61: 0 | P61: =C61/30/10/60*BX$34 -> -3.60245167e-12 | Q61: 22 | R61: 0 | T61: 3700.444444 | U61: 0 | W61: محمد فضل | X61: 22 | Y61: 0 | Z61: 23 | AA61: محمد فضل | AB61: =VLOOKUP(AA61,'[1]كشف المرتبات'!$B$39:$T$74,19,0) -> 0.4444444445 | AC61: 0 | AD61: 0 | AF61: 22
A62: 24 | B62: ندى القاضى | C62: 5000 | D62: =$Z$122 -> 0 | E62: =C62/30*F62/2 -> 0 | G62: =COUNTIF($CA$3:CA$33,$G$38) -> 4 | H62: =COUNTIF($CB$3:CB$33,$H$38) -> 1 | I62: 0 | J62: 0 | L62: 0 | M62: 500 | N62: 0 | O62: 0 | P62: =C62/30/10/60*CA$34 -> -3.330669074e-12 | Q62: 1 | R62: 0.4613095238 | S62: 341 | T62: 5158.53869 | U62: 0 | W62: ندى القاضى | X62: 1 | Y62: 1 | Z62: 1 | AA62: ندى القاضى | AB62: =VLOOKUP(AA62,'[1]كشف المرتبات'!$B$39:$T$74,19,0) -> -0.4613095238 | AC62: -0.4613095238 | AD62: 0.4613095238 | AF62: 22
A63: 25 | B63: إسلام عــوض | C63: 5000 | D63: =$AA$122 -> 1620 | E63: 0 | G63: =COUNTIF($CD$3:CD$33,$G$38) -> 0 | H63: =COUNTIF($CE$3:CE$33,$H$38) -> 5 | I63: 0 | J63: 0 | L63: 0 | M63: 500 | N63: 0 | O63: 666.6666667 | P63: =C63/30/10/60*CD$34 -> 66.66666667 | Q63: 0 | R63: 700.4795918 | T63: 2446.187075 | U63: 0 | W63: إسلام عــوض | X63: 0 | Y63: 5 | Z63: 0 | AA63: إسلام عــوض | AB63: =VLOOKUP(AA63,'[1]كشف المرتبات'!$B$39:$T$74,19,0) -> -200.4795918 | AC63: -200.4795918 | AD63: 200.4795918 | AE63: 500 | AF63: 22
A64: 26 | B64: نادر عوض | C64: 4000 | D64: =AB$122 -> 2200 | E64: 0 | G64: =COUNTIF($CG$3:CG$33,$G$38) -> 4 | H64: =COUNTIF($CH$3:CH$33,$H$38) -> 0 | I64: 0 | J64: 0 | L64: 0 | M64: 500 | N64: 0 | O64: =H64*C64/30 -> 0 | P64: =C64/30/10/60*CG$34 -> 53.33333333 | Q64: 0 | R64: 0 | T64: 2246.666667 | U64: 0 | W64: نادر عوض | X64: 0 | Y64: 0 | Z64: =IF(AND(Y64=0, X64>=0),0, IF(AND(Y64>=1, X64=0), 0, IF(AND(Y64>=1, X64>0), X64 - Y64+1, X64))) -> 0 | AA64: نادر عوض | AB64: =VLOOKUP(AA64,'[1]كشف المرتبات'!$B$39:$T$74,19,0) -> 0 | AC64: 0 | AD64: 0 | AF64: 22
A65: 27 | B65: لطفى منصور | D65: =$AC$122 -> 0 | E65: =C65/30*F65/2 -> 0 | G65: =COUNTIF($CJ$3:CJ$32,$G$38) -> 0 | H65: =COUNTIF($CK$3:CK$33,$H$38) -> 0 | J65: 0 | L65: 0 | N65: 0 | O65: =IF(H65>0,H65*C65/30-1*C65/30,0) -> 0 | P65: =C65/30/10/60*CJ$34 -> 0 | Q65: 1 | R65: 0 | T65: 0 | U65: خــالص | W65: لطفى منصور | X65: 1 | Y65: 0 | Z65: 2 | AA65: لطفى منصور | AB65: =VLOOKUP(AA65,'[1]كشف المرتبات'!$B$39:$T$74,19,0) -> 0 | AC65: =SUMIF(AB65,"<0") -> 0 | AD65: =ABS(AC65) -> 0
A66: 28 | B66: محمد حشاد | C66: 7000 | D66: =$AD$122 -> 3461 | E66: =C66/30*F66/2 -> 0 | G66: =COUNTIF($CM$3:CM$33,$G$38) -> 2 | H66: =COUNTIF($CN$3:CN$33,$H$38) -> 0 | L66: 0 | M66: 500 | N66: 0 | O66: 0 | P66: =C66/30/10/60*CM$34 -> -5.409006576e-12 | Q66: 0 | R66: 0 | T66: 4039 | U66: 0 | W66: محمد حشاد | X66: 0 | Y66: 0 | Z66: 1 | AA66: محمد حشاد | AB66: =VLOOKUP(AA66,'[1]كشف المرتبات'!$B$39:$T$74,19,0) -> 0 | AC66: 0 | AD66: 0
A67: 29 | B67: وائل الخراط | C67: 6000 | D67: =$AE$122 -> 2770 | E67: 0 | G67: =COUNTIF($CP$3:CP$32,$G$38) -> 4 | H67: =COUNTIF($CQ$3:CQ$33,$H$38) -> 2 | I67: =K134 -> 0 | J67: 0 | L67: 0 | M67: 500 | N67: 0 | O67: 200 | P67: =C67/30/10/60*CP$34 -> 86.66666667 | Q67: 0 | R67: 0 | T67: 3443.333333 | U67: 0 | W67: وائل الخراط | X67: 0 | Y67: 2 | Z67: =IF(AND(Y67=0, X67>=0),0, IF(AND(Y67>=1, X67=0), 0, IF(AND(Y67>=1, X67>0), X67 - Y67+1, X67))) -> 0 | AA67: وائل الخراط | AB67: =VLOOKUP(AA67,'[1]كشف المرتبات'!$B$39:$T$74,19,0) -> 0 | AC67: 0 | AD67: 0
A68: 30 | B68: خميس | C68: 3500 | D68: =$AF$122 -> 1500 | E68: 0 | G68: =COUNTIF($CY$3:CY$32,$G$38) -> 0 | H68: =COUNTIF($CT$3:CT$33,$H$38) -> 1 | J68: 500 | L68: 0 | M68: 500 | N68: 0 | O68: 0 | P68: =C634/30/10/60*CS$34 -> 0 | Q68: 0 | R68: 0 | T68: 3000 | U68: 0 | Y68: 1 | Z68: =IF(AND(Y68=0, X68>=0),0, IF(AND(Y68>=1, X68=0), 0, IF(AND(Y68>=1, X68>0), X68 - Y68+1, X68))) -> 0 | AC68: 0 | AD68: 0
A69: 31 | C69: 0 | D69: =$AG$122 -> 0 | E69: 0 | G69: =COUNTIF($DB$3:DB$32,$G$38) -> 0 | H69: =COUNTIF($CZ$3:CZ$33,$G$38) -> 0 | J69: 0 | L69: 0 | N69: 0 | O69: 0 | P69: =C634/30/10/60*CG$34 -> 0 | R69: 0 | T69: 0 | U69: خــالص | X69: =VLOOKUP(W69,'[2]كشف المرتبات'!$W$39:$Z$72,4,0) ->  | Y69: 0 | Z69: =IF(AND(Y69=0, X69>=0), X69 + 1, IF(AND(Y69>=1, X69=0), 0, IF(AND(Y69>=1, X69>0), X69 - Y69+1, X69))) ->  | AB69: =VLOOKUP(AA69,'[1]كشف المرتبات'!$B$39:$T$74,19,0) ->  | AC69: 0 | AD69: 0
A70: 32 | C70: 0 | D70: =$AH$122 -> 0 | E70: 0 | G70: =COUNTIF($DE$3:DE$32,$G$38) -> 0 | H70: =COUNTIF($DC$3:DC$33,$G$38) -> 0 | J70: 0 | L70: 0 | N70: 0 | O70: 0 | P70: =C70/30/10/60*CG$34 -> 0 | R70: 0 | T70: 0 | U70: خــالص | X70: =VLOOKUP(W70,'[2]كشف المرتبات'!$W$39:$Z$72,4,0) ->  | Y70: 0 | AB70: =VLOOKUP(AA70,'[1]كشف المرتبات'!$B$39:$T$74,19,0) ->  | AC70: 0 | AD70: 0
A71: 33 | C71: 0 | D71: =$AI$122 -> 0 | E71: 0 | G71: =COUNTIF($DB$3:DB$32,$G$38) -> 0 | H71: =COUNTIF($CZ$3:CZ$33,$G$38) -> 0 | J71: 0 | L71: 0 | N71: 0 | O71: 0 | P71: =C71/30/10/60*CG$34 -> 0 | R71: 0 | T71: 0 | U71: خــالص | X71: =VLOOKUP(W71,'[2]كشف المرتبات'!$W$39:$Z$72,4,0) ->  | Y71: 0 | AB71: =VLOOKUP(AA71,'[1]كشف المرتبات'!$B$39:$T$74,19,0) ->  | AC71: 0 | AD71: 0
A72: 34 | B72: إبراهيم الغفير | C72: 4500 | D72: =$AJ$122 -> 0 | E72: 0 | G72: =COUNTIF($DK$3:DK$32,$G$38) -> 0 | H72: =COUNTIF($DL$3:DL$33,$H$38) -> 0 | J72: 1000 | L72: 0 | M72: 500 | N72: 0 | O72: =H72*C72/30 -> 0 | P72: =C72/30/10/60*DK$34 -> -3.477218513e-12 | Q72: 0 | R72: 0 | T72: 6000 | U72: 0 | W72: إبراهيم الغفير | X72: =VLOOKUP(W72,'[2]كشف المرتبات'!$W$39:$Z$72,4,0) -> 0 | Y72: 0 | Z72: =IF(AND(Y72=0, X72>=0),0, IF(AND(Y72>=1, X72=0), 0, IF(AND(Y72>=1, X72>0), X72 - Y72+1, X72))) -> 0 | AA72: إبراهيم الغفير | AC72: 0 | AD72: 0
A73: 35 | B73: عمرو حسنى المحاسب | C73: 2400 | D73: =AK103 -> 0 | E73: 0 | G73: =COUNTIF($DH$3:DH$32,$G$38) -> 0 | H73: =COUNTIF($DF$3:DF$33,$G$38) -> 0 | J73: =SUMIF(AB73,">0") -> 0 | L73: 0 | N73: 0 | O73: 0 | Q73: 0 | T73: 2400 | U73: 0 | X73: =VLOOKUP(W73,'[2]كشف المرتبات'!$W$39:$Z$72,4,0) -> 
A74: 36 | B74: علاء المحامى | C74: 4000 | D74: =AL103 -> 0 | E74: =C74/30*F74/2 -> 0 | G74: =COUNTIF($DH$3:DH$32,$G$38) -> 0 | H74: =COUNTIF($DF$3:DF$33,$G$38) -> 0 | J74: 0 | L74: 0 | N74: 0 | O74: 0 | T74: 4000 | U74: =IF(T74<=1,"خــالص",0) -> 0 | X74: =VLOOKUP(W74,'[2]كشف المرتبات'!$W$39:$Z$72,4,0) -> 
A75: 37 | D75: =$AO$122 -> 0 | E75: 0 | G75: =COUNTIF($DH$3:DH$32,$G$38) -> 0 | H75: =COUNTIF($DF$3:DF$33,$G$38) -> 0 | J75: 0 | L75: 0 | N75: 0 | O75: 0 | P75: =C75/30/8/60*CG$34 -> 0 | T75: 0 | U75: خــالص
A76: 38 | D76: 0 | E76: 0 | G76: =COUNTIF($DH$3:DH$32,$G$38) -> 0 | H76: =COUNTIF($DF$3:DF$33,$G$38) -> 0 | J76: 0 | L76: 0 | N76: 0 | O76: 0 | P76: 0 | T76: 0 | U76: خــالص
A77: 39 | D77: 0 | E77: 0 | G77: =COUNTIF($DH$3:DH$32,$G$38) -> 0 | H77: =COUNTIF($DF$3:DF$33,$G$38) -> 0 | J77: 0 | L77: 0 | N77: 0 | O77: 0 | P77: 0 | T77: 0 | U77: خــالص
A78: 40 | D78: 0 | E78: 0 | G78: =COUNTIF($DH$3:DH$32,$G$38) -> 0 | H78: =COUNTIF($DF$3:DF$33,$G$38) -> 0 | J78: 0 | L78: 0 | N78: 0 | O78: 0 | P78: 0 | T78: 0 | U78: خــالص
A79: 41 | D79: 0 | E79: 0 | G79: =COUNTIF($DH$3:DH$32,$G$38) -> 0 | H79: =COUNTIF($DF$3:DF$33,$G$38) -> 0 | J79: 0 | L79: 0 | N79: 0 | O79: 0 | P79: 0 | T79: 0 | U79: خــالص
A80: 42 | D80: 0 | E80: 0 | G80: =COUNTIF($DH$3:DH$32,$G$38) -> 0 | H80: =COUNTIF($DF$3:DF$33,$G$38) -> 0 | J80: 0 | L80: 0 | N80: 0 | O80: 0 | P80: 0 | T80: 0 | U80: خــالص
A81: 43 | D81: 0 | E81: 0 | G81: =COUNTIF($DH$3:DH$32,$G$38) -> 0 | H81: =COUNTIF($DF$3:DF$33,$G$38) -> 0 | J81: 0 | L81: 0 | N81: 0 | O81: 0 | P81: 0 | T81: 0 | U81: خــالص
A82: 44 | D82: 0 | E82: 0 | G82: =COUNTIF($DH$3:DH$32,$G$38) -> 0 | H82: =COUNTIF($DF$3:DF$33,$G$38) -> 0 | J82: 0 | L82: 0 | N82: 0 | O82: 0 | P82: 0 | T82: 0 | U82: خــالص
A83: 45 | D83: 0 | E83: 0 | G83: =COUNTIF($DH$3:DH$32,$G$38) -> 0 | H83: =COUNTIF($DF$3:DF$33,$G$38) -> 0 | J83: 0 | L83: 0 | N83: 0 | O83: 0 | P83: 0 | T83: 0 | U83: خــالص
A84: 46 | D84: 0 | E84: 0 | G84: =COUNTIF($DH$3:DH$32,$G$38) -> 0 | H84: =COUNTIF($DF$3:DF$33,$G$38) -> 0 | J84: 0 | L84: 0 | N84: 0 | O84: 0 | P84: 0 | T84: 0 | U84: خــالص
A85: 47 | D85: 0 | E85: 0 | G85: =COUNTIF($DH$3:DH$32,$G$38) -> 0 | H85: =COUNTIF($DF$3:DF$33,$G$38) -> 0 | J85: 0 | L85: 0 | N85: 0 | O85: 0 | P85: 0 | T85: 0 | U85: خــالص
A86: 48 | D86: 0 | E86: 0 | G86: =COUNTIF($DH$3:DH$32,$G$38) -> 0 | H86: =COUNTIF($DF$3:DF$33,$G$38) -> 0 | J86: 0 | L86: 0 | N86: 0 | O86: 0 | P86: 0 | T86: 0 | U86: خــالص | AA86: 0
A87: 49 | D87: 0 | E87: 0 | G87: =COUNTIF($DH$3:DH$32,$G$38) -> 0 | H87: =COUNTIF($DF$3:DF$33,$G$38) -> 0 | J87: 0 | L87: 0 | N87: 0 | O87: 0 | P87: 0 | T87: 0 | U87: خــالص | AA87: 0
A88: 50 | D88: 0 | E88: 0 | G88: =COUNTIF($DH$3:DH$32,$G$38) -> 0 | H88: =COUNTIF($DF$3:DF$33,$G$38) -> 0 | J88: 0 | L88: 0 | N88: 0 | O88: 0 | P88: 0 | T88: 0 | U88: خــالص | AA88: 0
A89: 51 | D89: 0 | E89: 0 | G89: =COUNTIF($DH$3:DH$32,$G$38) -> 0 | H89: =COUNTIF($DF$3:DF$33,$G$38) -> 0 | J89: 0 | L89: 0 | N89: 0 | O89: 0 | P89: 0 | T89: 0 | U89: خــالص | AA89: 0
A90: 52 | D90: 0 | E90: 0 | G90: =COUNTIF($DH$3:DH$32,$G$38) -> 0 | H90: =COUNTIF($DF$3:DF$33,$G$38) -> 0 | J90: 0 | L90: 0 | N90: 0 | O90: 0 | P90: 0 | T90: 0 | U90: خــالص | AA90: 0
A91: 53 | D91: 0 | E91: 0 | G91: =COUNTIF($DH$3:DH$32,$G$38) -> 0 | H91: =COUNTIF($DF$3:DF$33,$G$38) -> 0 | J91: 0 | L91: 0 | N91: 0 | O91: 0 | P91: 0 | T91: 0 | U91: خــالص | AA91: 0
A92: 54 | D92: 0 | E92: 0 | G92: =COUNTIF($DH$3:DH$32,$G$38) -> 0 | H92: =COUNTIF($DF$3:DF$33,$G$38) -> 0 | J92: 0 | L92: 0 | N92: 0 | O92: 0 | P92: 0 | T92: 0 | U92: خــالص | AA92: 0
A93: 55 | D93: 0 | E93: 0 | G93: =COUNTIF($DH$3:DH$32,$G$38) -> 0 | H93: =COUNTIF($DF$3:DF$33,$G$38) -> 0 | J93: 0 | L93: 0 | N93: 0 | O93: 0 | P93: 0 | T93: 0 | U93: خــالص | AA93: 0
A94: 56 | D94: 0 | E94: 0 | G94: =COUNTIF($DH$3:DH$32,$G$38) -> 0 | H94: =COUNTIF($DF$3:DF$33,$G$38) -> 0 | J94: 0 | L94: 0 | N94: 0 | O94: 0 | P94: 0 | T94: 0 | U94: خــالص | AA94: 0
A95: 57 | D95: 0 | E95: 0 | G95: =COUNTIF($DH$3:DH$32,$G$38) -> 0 | H95: =COUNTIF($DF$3:DF$33,$G$38) -> 0 | J95: 0 | L95: 0 | N95: 0 | O95: 0 | P95: 0 | T95: 0 | U95: خــالص | AA95: 0
A96: 58 | D96: 0 | E96: 0 | G96: =COUNTIF($DH$3:DH$32,$G$38) -> 0 | H96: =COUNTIF($DF$3:DF$33,$G$38) -> 0 | J96: 0 | L96: 0 | N96: 0 | O96: 0 | P96: 0 | T96: 0 | U96: خــالص | AA96: 0
A97: 59 | D97: 0 | E97: 0 | G97: =COUNTIF($DH$3:DH$32,$G$38) -> 0 | H97: =COUNTIF($DF$3:DF$33,$G$38) -> 0 | J97: 0 | L97: 0 | N97: 0 | O97: 0 | P97: 0 | T97: 0 | U97: خــالص
A98: 60 | D98: 0 | E98: 0 | G98: =COUNTIF($DH$3:DH$32,$G$38) -> 0 | H98: =COUNTIF($DF$3:DF$33,$G$38) -> 0 | J98: 0 | L98: 0 | N98: 0 | O98: 0 | P98: 0 | T98: 0 | U98: خــالص
A99: الإجـمــــــالــى | C99: =SUM(C39:C98) -> 158750 | D99: =SUM(D39:D98) -> 34507 | I99: =SUM(I39:I98) -> 0 | J99: =SUM(J39:J98) -> 10000.44444 | M99: =SUM(M39:M98) -> 6500 | O99: =SUM(O39:O98) -> 2631.666667 | P99: =SUM(P39:P98) -> 260.8333333 | R99: 3940.127409 | S99: 1023 | T99: =SUMIF(T39:T98,">0") -> 132387.817
B101: الـبـنـــد | C101: مصطفى القاضى | D101: بكر كشك | E101: أبو خالد | F101: محمود شكرى | G101: عبـد الله عبد ربه | H101: مصطفى النجار | I101: محمود حمدى | J101: على السواق | K101: حسن على | L101: محمد خليل | M101: أحمد سليم | N101: أحمد مصلح | O101: حازم | P101: عبـد الله أشرف | Q101: حسن أحمد | T101: أيمن القاضى | U101: حسن أبو ندا | V101: مصطفى محيى | W101: أشرف | X101: هانى صالح | Y101: محمد فضل | Z101: عم ندى القاضى | AA101: إسلام عــوض | AB101: نادر عوض | AD101: محمد حشاد | AE101: وائل الخراط | AF101: خميس | AJ101: محمود رواش الغفير | AK101: عمرو حسنى المحاسب | AL101: علاء المحامى
B102: باقى الشهر السابق
B103: تــرحــيــل من المصروفات | C103: ='مــصــــروفــــــات اليومـيـــة'!$O$8 -> 0 | D103: ='مــصــــروفــــــات اليومـيـــة'!$O$9 -> 2120 | E103: ='مــصــــروفــــــات اليومـيـــة'!$O$10 -> 0 | F103: ='مــصــــروفــــــات اليومـيـــة'!$O$11 -> 1700 | G103: ='مــصــــروفــــــات اليومـيـــة'!$O$12 -> 1000 | H103: ='مــصــــروفــــــات اليومـيـــة'!$O$13 -> 4650 | I103: ='مــصــــروفــــــات اليومـيـــة'!$O$14 -> 0 | J103: ='مــصــــروفــــــات اليومـيـــة'!$O$15 -> 0 | K103: ='مــصــــروفــــــات اليومـيـــة'!$O$16 -> 0 | L103: ='مــصــــروفــــــات اليومـيـــة'!$O$17 -> 500 | M103: ='مــصــــروفــــــات اليومـيـــة'!$O$18 -> 2586 | N103: ='مــصــــروفــــــات اليومـيـــة'!$O$19 -> 0 | O103: ='مــصــــروفــــــات اليومـيـــة'!$O$20 -> 700 | P103: ='مــصــــروفــــــات اليومـيـــة'!$O$21 -> 0 | Q103: ='مــصــــروفــــــات اليومـيـــة'!$O$22 -> 500 | R103: ='مــصــــروفــــــات اليومـيـــة'!$O$23 -> 0 | S103: ='مــصــــروفــــــات اليومـيـــة'!$O$24 -> 0 | T103: ='مــصــــروفــــــات اليومـيـــة'!$O$25 -> 5000 | U103: ='مــصــــروفــــــات اليومـيـــة'!$O$26 -> 2100 | V103: ='مــصــــروفــــــات اليومـيـــة'!$O$27 -> 0 | W103: ='مــصــــروفــــــات اليومـيـــة'!$O$28 -> 0 | X103: ='مــصــــروفــــــات اليومـيـــة'!$O$29 -> 100 | Y103: ='مــصــــروفــــــات اليومـيـــة'!$O$30 -> 2000 | Z103: ='مــصــــروفــــــات اليومـيـــة'!$O$31 -> 0 | AA103: ='مــصــــروفــــــات اليومـيـــة'!$O$32 -> 1620 | AB103: ='مــصــــروفــــــات اليومـيـــة'!$O$33 -> 2200 | AC103: ='مــصــــروفــــــات اليومـيـــة'!$O$34 -> 0 | AD103: ='مــصــــروفــــــات اليومـيـــة'!$O$35 -> 3461 | AE103: ='مــصــــروفــــــات اليومـيـــة'!$O$36 -> 2770 | AF103: ='مــصــــروفــــــات اليومـيـــة'!$O$37 -> 1500 | AG103: ='مــصــــروفــــــات اليومـيـــة'!$O$38 -> 0 | AH103: ='مــصــــروفــــــات اليومـيـــة'!$O$39 -> 0 | AI103: ='مــصــــروفــــــات اليومـيـــة'!$O$40 -> 0 | AJ103: ='مــصــــروفــــــات اليومـيـــة'!$O$43 -> 0 | AK103: ='مــصــــروفــــــات اليومـيـــة'!$O66 -> 0 | AL103: ='مــصــــروفــــــات اليومـيـــة'!$O$67 -> 0 | AM103: ='مــصــــروفــــــات اليومـيـــة'!$O$45 -> 0 | AN103: ='مــصــــروفــــــات اليومـيـــة'!$O$41 -> 0 | AO103: ='مــصــــروفــــــات اليومـيـــة'!$O$42 -> 0 | AP103: ='مــصــــروفــــــات اليومـيـــة'!$O$43 -> 0 | AQ103: ='مــصــــروفــــــات اليومـيـــة'!$O$44 -> 0 | AR103: ='مــصــــروفــــــات اليومـيـــة'!$O$45 -> 0 | AS103: ='مــصــــروفــــــات اليومـيـــة'!$O$46 -> 0 | AT103: ='مــصــــروفــــــات اليومـيـــة'!$O$27 -> 0 | AU103: ='مــصــــروفــــــات اليومـيـــة'!$O$28 -> 0 | AV103: ='مــصــــروفــــــات اليومـيـــة'!$O$36 -> 2770 | AW103: ='مــصــــروفــــــات اليومـيـــة'!$O$36 -> 2770 | AX103: ='مــصــــروفــــــات اليومـيـــة'!$O$36 -> 2770 | AY103: ='مــصــــروفــــــات اليومـيـــة'!$O$36 -> 2770 | AZ103: ='مــصــــروفــــــات اليومـيـــة'!$O$36 -> 2770 | BA103: ='مــصــــروفــــــات اليومـيـــة'!$O$36 -> 2770 | BB103: ='مــصــــروفــــــات اليومـيـــة'!$O$36 -> 2770
B104: تــرحــيــل من الدين
B105: سـلــفــــة
B106: سـلــفــــة
B107: سـلــفــــة
B108: سـلــفــــة
B109: سـلــفــــة
B110: سـلــفــــة
B111: سـلــفــــة
B112: سـلــفــــة
B113: سـلــفــــة
B114: سـلــفــــة
B115: سـلــفــــة
B116: سـلــفــــة
B117: سـلــفــــة
B118: سـلــفــــة
B119: سـلــفــــة
B120: سـلــفــــة
B121: سـلــفــــة
B122: الإجـمــــالـى | C122: =SUM(C102:C121) -> 0 | D122: =SUM(D102:D121) -> 2120 | E122: 0 | F122: 1700 | G122: 1000 | H122: 4650 | I122: 0 | J122: 0 | K122: 0 | L122: 500 | M122: 2586 | N122: 0 | O122: 700 | P122: 0 | Q122: 500 | R122: 0 | S122: 0 | T122: 5000 | U122: 2100 | V122: 0 | W122: 0 | X122: 100 | Y122: 2000 | Z122: 0 | AA122: =SUM(AA102:AA121) -> 1620 | AB122: 2200 | AC122: 0 | AD122: 3461 | AE122: =SUM(AE102:AE121) -> 2770 | AF122: 1500 | AG122: 0 | AH122: 0 | AI122: 0 | AJ122: =SUM(AJ102:AJ121) -> 0 | AK122: 0 | AL122: 0 | AM122: 0 | AN122: 0 | AO122: 0 | AP122: 0 | AQ122: 0 | AR122: 0 | AS122: 0 | AT122: 0 | AU122: 0 | AV122: =SUM(AV102:AV121) -> 2770 | AW122: 2770 | AX122: 2770 | AY122: 2770 | AZ122: 2770 | BA122: 2770 | BB122: 2770 | BC122: =SUM(BC102:BC121) -> 0 | BD122: 0 | BE122: 0 | BF122: 0 | BG122: 0 | BH122: 0 | BI122: 0 | BJ122: 0 | BK122: 0 | BL122: 0 | BM122: 0 | BN122: 0 | BO122: 0 | BP122: 0
K123: مبلغ الأكل
B124: الإســــم | C124: حضور | D124: أيام الأجازات حتى الشهر السابق | E124: غياب | F124: رصيد أجازات المرحلة | G124: أكـــــــل | H124: خصم غياب | I124: الباقى بالغياب | J124: مبلغ الغياب | K124: نصيب كل شخص | M124: =L124-I136 -> 0
B125: أيمن القاضى | D125: =S56 -> 0 | E125: =H56 -> 0 | F125: =D125-E125-1 -> -1 | G125: =L124/8 -> 0 | H125: =IF(E125>1,(E125-1)*G125/30,0) -> 0 | I125: =G125-H125 -> 0 | J125: =IF(H125=0,$M$124/$M$128,0) -> 0 | K125: =IF(H125=0,G125+J125,G125-H125) -> 0 | L125: الحضور | M125: 8
B126: حسن أبو ندا | D126: 0 | E126: =H57 -> 0 | F126: =D126-E126-1 -> -1 | G126: =$G$125 -> 0 | H126: =IF(E126>1,(E126-1)*G126/30,0) -> 0 | I126: 0 | J126: =IF(H126=0,$M$124/$M$128,0) -> 0 | K126: =IF(H126=0,G126+J126,G126-H126) -> 0 | L126: الغياب | M126: =COUNTIF(H125:H135,">0") -> 0
B127: مصطفى محيى | D127: 0 | E127: =H58 -> 0 | F127: -1 | L127: الباقى | M127: =M125-M126 -> 8
B128: أشرف | D128: 0 | E128: 15 | F128: -16 | G128: =$G$125 -> 0 | H128: 0 | I128: 0 | J128: =IF(H128=0,$M$124/$M$128,0) -> 0 | K128: 0 | L128: الباقى | M128: =M125-M126 -> 8
B129: هانى صالح | D129: 0 | E129: =H60 -> 7 | F129: -8 | G129: 0 | H129: 0 | I129: 0 | J129: 0 | K129: 0
D130: 0 | F130: =D130-E130-1 -> -1 | H130: =IF(E130>1,(E130-1)*G130/30,0) -> 0 | I130: =G130-H130 -> 0 | J130: 0 | K130: 0
B131: ندى القاضي | D131: 341 | E131: 1 | F131: 339 | G131: 0 | H131: 0 | I131: 0 | J131: 0 | K131: 0
B132: إسلام عــوض | D132: 0 | E132: 5 | F132: -6 | G132: 0 | H132: 0 | I132: 0 | J132: 0 | K132: 0
B133: نادر عوض | D133: 0 | E133: =H64 -> 0 | F133: -1 | G133: 0 | H133: =IF(E133>1,E133*G133/30,0) -> 0 | I133: =G133-H133 -> 0 | J133: 0 | K133: 0
B134: وائل الخراط | D134: 0 | E134: =H67 -> 2 | F134: -3 | G134: 0 | H134: =IF(E134>1,E134*G134/30,0) -> 0 | I134: 0 | J134: 0 | K134: 0
B135: محمد حشاد | D135: =Q66 -> 0 | E135: =H66 -> 0 | F135: =D135-E135-1 -> -1 | H135: =IF(E135>1,(E135-1)*G135/30,0) -> 0 | K135: 0
H136: =SUM(H125:H135) -> 0 | I136: =SUM(I125:I135) -> 0 | K136: =I136+H136 -> 0
B137: المــوظــف | C137: =$B$39 -> مصطفى القاضى | D137: أكـــل | E137: =$I$39 -> 0 | G137: المــوظــف | H137: =$B$40 -> بكر كشك | I137: أكـــل | J137: =$I$40 -> 0
B138: المرتب | C138: =$C$39 -> 8500 | D138: إضافى | E138: =$J$39 -> 2000 | G138: المرتب | H138: =$C$40 -> 7400 | I138: إضافى | J138: =$J$40 -> 2000
B139: سـلــف | C139: =$D$39 -> 0 | D139: رصيد الأجازات | E139: =$Q$39 -> 0 | G139: سـلــف | H139: =$D$40 -> 2120 | I139: رصيد الأجازات | J139: =$Q$40 -> 24
B140: خصم غياب | C140: =$O$39+$N$39 -> 0 | D140: خصم التأخير | E140: =$P$39 -> -1.30019452e-12 | G140: خصم غياب | H140: =$O$40+$N$40 -> 0 | I140: خصم التأخير | J140: =$P$40 -> -1.131934053e-12
B141: سهــرة | C141: =$E$39 -> 0 | D141: تأمينات | E141: =$S$39 -> 0 | G141: سهــرة | H141: =$E$40 -> 0 | I141: تأمينات | J141: =$S$40 -> 0
B142: حافز أكل | C142: =$M$39 -> 0 | D142: سلف مرحلة | E142: =$R$39 -> 0 | G142: حافز أكل | H142: =$M$40 -> 0 | I142: سلف مرحلة | J142: =$R$40 -> 0
B143: حافز إنتظام | C143: =$L$39 -> 0 | D143: الباقى | E143: =C138+C141+C142+C143+E138-C139-C140-E137-E140-E141-E142 -> 10500 | G143: حافز إنتظام | H143: =$L$40 -> 0 | I143: الباقى | J143: =H138+H141+H142+H143+J138-H139-H140-J137-J140-J141-J142 -> 7280
B145: المــوظــف | C145: =$B$41 -> أبو خالد | D145: أكـــل | E145: =$I$41 -> 0 | G145: المــوظــف | H145: =$B$42 -> محمود شكرى | I145: أكـــل | J145: =$I$42 -> 0
B146: المرتب | C146: =$C$41 -> 5200 | D146: إضافى | E146: =$J$41 -> 0 | G146: المرتب | H146: =$C$42 -> 5200 | I146: إضافى | J146: =$J$42 -> 0
B147: سـلــف | C147: =$D$41 -> 0 | D147: رصيد الأجازات | E147: =$Q$41 -> 0 | G147: سـلــف | H147: =$D$42 -> 1700 | I147: رصيد الأجازات | J147: =$Q$42 -> 1
B148: خصم غياب | C148: =$O$41+$N$41 -> 0 | D148: خصم التأخير | E148: =$P$41 -> -7.954131181e-13 | G148: خصم غياب | H148: =$O$42+$N$42 -> 0 | I148: خصم التأخير | J148: =$P$42 -> -7.954131181e-13
B149: سهــرة | C149: =$E$41 -> 0 | D149: تأمينات | E149: =$S$41 -> 0 | G149: سهــرة | H149: =$E$42 -> 0 | I149: تأمينات | J149: =$S$42 -> 0
B150: حافز أكل | C150: =$M$41 -> 0 | D150: سلف مرحلة | E150: =$R$41 -> 0.3333333333 | G150: حافز أكل | H150: =$M$42 -> 0 | I150: سلف مرحلة | J150: =$R$42 -> 0
B151: حافز إنتظام | C151: =$L$41 -> 0 | D151: الباقى | E151: =C146+C149+C150+C151+E146-C147-C148-E145-E148-E149-E150 -> 5199.666667 | G151: حافز إنتظام | H151: =$L$42 -> 0 | I151: الباقى | J151: =H146+H149+H150+H151+J146-H147-H148-J145-J148-J149-J150 -> 3500
B153: المــوظــف | C153: =$B$43 -> عبـد الله عبد ربه | D153: أكـــل | E153: =$I$43 -> 0 | G153: المــوظــف | H153: =$B$44 -> مصطفى النجار | I153: أكـــل | J153: =$I$44 -> 0
B154: المرتب | C154: =$C$43 -> 5200 | D154: إضافى | E154: =$J$43 -> 500 | G154: المرتب | H154: =$C$44 -> 9000 | I154: إضافى | J154: =$J$44 -> 0
B155: سـلــف | C155: =$D$43 -> 1000 | D155: رصيد الأجازات | E155: =$Q$43 -> 1 | G155: سـلــف | H155: =$D$44 -> 4650 | I155: رصيد الأجازات | J155: =$Q$44 -> 0
B156: خصم غياب | C156: =$O$43+$N$43 -> 0 | D156: خصم التأخير | E156: =$P$43 -> -7.954131181e-13 | G156: خصم غياب | H156: =$O$44+$N$44 -> 0 | I156: خصم التأخير | J156: =$P$44 -> -1.376676551e-12
B157: سهــرة | C157: =$E$43 -> 0 | D157: تأمينات | E157: =$S$43 -> 341 | G157: سهــرة | H157: =$E$44 -> 0 | I157: تأمينات | J157: =$S$44 -> 0
B158: حافز أكل | C158: =$M$43 -> 0 | D158: سلف مرحلة | E158: =$R$43 -> 0 | G158: حافز أكل | H158: =$M$44 -> 0 | I158: سلف مرحلة | J158: =$R$44 -> 1000
B159: حافز إنتظام | C159: =$L$43 -> 0 | D159: الباقى | E159: =C154+C157+C158+C159+E154-C155-C156-E153-E156-E157-E158 -> 4359 | G159: حافز إنتظام | H159: =$L$44 -> 0 | I159: الباقى | J159: =H154+H157+H158+H159+J154-H155-H156-J153-J156-J157-J158 -> 3350
B161: المــوظــف | C161: =$B$47 -> حسن على | D161: أكـــل | E161: =$I$47 -> 0 | G161: المــوظــف | H161: =$B$48 -> محمد خليل | I161: أكـــل | J161: =$I$48 -> 0
B162: المرتب | C162: =$C$47 -> 6000 | D162: إضافى | E162: =$J$47 -> 1000 | G162: المرتب | H162: =$C$48 -> 4000 | I162: إضافى | J162: =$J$48 -> 0
B163: سـلــف | C163: =$D$47 -> 0 | D163: رصيد الأجازات | E163: =$Q$47 -> 0 | G163: سـلــف | H163: =$D$48 -> 500 | I163: رصيد الأجازات | J163: =$Q$48 -> 0
B164: خصم غياب | C164: =$O$47+$N$47 -> 0 | D164: خصم التأخير | E164: =$P$47 -> -9.17784367e-13 | G164: خصم غياب | H164: =$O$48+$N$48 -> 0 | I164: خصم التأخير | J164: =$P$48 -> -6.883382753e-13
B165: سهــرة | C165: =$E$47 -> 0 | D165: تأمينات | E165: =$S$47 -> 341 | G165: سهــرة | H165: =$E$48 -> 0 | I165: تأمينات | J165: =$S$48 -> 0
B166: حافز أكل | C166: =$M$47 -> 0 | D166: سلف مرحلة | E166: =$R$47 -> 500 | G166: حافز أكل | H166: =$M$48 -> 0 | I166: سلف مرحلة | J166: =$R$48 -> 500
B167: حافز إنتظام | C167: =$L$47 -> 0 | D167: الباقى | E167: =C162+C165+C166+C167+E162-C163-C164-E161-E164-E165-E166 -> 6159 | G167: حافز إنتظام | H167: =$L$48 -> 0 | I167: الباقى | J167: =H162+H165+H166+H167+J162-H163-H164-J161-J164-J165-J166 -> 3000
B169: المــوظــف | C169: =$B$49 -> أحمد سليم | D169: أكـــل | E169: =$I$49 -> 0 | G169: المــوظــف | H169: =$B$50 -> أحمد مصلح | I169: أكـــل | J169: =$I$50 -> 0
B170: المرتب | C170: =$C$49 -> 4500 | D170: إضافى | E170: =$J$49 -> 0 | G170: المرتب | H170: =$C$50 -> 4500 | I170: إضافى | J170: =$J$50 -> 5.995204333e-13
B171: سـلــف | C171: =$D$49 -> 2586 | D171: رصيد الأجازات | E171: =$Q$49 -> 0 | G171: سـلــف | H171: =$D$50 -> 0 | I171: رصيد الأجازات | J171: =$Q$50 -> 0
B172: خصم غياب | C172: =$O$49+$N$49 -> 0 | D172: خصم التأخير | E172: =$P$49 -> -6.883382753e-13 | G172: خصم غياب | H172: =$O$50+$N$50 -> 0 | I172: خصم التأخير | J172: =$P$50 -> -6.883382753e-13
B173: سهــرة | C173: =$E$49 -> 0 | D173: تأمينات | E173: =$S$49 -> 0 | G173: سهــرة | H173: =$E$50 -> 0 | I173: تأمينات | J173: =$S$50 -> 0
B174: حافز أكل | C174: =$M$49 -> 0 | D174: سلف مرحلة | E174: =$R$49 -> 0 | G174: حافز أكل | H174: =$M$50 -> 0 | I174: سلف مرحلة | J174: =$R$50 -> 0
B175: حافز إنتظام | C175: =$L$49 -> 0 | D175: الباقى | E175: =C170+C173+C174+C175+E170-C171-C172-E169-E172-E173-E174 -> 1914 | G175: حافز إنتظام | H175: =$L$50 -> 0 | I175: الباقى | J175: =H170+H173+H174+H175+J170-H171-H172-J169-J172-J173-J174 -> 4500
B177: المــوظــف | C177: =$B$56 -> أيمن القاضى | D177: أكـــل | E177: =$I$56 -> 0 | G177: المــوظــف | H177: =$B$57 -> حسن أبو ندا | I177: أكـــل | J177: =$I$57 -> 0
B178: المرتب | C178: =$C$56 -> 7500 | D178: إضافى | E178: =$J$56 -> 2000 | G178: المرتب | H178: =$C$57 -> 6500 | I178: إضافى | J178: =$J$57 -> 0
B179: سـلــف | C179: =$D$56 -> 5000 | D179: رصيد الأجازات | E179: =$Q$56 -> 3 | G179: سـلــف | H179: =$D$57 -> 2100 | I179: رصيد الأجازات | J179: =$Q$57 -> 2
B180: خصم غياب | C180: =$O$56+$N$56 -> 0 | D180: خصم التأخير | E180: =$P$56 -> -5.3956839e-12 | G180: خصم غياب | H180: =$O$57+$N$57 -> 0 | I180: خصم التأخير | J180: =$P$57 -> 54.16666667
B181: سهــرة | C181: =$E$56 -> 0 | D181: تأمينات | E181: =$S$56 -> 0 | G181: سهــرة | H181: =$E$57 -> 0 | I181: تأمينات | J181: =$S$57 -> 0
B182: حافز أكل | C182: =$M$56 -> 500 | D182: سلف مرحلة | E182: =$R$56 -> 0 | G182: حافز أكل | H182: =$M$57 -> 500 | I182: سلف مرحلة | J182: =$R$57 -> 1000
B183: حافز إنتظام | C183: =$L$56 -> 0 | D183: الباقى | E183: =C178+C181+C182+C183+E178-C179-C180-E177-E180-E181-E182 -> 5000 | G183: حافز إنتظام | H183: =$L$57 -> 0 | I183: الباقى | J183: =H178+H181+H182+H183+J178-H179-H180-J177-J180-J181-J182 -> 3845.833333
B185: المــوظــف | C185: =$B$59 -> أشرف | D185: أكـــل | E185: =$I$59 -> 0 | G185: المــوظــف | H185: =$B$60 -> هانى صالح | I185: أكـــل | J185: =$I$60 -> 0
B186: المرتب | C186: =$C$59 -> 5650 | D186: إضافى | E186: =$J$59 -> 0 | G186: المرتب | H186: =$C$60 -> 6000 | I186: إضافى | J186: =$J$60 -> 0
B187: سـلــف | C187: =$D$59 -> 0 | D187: رصيد الأجازات | E187: =$Q$59 -> 0 | G187: سـلــف | H187: =$D$60 -> 100 | I187: رصيد الأجازات | J187: =$Q$60 -> 0
B188: خصم غياب | C188: =$O$59+$N$59 -> 565 | D188: خصم التأخير | E188: =$P$59 -> 0 | G188: خصم غياب | H188: =$O$60+$N$60 -> 1700 | I188: خصم التأخير | J188: =$P$60 -> -3.836930773e-12
B189: سهــرة | C189: =$E$59 -> 0 | D189: تأمينات | E189: =$S$59 -> 0 | G189: سهــرة | H189: =$E$60 -> 0 | I189: تأمينات | J189: =$S$60 -> 0
B190: حافز أكل | C190: =$M$59 -> 500 | D190: سلف مرحلة | E190: =$R$59 -> 0.3333333333 | G190: حافز أكل | H190: =$M$60 -> 500 | I190: سلف مرحلة | J190: =$R$60 -> 238.5198413
B191: حافز إنتظام | C191: =$L$59 -> 0 | D191: الباقى | E191: =C186+C189+C190+C191+E186-C187-C188-E185-E188-E189-E190 -> 5584.666667 | G191: حافز إنتظام | H191: =$L$60 -> 0 | I191: الباقى | J191: =H186+H189+H190+H191+J186-H187-H188-J185-J188-J189-J190 -> 4461.480159
B193: المــوظــف | C193: =$B$61 -> محمد فضل | D193: أكـــل | E193: =$I$61 -> 0 | G193: المــوظــف | H193: =$B$62 -> ندى القاضى | I193: أكـــل | J193: =$I$62 -> 0
B194: المرتب | C194: =$C$61 -> 5200 | D194: إضافى | E194: =$J$61 -> 0.4444444445 | G194: المرتب | H194: =$C$62 -> 5000 | I194: إضافى | J194: =$J$62 -> 0
B195: سـلــف | C195: =$D$61 -> 2000 | D195: رصيد الأجازات | G195: سـلــف | H195: =$D$62 -> 0 | I195: رصيد الأجازات | J195: =$Q$62 -> 1
B196: خصم غياب | C196: =$O$61+$N$61 -> 0 | D196: خصم التأخير | E196: =$P$61 -> -3.60245167e-12 | G196: خصم غياب | H196: =$O$62+$N$62 -> 0 | I196: خصم التأخير | J196: =$P$62 -> -3.330669074e-12
B197: سهــرة | C197: =$E$61 -> 0 | D197: تأمينات | E197: =$S$61 -> 0 | G197: سهــرة | H197: =$E$62 -> 0 | I197: تأمينات | J197: =$S$62 -> 341
B198: حافز أكل | C198: =$M$61 -> 500 | D198: سلف مرحلة | E198: =$R$61 -> 0 | G198: حافز أكل | H198: =$M$62 -> 500 | I198: سلف مرحلة | J198: =$R$62 -> 0.4613095238
B199: حافز إنتظام | C199: =$L$61 -> 0 | D199: الباقى | E199: =C194+C197+C198+C199+E194-C195-C196-E193-E196-E197-E198 -> 3700.444444 | G199: حافز إنتظام | H199: =$L$62 -> 0 | I199: الباقى | J199: =H194+H197+H198+H199+J194-H195-H196-J193-J196-J197-J198 -> 5158.53869
B201: المــوظــف | C201: =$B$63 -> إسلام عــوض | D201: أكـــل | E201: =$I$63 -> 0 | G201: المــوظــف | H201: =$B$64 -> نادر عوض | I201: أكـــل | J201: =$I$64 -> 0
B202: المرتب | C202: =$C$63 -> 5000 | D202: إضافى | E202: =$J$63 -> 0 | G202: المرتب | H202: =$C$64 -> 4000 | I202: إضافى | J202: =$J$64 -> 0
B203: سـلــف | C203: =$D$63 -> 1620 | D203: رصيد الأجازات | E203: =$Q$63 -> 0 | G203: سـلــف | H203: =$D$64 -> 2200 | I203: رصيد الأجازات | J203: =$Q$64 -> 0
B204: خصم غياب | C204: =$O$63+$N$63 -> 666.6666667 | D204: خصم التأخير | E204: =$P$63 -> 66.66666667 | G204: خصم غياب | H204: =$O$64+$N$64 -> 0 | I204: خصم التأخير | J204: =$P$64 -> 53.33333333
B205: سهــرة | C205: =$E$63 -> 0 | D205: تأمينات | E205: =$S$63 -> 0 | G205: سهــرة | H205: =$E$64 -> 0 | I205: تأمينات | J205: =$S$64 -> 0
B206: حافز أكل | C206: =$M$63 -> 500 | D206: سلف مرحلة | E206: =$R$63 -> 700.4795918 | G206: حافز أكل | H206: =$M$64 -> 500 | I206: سلف مرحلة | J206: =$R$64 -> 0
B207: حافز إنتظام | C207: =$L$63 -> 0 | D207: الباقى | E207: =C202+C205+C206+C207+E202-C203-C204-E201-E204-E205-E206 -> 2446.187075 | G207: حافز إنتظام | H207: =$L$64 -> 0 | I207: الباقى | J207: =H202+H205+H206+H207+J202-H203-H204-J201-J204-J205-J206 -> 2246.666667
B209: المــوظــف | C209: =$B$67 -> وائل الخراط | D209: أكـــل | E209: =$I$67 -> 0 | G209: المــوظــف | H209: =$B$68 -> خميس | I209: أكـــل | J209: =$I$68 -> 0
B210: المرتب | C210: =$C$67 -> 6000 | D210: إضافى | E210: =$J$67 -> 0 | G210: المرتب | H210: =$C$68 -> 3500 | I210: إضافى | J210: =$J$68 -> 500
... 5 more rows

Sheet حساب أيام الأجازة
E1: ســـاعــــــات العــمـــــــــــل | L1: 10
E2: الأجـــــــازة 11 إلى 3 | L2: =3/11 -> 0.2727272727
E3: الحضور | F3: تأخير بالساعه | G3: مده العمل | H3: الاجازه | I3: مستحق أيام مكتمله | J3: يوم غيرتام | K3: يوم غير مكتمل
E4: 11 | F4: 0 | G4: =+E4-(F4/$L$1) -> 11 | H4: =ROUND(+G4*$L$2,2) -> 3 | I4: =INT(H4) -> 3 | J4: =+(H4-I4) -> 0 | K4: =REPT(1,(H4-I4)*10) ->  | L4: =QUOTIENT(H4,1)&" يوم "&QUOTIENT(MOD(H4*24,24),1)&" ساعه "&QUOTIENT(MOD(H4*24*60,60),1)&" دقيقه " -> 3 يوم 0 ساعه 0 دقيقه
E5: 12 | F5: 0 | G5: =+E5-(F5/$L$1) -> 12 | H5: =ROUND(+G5*$L$2,2) -> 3.27 | I5: =INT(H5) -> 3 | J5: =+(H5-I5) -> 0.27 | K5: =REPT(1,(H5-I5)*10) -> 11 | L5: 3 يوم 6 ساعه 28 دقيقه
E6: 13 | G6: 13 | H6: 3.55 | I6: 3 | J6: 0.55 | K6: 11111 | L6: 3 يوم 13 ساعه 11 دقيقه
E7: 14 | G7: 14 | H7: 3.82 | I7: 3 | J7: 0.82 | K7: 11111111 | L7: 3 يوم 19 ساعه 40 دقيقه
E8: 15 | G8: 15 | H8: 4.09 | I8: 4 | J8: 0.09 | L8: 4 يوم 2 ساعه 9 دقيقه
E9: 16 | G9: 16 | H9: 4.36 | I9: 4 | J9: 0.36 | K9: 111 | L9: 4 يوم 8 ساعه 38 دقيقه
E10: 17 | G10: 17 | H10: 4.64 | I10: 4 | J10: 0.64 | K10: 111111 | L10: 4 يوم 15 ساعه 21 دقيقه
E11: 18 | G11: 18 | H11: 4.91 | I11: 4 | J11: 0.91 | K11: 111111111 | L11: 4 يوم 21 ساعه 50 دقيقه
E12: 19 | G12: 19 | H12: 5.18 | I12: 5 | J12: 0.18 | K12: 1 | L12: 5 يوم 4 ساعه 19 دقيقه
E13: 20 | G13: 20 | H13: 5.45 | I13: 5 | J13: 0.45 | K13: 1111 | L13: 5 يوم 10 ساعه 48 دقيقه
E14: 21 | G14: 21 | H14: 5.73 | I14: 5 | J14: 0.73 | K14: 1111111 | L14: 5 يوم 17 ساعه 31 دقيقه
E15: 22 | G15: 22 | H15: 6 | I15: 6 | J15: 0 | L15: 6 يوم 0 ساعه 0 دقيقه
E16: 23 | G16: 23 | H16: 6.27 | I16: 6 | J16: 0.27 | K16: 11 | L16: 6 يوم 6 ساعه 28 دقيقه
E17: 24 | G17: 24 | H17: 6.55 | I17: 6 | J17: 0.55 | K17: 11111 | L17: 6 يوم 13 ساعه 12 دقيقه
E18: 25 | G18: 25 | H18: 6.82 | I18: 6 | J18: 0.82 | K18: 11111111 | L18: 6 يوم 19 ساعه 40 دقيقه
E19: 26 | G19: 26 | H19: 7.09 | I19: 7 | J19: 0.09 | L19: 7 يوم 2 ساعه 9 دقيقه
E20: 27 | G20: 27 | H20: 7.36 | I20: 7 | J20: 0.36 | K20: 111 | L20: 7 يوم 8 ساعه 38 دقيقه
E21: 28 | G21: 28 | H21: 7.64 | I21: 7 | J21: 0.64 | K21: 111111 | L21: 7 يوم 15 ساعه 21 دقيقه
E22: 29 | G22: 29 | H22: 7.91 | I22: 7 | J22: 0.91 | K22: 111111111 | L22: 7 يوم 21 ساعه 50 دقيقه
E23: 30 | G23: 30 | H23: 8.18 | I23: 8 | J23: 0.18 | K23: 1 | L23: 8 يوم 4 ساعه 19 دقيقه
E24: 31 | G24: 31 | H24: 8.45 | I24: 8 | J24: 0.45 | K24: 1111 | L24: 8 يوم 10 ساعه 47 دقيقه
E25: 32 | G25: 32 | H25: 8.73 | I25: 8 | J25: 0.73 | K25: 1111111 | L25: 8 يوم 17 ساعه 31 دقيقه
E26: 33 | G26: 33 | H26: 9 | I26: 9 | J26: 0 | L26: 9 يوم 0 ساعه 0 دقيقه

Sheet السلف المرحلة
A1: السلف المرحلــــة قيد التسديد | G1: سلـــــــف تـــــــم ســــــــدادها | M1: سهــــــــــــرات لطفـــى
A2: سلفة الحاج محمد خليل 5000 ج خصم 500 جنيه شهريا | G2: سلفة أحمد سليم 2110 جنيه خصم 500 جنيه شهريا | M2: اليوم | N2: من | O2: إلى | P2: الإجمالى | Q2: من | R2: إلى | S2: الإجمالى | T2: المجموع | U2: الوقت
A3: التاريخ | B3: المبلغ | C3: خصم شهر | D3: مبلغ الخصم | E3: الباقى | G3: التاريخ | H3: المبلغ | I3: خصم شهر | J3: مبلغ الخصم | K3: الباقى | M3: 2024-11-01 | T3: =S3+P3 -> 0 | U3: =T3*60 -> 0
A4: 2024-09-30 | B4: 5000 | C4: 9 | D4: 500 | E4: =B4-D4 -> 4500 | G4: 2024-08-30 | H4: 2110 | I4: 8 | J4: 500 | K4: =H4-J4 -> 1610 | M4: =M3+1 -> 2024-11-02 | T4: =S4+P4 -> 0 | U4: =T4*60 -> 0
A5: =A4+31 -> 2024-10-31 | B5: =E4 -> 4500 | C5: 10 | D5: 500 | E5: =B5-D5 -> 4000 | G5: =G4+31 -> 2024-09-30 | H5: =K4 -> 1610 | I5: 9 | J5: 500 | K5: =H5-J5 -> 1110 | M5: =M4+1 -> 2024-11-03 | T5: 0 | U5: 0
A6: =A5+30 -> 2024-11-30 | B6: =E5 -> 4000 | C6: 11 | D6: 500 | E6: 3500 | G6: =G5+31 -> 2024-10-31 | H6: =K5 -> 1110 | I6: 10 | J6: 500 | K6: 610 | M6: 2024-11-04 | T6: 0 | U6: 0
A7: =A6+31 -> 2024-12-31 | B7: 3500 | C7: 12 | D7: 500 | E7: 3000 | G7: =G6+30 -> 2024-11-30 | H7: 610 | I7: 11 | J7: 610 | K7: 0 | M7: 2024-11-05 | T7: 0 | U7: 0
A8: =A7+31 -> 2025-01-31 | B8: 3000 | C8: 1 | D8: 500 | E8: 2500 | G8: سلفة محمود شكرى 3000 جنيه خصم 500 جنيه شهريا | M8: =M7+1 -> 2024-11-06 | T8: 0 | U8: 0
A9: =A8+28 -> 2025-02-28 | B9: 2500 | C9: 2 | D9: 500 | E9: =B9-D9 -> 2000 | G9: التاريخ | H9: المبلغ | I9: خصم شهر | J9: مبلغ الخصم | K9: الباقى | M9: 2024-11-07 | T9: 0 | U9: 0
A10: =A9+31 -> 2025-03-31 | B10: 2000 | C10: 3 | D10: 500 | E10: =B10-D10 -> 1500 | G10: 2024-08-30 | H10: 3000 | I10: 8 | J10: 1000 | K10: =H10-J10 -> 2000 | M10: 2024-11-08 | T10: 0 | U10: 0
A11: =A10+30 -> 2025-04-30 | B11: 1500 | C11: 4 | D11: 500 | E11: 1000 | G11: =G10+31 -> 2024-09-30 | H11: =K10 -> 2000 | I11: 9 | J11: 1000 | K11: =H11-J11 -> 1000 | M11: 2024-11-09 | T11: 0 | U11: 0
A12: =A11+31 -> 2025-05-31 | B12: 1000 | C12: 5 | D12: 500 | E12: 500 | G12: =G11+31 -> 2024-10-31 | H12: =K11 -> 1000 | I12: 10 | J12: 1000 | K12: 0 | M12: 2024-11-10 | T12: 0 | U12: 0
A13: =A12+30 -> 2025-06-30 | B13: 500 | C13: 6 | D13: 500 | E13: 0 | G13: سلفة حسن أبو ندا خصم 500 جنيه شهريا | M13: 2024-11-11 | T13: 0 | U13: 0
A14: سلفة إسلام عوض 1500 جنيه خصم 500 جنيه شهريا | G14: التاريخ | H14: المبلغ | I14: خصم شهر | J14: مبلغ الخصم | K14: الباقى | M14: 2024-11-12 | T14: 0 | U14: 0
A15: التاريخ | B15: المبلغ | C15: خصم شهر | D15: مبلغ الخصم | E15: الباقى | G15: 2024-07-30 | H15: 1975 | I15: 7 | J15: 500 | K15: =H15-J15 -> 1475 | M15: 2024-11-13 | T15: 0 | U15: 0
A16: 2025-03-31 | B16: 1500 | C16: 3 | D16: 500 | E16: =B16-D16 -> 1000 | G16: =G15+31 -> 2024-08-30 | H16: =K15 -> 1475 | I16: 8 | J16: 500 | K16: =H16-J16 -> 975 | M16: 2024-11-14 | T16: 0 | U16: 0
A17: =A16+31 -> 2025-05-01 | B17: =E16 -> 1000 | C17: 4 | D17: 500 | E17: =B17-D17 -> 500 | G17: =G16+31 -> 2024-09-30 | H17: =K16 -> 975 | I17: 9 | J17: 500 | K17: 475 | M17: 2024-11-15 | T17: 0 | U17: 0
A18: =A17+30 -> 2025-05-31 | B18: =E17 -> 500 | C18: 5 | D18: 500 | E18: 0 | G18: =G17+61 -> 2024-11-30 | H18: 475 | I18: 10 | J18: 475 | K18: 0 | M18: 2024-11-16 | T18: 0 | U18: 0
A19: سلفة حسن على 2000 جنيه خصم 500 جنيه شهريا | G19: سلفة حسن على 2500 جنيه خصم 500 جنيه شهريا | M19: 2024-11-17 | N19: 6 | O19: 9 | P19: =O19-N19 -> 3 | Q19: 5 | R19: 8 | S19: =R19-Q19 -> 3 | T19: 6 | U19: 360
A20: التاريخ | B20: المبلغ | C20: خصم شهر | D20: مبلغ الخصم | E20: الباقى | G20: التاريخ | H20: المبلغ | I20: خصم شهر | J20: مبلغ الخصم | K20: الباقى | M20: 2024-11-18 | N20: 6 | O20: 9 | P20: =O20-N20 -> 3 | Q20: 5 | R20: 8 | S20: =R20-Q20 -> 3 | T20: 6 | U20: 360
A21: 2024-12-31 | B21: 2000 | C21: 9 | D21: 500 | E21: =B21-D21 -> 1500 | G21: 2024-07-30 | H21: 2500 | I21: 7 | J21: 500 | K21: =H21-J21 -> 2000 | M21: 2024-11-19 | N21: 6 | O21: 9 | P21: 3 | Q21: 5 | R21: 8 | S21: 3 | T21: 6 | U21: 360
A22: =A21+31 -> 2025-01-31 | B22: =E21 -> 1500 | C22: 10 | D22: 500 | E22: =B22-D22 -> 1000 | G22: =G21+31 -> 2024-08-30 | H22: =K21 -> 2000 | I22: 8 | J22: 500 | K22: =H22-J22 -> 1500 | M22: 2024-11-20 | N22: 6 | O22: 9 | P22: 3 | Q22: 5 | R22: 8 | S22: 3 | T22: 6 | U22: 360
A23: =A22+28 -> 2025-02-28 | B23: =E22 -> 1000 | C23: 11 | D23: 500 | E23: 500 | G23: =G22+31 -> 2024-09-30 | H23: =K22 -> 1500 | I23: 9 | J23: 500 | K23: 1000 | M23: 2024-11-21 | N23: 6 | O23: 9 | P23: 3 | Q23: 5 | R23: 8 | S23: 3 | T23: 6 | U23: 360
A24: =A23+31 -> 2025-03-31 | B24: 500 | C24: 12 | D24: 500 | E24: 0 | G24: =G23+31 -> 2024-10-31 | H24: 1000 | I24: 10 | J24: 500 | K24: 500 | M24: 2024-11-22 | N24: 6 | O24: 9 | P24: 3 | Q24: 5 | R24: 8 | S24: 3 | T24: 6 | U24: 360
A25: سلفة حسن أبو ندا 5000+8000 جنيه خصم 1000 جنيه شهريا | G25: =G24+30 -> 2024-11-30 | H25: 500 | I25: 11 | J25: 500 | K25: 0 | M25: 2024-11-23 | N25: 6 | O25: 9 | P25: 3 | Q25: 5 | R25: 8 | S25: 3 | T25: 6 | U25: 360
A26: التاريخ | B26: المبلغ | C26: خصم شهر | D26: مبلغ الخصم | E26: الباقى | G26: سلفة أيمن القاضى 5000 جنيه خصم 1000 جنيه شهريا | M26: 2024-11-24 | N26: 6 | O26: 9 | P26: 3 | Q26: 3 | R26: 8 | S26: 5 | T26: 8 | U26: 480
A27: 2025-01-31 | B27: 14000 | C27: 1 | D27: 1000 | E27: =B27-D27 -> 13000 | G27: التاريخ | H27: المبلغ | I27: خصم شهر | J27: مبلغ الخصم | K27: الباقى | M27: 2024-11-25 | N27: 6 | O27: 9 | P27: 3 | S27: 0 | T27: 3 | U27: 180
A28: =A27+28 -> 2025-02-28 | B28: =E27 -> 13000 | C28: 2 | D28: 1000 | E28: =B28-D28 -> 12000 | G28: 2024-09-30 | H28: 5000 | I28: 9 | J28: 1000 | K28: =H28-J28 -> 4000 | M28: 2024-11-26 | P28: 0 | S28: 0 | T28: 0 | U28: 0
A29: =A28+31 -> 2025-03-31 | B29: =E28 -> 12000 | C29: 3 | D29: 1000 | E29: 11000 | G29: =G28+31 -> 2024-10-31 | H29: =K28 -> 4000 | I29: 10 | J29: 1000 | K29: =H29-J29 -> 3000 | M29: 2024-11-27 | P29: 0 | S29: 0 | T29: 0 | U29: 0
A30: =A29+30 -> 2025-04-30 | B30: 11000 | C30: 4 | D30: 1000 | E30: 10000 | G30: =G29+30 -> 2024-11-30 | H30: =K29 -> 3000 | I30: 11 | J30: 1000 | K30: 2000 | M30: 2024-11-28 | P30: 0 | S30: 0 | T30: 0 | U30: 0
A31: =A30+30 -> 2025-05-30 | B31: 10000 | C31: 5 | D31: 1000 | E31: 9000 | G31: =G30+31 -> 2024-12-31 | H31: 2000 | I31: 12 | J31: 1000 | K31: 1000 | M31: 2024-11-29 | P31: 0 | S31: 0 | T31: 0 | U31: 0
A32: =A31+31 -> 2025-06-30 | B32: 9000 | C32: 6 | D32: 1000 | E32: 8000 | G32: =G31+31 -> 2025-01-31 | H32: 1000 | I32: 1 | J32: 1000 | K32: 0 | M32: 2024-11-30 | P32: 0 | S32: 0 | T32: 0 | U32: 0
A33: =A32+30 -> 2025-07-30 | B33: 8000 | C33: 7 | D33: 1000 | E33: 7000 | M33: =M32+1 -> 2024-12-01 | P33: 0 | S33: 0 | T33: 0 | U33: 0
A34: =A33+31 -> 2025-08-30 | B34: 7000 | C34: 8 | D34: 1000 | E34: 6000 | M34: الإجـمــــــالــــــــى | U34: =SUM(U4:U33) -> 3180 | V34: =4000/30/2*(U34/60/5) -> 706.6666667
A35: =A34+31 -> 2025-09-30 | B35: =E34 -> 6000 | C35: 9 | D35: 1000 | E35: =B35-D35 -> 5000 | S35: عدد الساعات | U35: =U34/60 -> 53
A36: =A35+31 -> 2025-10-31 | B36: 5000 | C36: 10 | D36: 1000 | E36: 4000
A37: =A36+30 -> 2025-11-30 | B37: =E36 -> 4000 | C37: 11 | D37: 1000 | E37: =B37-D37 -> 3000
A38: 2025-12-31 | B38: 3000 | C38: 12 | D38: 1000 | E38: 2000
A39: 2026-01-31 | B39: 2000 | C39: 13 | D39: 1000 | E39: 1000
A40: =A39+28 -> 2026-02-28 | B40: 1000 | C40: 14 | D40: 1000 | E40: 0
A41: سلفة مصطفى النجار 3000 جنيه خصم 1000 جنيه أسبوعيا
A42: التاريخ | B42: المبلغ | C42: خصم شهر | D42: مبلغ الخصم | E42: الباقى
A43: 2025-02-28 | B43: 3000 | C43: 10 | D43: 1000 | E43: =B43-D43 -> 2000
A44: =A43+31 -> 2025-03-31 | B44: =E43 -> 2000 | C44: 10 | D44: 1000 | E44: =B44-D44 -> 1000
A45: =A44+30 -> 2025-04-30 | B45: =E44 -> 1000 | C45: 10 | D45: 1000 | E45: =B45-D45 -> 0
